{"text_format":"1","workbook":"xlsx","n_sheets":2,"sheets":["Read Only","Child Count Updated"],"not_rendered":{"charts":0,"images":0,"macros":1,"external_links":0,"defined_names":1,"comments":0,"pivot_tables":0},"unopened":[],"bounds":{"document_bytes":16777216,"sheet_cells":100000,"rows_first":2000,"rows_last":500,"rows_between":2000,"halvings":0,"cell_chars":16384,"cell_head_chars":4096},"cells_cut":0,"cells_raw":0,"read":"whole","date_system":"1900"}

{"sheet":"Read Only","index":0,"n_rows":65,"n_cols":85,"rows_kept":65,"cut":false,"hidden":true,"merged":[[0,65,0,84],[0,0,0,10],[0,11,0,20],[0,21,0,24],[0,25,0,40],[0,42,0,51],[0,52,0,64]]}
["Required Information",null,null,null,null,null,null,null,null,null,null,"Referral Information",null,null,null,null,null,null,null,null,null,"NOPR Information",null,null,null,"Active Information",null,null,null,null,null,null,null,null,null,null,null,null,null,null,null,null,"COSF Entry",null,null,null,null,null,null,null,null,null,"COSF Exit",null,null,null,null,null,null,null,null,null,null,null,null,"Exit Information "]
[1,2,3,4,5,6,7,8,9,10,11,12,13,14,15,16,17,18,19,20,21,22,23,24,25,26,27,28,29,30,31,32,33,34,35,36,37,38,39,40,41,42,43,44,45,46,47,48,49,50,51,52,53,54,55,56,57,58,59,60,61,62,63,64,65,66,67,68,69,70,71,72,73,74,75,76,77,78,79,80,81,82,83,84,85]
[null,null,null,null,null,null,null,null,null,null,null,null,null,null,null,null,null,null,null,"select multiple",null,null,null,null,null,null,null,null,null,null,null,null,null,null,null,null,null,"select multiple",null,"select multiple",null,null,null,null,"select multiple",null,null,null,null,null,null,null,null,null,"select multiple"]
["Status","AHS Region","Supervisory Union","Town","CIS Service Coordinator","Child's Full Name","Date of Birth","Age in Days","SSN/UID","Gender","Ethnicity/Race","Date of Referral","45 day reminder","Edu Surrogate","Insurance","Primary Lanuage if not English","Legal Custody","Source of Referral:","Other Source of Referral:","Reason(s) for the Referral:","Other Referral Reasons:","NOPR Determined Date","Reason for no One Plan","Evaluation Date (if happened)","Referred to CIS Intake Team","CAPTA","Initial Evaluation Date","Initial Eval and Days from referral","Reason if not within 45 days of referral","Common Reasons for Delay:","Additional Comments:","Initial One Plan Meeting Date","Initial One Plan Meeting Days from referral","Reason if not within 45 days of referral","Common Reasons for Delay:","Additional Comments:","Date of Initial Written Parental Consent for One Plan Services","Diagnosed Conditions","Other Diagnoses:","Developmental Delay","Other Delays:","Consent to Bill Form Submitted?","One Plan Date (Auto-filled)","Who was involved?","Assessment Tool(s)","Assement Date(s)","Entry Outcome A","Evidence Summary A","Entry Outcome B","Evidence Summary B","Entry Outcome C","Evidence Summary C","Exit Date \n(Auto-filled)","Who was involved?","Assessment Tool(s)","Assessment Date(s)","Exit Outcome A","Evidence Summary A","New Skills A?","Exit Outcome B","Evidence Summary B","New Skills B?","Exit Outcome C","Evidence Summary C","New Skills C?","Exit Date","Date of Transition Plan","Days before 3rd birthday","Reason if not timely for Potential Eligibility","Common Reasons for Delay:","Additional Comments:","Reason for exit before 3","Comments(including if moving to another region)","Exit At Age 3: Potentially Eligible for Part B?","Referrals","LEA Notification Date","Days before 3rd birthday","Reason if not within 180 and 90 days of child's 3rd birthday","Common Reasons for Delay:","Additional Comments:","Transition Conference Date","Days before 3rd birthday","Reason if not within 180 and 90 days of child's 3rd birthday","Common Reasons for Delay:","Additional Comments:"]
["Referral","Barre","Addison Central",null,null,null,null,null,null,"Female","American Indian or Alaska Native",null,null,"Yes","Medicaid/ Dr. Dynasaur",null,"Parent","Child Care Program/EHS/HS/PCC",null,"Adaptive",null,null,"Moved or lost contact",null,"Yes","Yes",null,null,"Family Circumstance","Cancel/No Show",null,null,null,"Family Circumstance","Cancel/No Show",null,null,"Attachment Disorder",null,"All Developmental Domains",null,"Yes",null,null,"Family Observations",null,7,null,7,null,7,null,null,null,"Family Observations",null,7,null,"Yes",7,null,"Yes",7,null,"Yes",null,null,null,"Family Circumstance","Cancel/No Show",null,"Development at appropriate level",null,"Yes","Head Start",null,null,"Family Circumstance","Cancel/No Show",null,null,null,"Family Circumstance","Cancel/No Show"]
["OnePlan","Bennington","Addison Northeast",null,null,null,null,null,null,"Male","Asian",null,null,"No","Private Insurance",null,"Guardian/Foster Parent","DCF-Family Services",null,"Behavioral",null,null,"Child turned 3 years old during evaluation process",null,"No","No",null,null,"Provider Circumstance","Difficulty Contact/Family Move",null,null,null,"Provider Circumstance","Difficulty Contact/Family Move",null,null,"Autism/PDD",null,"Adaptive",null,"No",null,null,"Provider Observations",null,6,null,6,null,6,null,null,null,"Provider Observations",null,6,null,"No",6,null,"No",6,null,"No",null,null,null,"Provider Circumstance","Difficulty Contact/Family Move",null,"Moved out of State",null,"Yes, but family declined","Community-based Child Care Program or Preschool",null,null,"Provider Circumstance","Difficulty Contact/Family Move",null,null,null,"Provider Circumstance","Difficulty Contact/Family Move"]
["Exit","Brattleboro","Addison Northwest",null,null,null,null,null,null,null,"Black or African American",null,null,"Requested","Both Medicaid and Private Insurance",null,"DCF","Family (includes Foster Parents)",null,"CAPTA",null,null,"Initial visit made. Screening declined by family",null,null,null,null,null,"Auto-eligible, will perform 5 Domain Eval when child is old/healthy enough","Family Scheduling/Family Vacation",null,null,null,null,"Family Scheduling/Family Vacation",null,null,"Suspected Autism",null,"Cognitive",null,null,null,null,"AEPS",null,5,null,5,null,5,null,null,null,"AEPS",null,5,null,null,5,null,null,5,null,null,null,null,null,null,"Family Scheduling/Family Vacation",null,"Moved to another Region",null,"No, development is at appropriate level","School based pre-school classroom",null,null,null,"Family Scheduling/Family Vacation",null,null,null,null,"Family Scheduling/Family Vacation"]
["NOPR","Burlington","Addison Rutland",null,null,null,null,null,null,null,"Hispanic or Latino",null,null,null,"No Insurance",null,"Other","Primary Health Care Provider",null,"Cognitive",null,null,"Screened, no further evaluation needed",null,null,null,null,null,null,"Homelessness",null,null,null,null,"Homelessness",null,null,"Blind/Visually Impaired",null,"Communication",null,null,null,null,"HELP",null,4,null,4,null,4,null,null,null,"HELP",null,4,null,null,4,null,null,4,null,null,null,null,null,null,"Homelessness",null,"Withdrawn by parent or guardian",null,"No, did not meet Part C's criteria for potential eligibility","Children's Integrated Services Coordinator",null,null,null,"Homelessness",null,null,null,null,"Homelessness"]
[null,"Hartford","Barre",null,null,null,null,null,null,null,"Native Hawaiian or Other Pacific Islander",null,null,null,"Unknown",null,null,"School/EEE",null,"Communication",null,null,"Screened, eligibility not determined as evaluation declined by family",null,null,null,null,null,null,"Illness/Hospitalization",null,null,null,null,"Illness/Hospitalization",null,null,"Cerebral Palsy",null,"Motor",null,null,null,null,"IDA",null,3,null,3,null,3,null,null,null,"IDA",null,3,null,null,3,null,null,3,null,null,null,null,null,null,"Illness/Hospitalization",null,"Unable to contact",null,"No, did not meet Part B's eligibility at Transition Conference","Exited with no referrals",null,null,null,"Illness/Hospitalization",null,null,null,null,"Illness/Hospitalization"]
[null,"Middlebury","Battenkill Valley",null,null,null,null,null,null,null,"Two or More races",null,null,null,null,null,null,"Other",null,"Hearing/Vision",null,null,"Screened, evaluated, determinded not eligible",null,null,null,null,null,null,"Requested by Family",null,null,null,null,"Requested by Family",null,null,"Craniofacial Disorder",null,"Social/Emotional",null,null,null,null,"TPBA",null,2,null,2,null,2,null,null,null,"TPBA",null,2,null,null,2,null,null,2,null,null,null,null,null,null,"Requested by Family",null,"Deceased",null,null,null,null,null,null,"Requested by Family",null,null,null,null,"Requested by Family"]
[null,"Morrisville","Bennington Rutland",null,null,null,null,null,null,null,"White (not Hispanic)",null,null,null,null,null,null,null,null,"Motor/Physical",null,null,null,null,null,null,null,null,null,"CIS/EI",null,null,null,null,"CIS/EI",null,null,"Deaf/Hard of Hearing",null,"Other",null,null,null,null,"ST Eval",null,1,null,1,null,1,null,null,null,"ST Eval",null,1,null,null,1,null,null,1,null,null,null,null,null,null,"CIS/EI",null,null,null,null,null,null,null,null,"CIS/EI",null,null,null,null,"CIS/EI"]
[null,"Newport","Blue Mountain",null,null,null,null,null,null,null,null,null,null,null,null,null,null,null,null,"Social/Emotional",null,null,null,null,null,null,null,null,null,"Educational Surrogate",null,null,null,null,"Educational Surrogate",null,null,"Down Syndrome",null,null,null,null,null,null,"PT Eval",null,null,null,null,null,null,null,null,null,"PT Eval",null,null,null,null,null,null,null,null,null,null,null,null,null,null,"Educational Surrogate",null,null,null,null,null,null,null,null,"Educational Surrogate",null,null,null,null,"Educational Surrogate"]
[null,"Rutland","Burlington",null,null,null,null,null,null,null,null,null,null,null,null,null,null,null,null,"Other",null,null,null,null,null,null,null,null,null,"Interpreter",null,null,null,null,"Interpreter",null,null,"Medically Fragile",null,null,null,null,null,null,"OT Eval",null,null,null,null,null,null,null,null,null,"OT Eval",null,null,null,null,null,null,null,null,null,null,null,null,null,null,"Interpreter",null,null,null,null,null,null,null,null,"Interpreter",null,null,null,null,"Interpreter"]
[null,"Springfield","Caledonia Central",null,null,null,null,null,null,null,null,null,null,null,null,null,null,null,null,null,null,null,null,null,null,null,null,null,null,"Provider Availability",null,null,null,null,"Provider Availability",null,null,"NAS",null,null,null,null,null,null,"Other",null,null,null,null,null,null,null,null,null,"Other",null,null,null,null,null,null,null,null,null,null,null,null,null,null,"Provider Availability",null,null,null,null,null,null,null,null,"Provider Availability",null,null,null,null,"Provider Availability"]
[null,"St Albans","Caledonia North",null,null,null,null,null,null,null,null,null,null,null,null,null,null,null,null,null,null,null,null,null,null,null,null,null,null,"SU",null,null,null,null,"SU",null,null,"Oral Motor/Swallowing",null,null,null,null,null,null,null,null,null,null,null,null,null,null,null,null,null,null,null,null,null,null,null,null,null,null,null,null,null,null,null,"SU",null,null,null,null,null,null,null,null,"SU",null,null,null,null,"SU"]
[null,"St Johnsbury","Chittenden Central",null,null,null,null,null,null,null,null,null,null,null,null,null,null,null,null,null,null,null,null,null,null,null,null,null,null,"See Additional Comments",null,null,null,null,"See Additional Comments",null,null,"Severe Complications at Birth",null,null,null,null,null,null,null,null,null,null,null,null,null,null,null,null,null,null,null,null,null,null,null,null,null,null,null,null,null,null,null,"See Additional Comments",null,null,null,null,null,null,null,null,"See Additional Comments",null,null,null,null,"See Additional Comments"]
[null,null,"Chittenden East",null,null,null,null,null,null,null,null,null,null,null,null,null,null,null,null,null,null,null,null,null,null,null,null,null,null,"Covid19: Family difficult/unable to be contacted (via phone/email/letter)",null,null,null,null,"Covid19: Family difficult/unable to be contacted (via phone/email/letter)",null,null,"Torticollis",null,null,null,null,null,null,null,null,null,null,null,null,null,null,null,null,null,null,null,null,null,null,null,null,null,null,null,null,null,null,null,"Covid19: Family difficult/unable to be contacted (via phone/email/letter)",null,null,null,null,null,null,null,null,"Covid19: Family difficult/unable to be contacted (via phone/email/letter)",null,null,null,null,"Covid19: Family difficult/unable to be contacted (via phone/email/letter)"]
[null,null,"Chittenden South",null,null,null,null,null,null,null,null,null,null,null,null,null,null,null,null,null,null,null,null,null,null,null,null,null,null,"Covid19: Family chose to suspend/delay services",null,null,null,null,"Covid19: Family chose to suspend/delay services",null,null,"Other",null,null,null,null,null,null,null,null,null,null,null,null,null,null,null,null,null,null,null,null,null,null,null,null,null,null,null,null,null,null,null,"Covid19: Family chose to suspend/delay services",null,null,null,null,null,null,null,null,"Covid19: Family chose to suspend/delay services",null,null,null,null,"Covid19: Family chose to suspend/delay services"]
[null,null,"Colchester",null,null,null,null,null,null,null,null,null,null,null,null,null,null,null,null,null,null,null,null,null,null,null,null,null,null,"Covid19: Family declined telehealth/telephonic services",null,null,null,null,"Covid19: Family declined telehealth/telephonic services",null,null,null,null,null,null,null,null,null,null,null,null,null,null,null,null,null,null,null,null,null,null,null,null,null,null,null,null,null,null,null,null,null,null,"Covid19: Family declined telehealth/telephonic services",null,null,null,null,null,null,null,null,"Covid19: Family declined telehealth/telephonic services",null,null,null,null,"Covid19: Family declined telehealth/telephonic services"]
[null,null,"Dresden SD #70",null,null,null,null,null,null,null,null,null,null,null,null,null,null,null,null,null,null,null,null,null,null,null,null,null,null,"Covid19: Family was ill with Covid19",null,null,null,null,"Covid19: Family was ill with Covid19",null,null,null,null,null,null,null,null,null,null,null,null,null,null,null,null,null,null,null,null,null,null,null,null,null,null,null,null,null,null,null,null,null,null,"Covid19: Family was ill with Covid19",null,null,null,null,null,null,null,null,"Covid19: Family was ill with Covid19",null,null,null,null,"Covid19: Family was ill with Covid19"]
[null,null,"Essex Caledonia",null,null,null,null,null,null,null,null,null,null,null,null,null,null,null,null,null,null,null,null,null,null,null,null,null,null,"Covid19: Family unable to participate in telehealth/telephonic services",null,null,null,null,"Covid19: Family unable to participate in telehealth/telephonic services",null,null,null,null,null,null,null,null,null,null,null,null,null,null,null,null,null,null,null,null,null,null,null,null,null,null,null,null,null,null,null,null,null,null,"Covid19: Family unable to participate in telehealth/telephonic services",null,null,null,null,null,null,null,null,"Covid19: Family unable to participate in telehealth/telephonic services",null,null,null,null,"Covid19: Family unable to participate in telehealth/telephonic services"]
[null,null,"Essex North",null,null,null,null,null,null,null,null,null,null,null,null,null,null,null,null,null,null,null,null,null,null,null,null,null,null,"Covid19: Provider awaiting guidance from OSEP/State (prior to April 30, 2020)",null,null,null,null,"Covid19: Provider awaiting guidance from OSEP/State (prior to April 30, 2020)",null,null,null,null,null,null,null,null,null,null,null,null,null,null,null,null,null,null,null,null,null,null,null,null,null,null,null,null,null,null,null,null,null,null,"Covid19: Provider awaiting guidance from OSEP/State (prior to April 30, 2020)",null,null,null,null,null,null,null,null,"Covid19: Provider awaiting guidance from OSEP/State (prior to April 30, 2020)",null,null,null,null,"Covid19: Provider awaiting guidance from OSEP/State (prior to April 30, 2020)"]
[null,null,"Essex Town",null,null,null,null,null,null,null,null,null,null,null,null,null,null,null,null,null,null,null,null,null,null,null,null,null,null,"Covid19: Provider unable to provide telehealth/telephonic services",null,null,null,null,"Covid19: Provider unable to provide telehealth/telephonic services",null,null,null,null,null,null,null,null,null,null,null,null,null,null,null,null,null,null,null,null,null,null,null,null,null,null,null,null,null,null,null,null,null,null,"Covid19: Provider unable to provide telehealth/telephonic services",null,null,null,null,null,null,null,null,"Covid19: Provider unable to provide telehealth/telephonic services",null,null,null,null,"Covid19: Provider unable to provide telehealth/telephonic services"]
[null,null,"Franklin Central",null,null,null,null,null,null,null,null,null,null,null,null,null,null,null,null,null,null,null,null,null,null,null,null,null,null,"Covid19: Provider search/recruitment to deliver services remote/in-person",null,null,null,null,"Covid19: Provider search/recruitment to deliver services remote/in-person",null,null,null,null,null,null,null,null,null,null,null,null,null,null,null,null,null,null,null,null,null,null,null,null,null,null,null,null,null,null,null,null,null,null,"Covid19: Provider search/recruitment to deliver services remote/in-person",null,null,null,null,null,null,null,null,"Covid19: Provider search/recruitment to deliver services remote/in-person",null,null,null,null,"Covid19: Provider search/recruitment to deliver services remote/in-person"]
[null,null,"Franklin Northeast",null,null,null,null,null,null,null,null,null,null,null,null,null,null,null,null,null,null,null,null,null,null,null,null,null,null,"Covid19: Provider was ill with Covid19",null,null,null,null,"Covid19: Provider was ill with Covid19",null,null,null,null,null,null,null,null,null,null,null,null,null,null,null,null,null,null,null,null,null,null,null,null,null,null,null,null,null,null,null,null,null,null,"Covid19: Provider was ill with Covid19",null,null,null,null,null,null,null,null,"Covid19: Provider was ill with Covid19",null,null,null,null,"Covid19: Provider was ill with Covid19"]
[null,null,"Franklin Northwest"]
[null,null,"Franklin West"]
[null,null,"Grand Isle"]
[null,null,"Hartford"]
[null,null,"Lamoille North"]
[null,null,"Lamoille South"]
[null,null,"Milton"]
[null,null,"Montpelier"]
[null,null,"North Country SU"]
[null,null,"Orange East"]
[null,null,"Orange North"]
[null,null,"Orange Southwest"]
[null,null,"Orange Windsor"]
[null,null,"Orleans Central"]
[null,null,"Orleans Southwest"]
[null,null,"Rivendell"]
[null,null,"Rutland Central"]
[null,null,"Rutland City"]
[null,null,"Rutland Northeast"]
[null,null,"Rutland South"]
[null,null,"Rutland Southwest"]
[null,null,"Rutland Windsor"]
[null,null,"S. Burlington"]
[null,null,"Southwest Vermont"]
[null,null,"Springfield"]
[null,null,"St Johnsbury"]
[null,null,"Two Rivers"]
[null,null,"Washington Central"]
[null,null,"Washington Northeast"]
[null,null,"Washington South"]
[null,null,"Washington West"]
[null,null,"Windham Central"]
[null,null,"Windham Northeast"]
[null,null,"Windham Southeast"]
[null,null,"Windham Southwest"]
[null,null,"Windsor Central"]
[null,null,"Windsor Northwest"]
[null,null,"Windsor Southeast"]
[null,null,"Windsor Southwest"]
[null,null,"Winooski"]

{"sheet":"Child Count Updated","index":1,"n_rows":579,"n_cols":85,"rows_kept":579,"cut":false,"hidden":false,"merged":[]}
["Status","AHS Region","Supervisory Union","Town","CIS Service Coordinator","Child's Full Name","Date of Birth","Age in Days","SSN/UID","Gender","Ethnicity/Race","Date of Referral","45 day reminder","Edu Surrogate","Insurance","Primary Lanuage if not English","Legal Custody","Source of Referral:","Other Source of Referral:","Reason(s) for the Referral:","Other Referral Reasons:","NOPR Determined Date","Reason for no One Plan","Evaluation Date (if happened)","Referred to CIS Intake Team","CAPTA","Initial Evaluation Date","Initial Eval and Days from referral","Reason if not within 45 days of referral","Common Reasons for Delay:","Additional Comments:","Initial One Plan Meeting Date","Initial One Plan Meeting Days from referral","Reason if not within 45 days of referral","Common Reasons for Delay:","Additional Comments:","Diagnosed Conditions","Other Diagnoses:","Developmental Delay","Other Delays:","Consent to Bill Form Submitted?","One Plan Date (Auto-filled)","Who was involved?","Assessment Tool(s)","Assement Date(s)","Entry Outcome A","Evidence Summary A","Entry Outcome B","Evidence Summary B","Entry Outcome C","Evidence Summary C","Exit Date \n(Auto-filled)","Who was involved?","Assessment Tool(s)","Assessment Date(s)","Exit Outcome A","Evidence Summary A","New Skills A?","Exit Outcome B","Evidence Summary B","New Skills B?","Exit Outcome C","Evidence Summary C","New Skills C?","Potential Eligibility Due:","Exit Date","Date of Transition Plan","Days before 3rd birthday","Reason if not timely for Potential Eligibility","Common Reasons for Delay:","Additional Comments:","Reason for exit before 3","Comments(including if moving to another region)","Exit At Age 3: Potentially Eligible for Part B?","Referrals","LEA Notification Date","Days before 3rd birthday","Reason if not within 180 and 90 days of child's 3rd birthday","Common Reasons for Delay:","Additional Comments:","Transition Conference Date","Days before 3rd birthday","Reason if not within 180 and 90 days of child's 3rd birthday","Common Reasons for Delay:","Additional Comments:"]
[null,null,null,null,null,null,null,null,null,null,null,null,{"$f":"IF(L2<>\"\",DATE(YEAR(L2),MONTH(L2),DAY(L2)+45),\"\")","v":""},null,null,null,null,null,null,null,null,null,null,null,null,null,null,{"$f":"IF(AA2<>\"\",(AA2-L2),\"\")","v":""},null,null,null,null,{"$f":"IF(AF2<>\"\",(AF2-L2),\"\")","v":""},null,null,null,null,null,null,null,null,{"$f":"IF(AF2<>\"\",AF2,\"\")","v":""},null,null,null,null,null,null,null,null,null,null,null,null,null,null,null,null,null,null,null,null,null,null,{"$f":"IF(G2<>\"\",(G2+915),\"\")","v":""},null,null,{"$f":"IF(BV2=\"Yes\",(DATE(YEAR(G2)+3,MONTH(G2),DAY(G2))-BO2),\"\")","v":""},null,null,null,null,null,null,null,null,{"$f":"IF(BV2=\"Yes\",(DATE(YEAR(G2)+3,MONTH(G2),DAY(G2))-BX2),IF(BV2=\"Yes, but family declined\",(DATE(YEAR(G2)+3,MONTH(G2),DAY(G2))-BX2),\"\"))","v":""},null,null,null,null,{"$f":"IF(BV2=\"Yes\",(DATE(YEAR(G2)+3,MONTH(G2),DAY(G2))-CC2),IF(BV2=\"Yes, but family declined\",(DATE(YEAR(G2)+3,MONTH(G2),DAY(G2))-CC2),\"\"))","v":""}]
[null,null,null,null,null,null,null,{"$f":"IF(G3<>\"\",(TODAY()-G3),\"\")","v":""},null,null,null,null,"",null,null,null,null,null,null,null,null,null,null,null,null,null,null,{"$f":"IF(AA3<>\"\",(AA3-L3),\"\")","v":""},null,null,null,null,{"$f":"IF(AF3<>\"\",(AF3-L3),\"\")","v":""},null,null,null,null,null,null,null,null,{"$f":"IF(AF3<>\"\",AF3,\"\")","v":""},null,null,null,null,null,null,null,null,null,{"$f":"IF(BN3<>\"\",BN3,\"\")","v":""},null,null,null,null,null,null,null,null,null,null,null,null,{"$f":"IF(G3<>\"\",(G3+915),\"\")","v":""},null,null,{"$f":"IF(BV3=\"Yes\",(DATE(YEAR(G3)+3,MONTH(G3),DAY(G3))-BO3),\"\")","v":""},null,null,null,null,null,null,null,null,{"$f":"IF(BV3=\"Yes\",(DATE(YEAR(G3)+3,MONTH(G3),DAY(G3))-BX3),IF(BV3=\"Yes, but family declined\",(DATE(YEAR(G3)+3,MONTH(G3),DAY(G3))-BX3),\"\"))","v":""},null,null,null,null,{"$f":"IF(BV3=\"Yes\",(DATE(YEAR(G3)+3,MONTH(G3),DAY(G3))-CC3),IF(BV3=\"Yes, but family declined\",(DATE(YEAR(G3)+3,MONTH(G3),DAY(G3))-CC3),\"\"))","v":""}]
[null,null,null,null,null,null,null,"",null,null,null,null,"",null,null,null,null,null,null,null,null,null,null,null,null,null,null,"",null,null,null,null,"",null,null,null,null,null,null,null,null,"",null,null,null,null,null,null,null,null,null,"",null,null,null,null,null,null,null,null,null,null,null,null,"",null,null,"",null,null,null,null,null,null,null,null,"",null,null,null,null,""]
[null,null,null,null,null,null,null,"",null,null,null,null,"",null,null,null,null,null,null,null,null,null,null,null,null,null,null,"",null,null,null,null,"",null,null,null,null,null,null,null,null,"",null,null,null,null,null,null,null,null,null,"",null,null,null,null,null,null,null,null,null,null,null,null,"",null,null,"",null,null,null,null,null,null,null,null,"",null,null,null,null,""]
[null,null,null,null,null,null,null,"",null,null,null,null,"",null,null,null,null,null,null,null,null,null,null,null,null,null,null,"",null,null,null,null,"",null,null,null,null,null,null,null,null,"",null,null,null,null,null,null,null,null,null,"",null,null,null,null,null,null,null,null,null,null,null,null,"",null,null,"",null,null,null,null,null,null,null,null,"",null,null,null,null,""]
[null,null,null,null,null,null,null,"",null,null,null,null,"",null,null,null,null,null,null,null,null,null,null,null,null,null,null,"",null,null,null,null,"",null,null,null,null,null,null,null,null,"",null,null,null,null,null,null,null,null,null,"",null,null,null,null,null,null,null,null,null,null,null,null,"",null,null,"",null,null,null,null,null,null,null,null,"",null,null,null,null,""]
[null,null,null,null,null,null,null,"",null,null,null,null,"",null,null,null,null,null,null,null,null,null,null,null,null,null,null,"",null,null,null,null,"",null,null,null,null,null,null,null,null,"",null,null,null,null,null,null,null,null,null,"",null,null,null,null,null,null,null,null,null,null,null,null,"",null,null,"",null,null,null,null,null,null,null,null,"",null,null,null,null,""]
[null,null,null,null,null,null,null,"",null,null,null,null,"",null,null,null,null,null,null,null,null,null,null,null,null,null,null,"",null,null,null,null,"",null,null,null,null,null,null,null,null,"",null,null,null,null,null,null,null,null,null,"",null,null,null,null,null,null,null,null,null,null,null,null,"",null,null,"",null,null,null,null,null,null,null,null,"",null,null,null,null,""]
[null,null,null,null,null,null,null,"",null,null,null,null,"",null,null,null,null,null,null,null,null,null,null,null,null,null,null,"",null,null,null,null,"",null,null,null,null,null,null,null,null,"",null,null,null,null,null,null,null,null,null,"",null,null,null,null,null,null,null,null,null,null,null,null,"",null,null,"",null,null,null,null,null,null,null,null,"",null,null,null,null,""]
[null,null,null,null,null,null,null,"",null,null,null,null,"",null,null,null,null,null,null,null,null,null,null,null,null,null,null,"",null,null,null,null,"",null,null,null,null,null,null,null,null,"",null,null,null,null,null,null,null,null,null,"",null,null,null,null,null,null,null,null,null,null,null,null,"",null,null,"",null,null,null,null,null,null,null,null,"",null,null,null,null,""]
[null,null,null,null,null,null,null,"",null,null,null,null,"",null,null,null,null,null,null,null,null,null,null,null,null,null,null,"",null,null,null,null,"",null,null,null,null,null,null,null,null,"",null,null,null,null,null,null,null,null,null,"",null,null,null,null,null,null,null,null,null,null,null,null,"",null,null,"",null,null,null,null,null,null,null,null,"",null,null,null,null,""]
[null,null,null,null,null,null,null,"",null,null,null,null,"",null,null,null,null,null,null,null,null,null,null,null,null,null,null,"",null,null,null,null,"",null,null,null,null,null,null,null,null,"",null,null,null,null,null,null,null,null,null,"",null,null,null,null,null,null,null,null,null,null,null,null,"",null,null,"",null,null,null,null,null,null,null,null,"",null,null,null,null,""]
[null,null,null,null,null,null,null,"",null,null,null,null,"",null,null,null,null,null,null,null,null,null,null,null,null,null,null,"",null,null,null,null,"",null,null,null,null,null,null,null,null,"",null,null,null,null,null,null,null,null,null,"",null,null,null,null,null,null,null,null,null,null,null,null,"",null,null,"",null,null,null,null,null,null,null,null,"",null,null,null,null,""]
[null,null,null,null,null,null,null,"",null,null,null,null,"",null,null,null,null,null,null,null,null,null,null,null,null,null,null,"",null,null,null,null,"",null,null,null,null,null,null,null,null,"",null,null,null,null,null,null,null,null,null,"",null,null,null,null,null,null,null,null,null,null,null,null,"",null,null,"",null,null,null,null,null,null,null,null,"",null,null,null,null,""]
[null,null,null,null,null,null,null,"",null,null,null,null,"",null,null,null,null,null,null,null,null,null,null,null,null,null,null,"",null,null,null,null,"",null,null,null,null,null,null,null,null,"",null,null,null,null,null,null,null,null,null,"",null,null,null,null,null,null,null,null,null,null,null,null,"",null,null,"",null,null,null,null,null,null,null,null,"",null,null,null,null,""]
[null,null,null,null,null,null,null,"",null,null,null,null,"",null,null,null,null,null,null,null,null,null,null,null,null,null,null,"",null,null,null,null,"",null,null,null,null,null,null,null,null,"",null,null,null,null,null,null,null,null,null,"",null,null,null,null,null,null,null,null,null,null,null,null,"",null,null,"",null,null,null,null,null,null,null,null,"",null,null,null,null,""]
[null,null,null,null,null,null,null,"",null,null,null,null,"",null,null,null,null,null,null,null,null,null,null,null,null,null,null,"",null,null,null,null,"",null,null,null,null,null,null,null,null,"",null,null,null,null,null,null,null,null,null,"",null,null,null,null,null,null,null,null,null,null,null,null,"",null,null,"",null,null,null,null,null,null,null,null,"",null,null,null,null,""]
[null,null,null,null,null,null,null,"",null,null,null,null,"",null,null,null,null,null,null,null,null,null,null,null,null,null,null,"",null,null,null,null,"",null,null,null,null,null,null,null,null,"",null,null,null,null,null,null,null,null,null,"",null,null,null,null,null,null,null,null,null,null,null,null,"",null,null,"",null,null,null,null,null,null,null,null,"",null,null,null,null,""]
[null,null,null,null,null,null,null,"",null,null,null,null,"",null,null,null,null,null,null,null,null,null,null,null,null,null,null,"",null,null,null,null,"",null,null,null,null,null,null,null,null,"",null,null,null,null,null,null,null,null,null,"",null,null,null,null,null,null,null,null,null,null,null,null,"",null,null,"",null,null,null,null,null,null,null,null,"",null,null,null,null,""]
[null,null,null,null,null,null,null,"",null,null,null,null,"",null,null,null,null,null,null,null,null,null,null,null,null,null,null,"",null,null,null,null,"",null,null,null,null,null,null,null,null,"",null,null,null,null,null,null,null,null,null,"",null,null,null,null,null,null,null,null,null,null,null,null,"",null,null,"",null,null,null,null,null,null,null,null,"",null,null,null,null,""]
[null,null,null,null,null,null,null,"",null,null,null,null,"",null,null,null,null,null,null,null,null,null,null,null,null,null,null,"",null,null,null,null,"",null,null,null,null,null,null,null,null,"",null,null,null,null,null,null,null,null,null,"",null,null,null,null,null,null,null,null,null,null,null,null,"",null,null,"",null,null,null,null,null,null,null,null,"",null,null,null,null,""]
[null,null,null,null,null,null,null,"",null,null,null,null,"",null,null,null,null,null,null,null,null,null,null,null,null,null,null,"",null,null,null,null,"",null,null,null,null,null,null,null,null,"",null,null,null,null,null,null,null,null,null,"",null,null,null,null,null,null,null,null,null,null,null,null,"",null,null,"",null,null,null,null,null,null,null,null,"",null,null,null,null,""]
[null,null,null,null,null,null,null,"",null,null,null,null,"",null,null,null,null,null,null,null,null,null,null,null,null,null,null,"",null,null,null,null,"",null,null,null,null,null,null,null,null,"",null,null,null,null,null,null,null,null,null,"",null,null,null,null,null,null,null,null,null,null,null,null,"",null,null,"",null,null,null,null,null,null,null,null,"",null,null,null,null,""]
[null,null,null,null,null,null,null,"",null,null,null,null,"",null,null,null,null,null,null,null,null,null,null,null,null,null,null,"",null,null,null,null,"",null,null,null,null,null,null,null,null,"",null,null,null,null,null,null,null,null,null,"",null,null,null,null,null,null,null,null,null,null,null,null,"",null,null,"",null,null,null,null,null,null,null,null,"",null,null,null,null,""]
[null,null,null,null,null,null,null,"",null,null,null,null,"",null,null,null,null,null,null,null,null,null,null,null,null,null,null,"",null,null,null,null,"",null,null,null,null,null,null,null,null,"",null,null,null,null,null,null,null,null,null,"",null,null,null,null,null,null,null,null,null,null,null,null,"",null,null,"",null,null,null,null,null,null,null,null,"",null,null,null,null,""]
[null,null,null,null,null,null,null,"",null,null,null,null,"",null,null,null,null,null,null,null,null,null,null,null,null,null,null,"",null,null,null,null,"",null,null,null,null,null,null,null,null,"",null,null,null,null,null,null,null,null,null,"",null,null,null,null,null,null,null,null,null,null,null,null,"",null,null,"",null,null,null,null,null,null,null,null,"",null,null,null,null,""]
[null,null,null,null,null,null,null,"",null,null,null,null,"",null,null,null,null,null,null,null,null,null,null,null,null,null,null,"",null,null,null,null,"",null,null,null,null,null,null,null,null,"",null,null,null,null,null,null,null,null,null,"",null,null,null,null,null,null,null,null,null,null,null,null,"",null,null,"",null,null,null,null,null,null,null,null,"",null,null,null,null,""]
[null,null,null,null,null,null,null,"",null,null,null,null,"",null,null,null,null,null,null,null,null,null,null,null,null,null,null,"",null,null,null,null,"",null,null,null,null,null,null,null,null,"",null,null,null,null,null,null,null,null,null,"",null,null,null,null,null,null,null,null,null,null,null,null,"",null,null,"",null,null,null,null,null,null,null,null,"",null,null,null,null,""]
[null,null,null,null,null,null,null,"",null,null,null,null,"",null,null,null,null,null,null,null,null,null,null,null,null,null,null,"",null,null,null,null,"",null,null,null,null,null,null,null,null,"",null,null,null,null,null,null,null,null,null,"",null,null,null,null,null,null,null,null,null,null,null,null,"",null,null,"",null,null,null,null,null,null,null,null,"",null,null,null,null,""]
[null,null,null,null,null,null,null,"",null,null,null,null,"",null,null,null,null,null,null,null,null,null,null,null,null,null,null,"",null,null,null,null,"",null,null,null,null,null,null,null,null,"",null,null,null,null,null,null,null,null,null,"",null,null,null,null,null,null,null,null,null,null,null,null,"",null,null,"",null,null,null,null,null,null,null,null,"",null,null,null,null,""]
[null,null,null,null,null,null,null,"",null,null,null,null,"",null,null,null,null,null,null,null,null,null,null,null,null,null,null,"",null,null,null,null,"",null,null,null,null,null,null,null,null,"",null,null,null,null,null,null,null,null,null,"",null,null,null,null,null,null,null,null,null,null,null,null,"",null,null,"",null,null,null,null,null,null,null,null,"",null,null,null,null,""]
[null,null,null,null,null,null,null,"",null,null,null,null,"",null,null,null,null,null,null,null,null,null,null,null,null,null,null,"",null,null,null,null,"",null,null,null,null,null,null,null,null,"",null,null,null,null,null,null,null,null,null,"",null,null,null,null,null,null,null,null,null,null,null,null,"",null,null,"",null,null,null,null,null,null,null,null,"",null,null,null,null,""]
[null,null,null,null,null,null,null,"",null,null,null,null,"",null,null,null,null,null,null,null,null,null,null,null,null,null,null,"",null,null,null,null,"",null,null,null,null,null,null,null,null,"",null,null,null,null,null,null,null,null,null,"",null,null,null,null,null,null,null,null,null,null,null,null,"",null,null,"",null,null,null,null,null,null,null,null,"",null,null,null,null,""]
[null,null,null,null,null,null,null,"",null,null,null,null,"",null,null,null,null,null,null,null,null,null,null,null,null,null,null,"",null,null,null,null,"",null,null,null,null,null,null,null,null,"",null,null,null,null,null,null,null,null,null,"",null,null,null,null,null,null,null,null,null,null,null,null,"",null,null,"",null,null,null,null,null,null,null,null,"",null,null,null,null,""]
[null,null,null,null,null,null,null,"",null,null,null,null,"",null,null,null,null,null,null,null,null,null,null,null,null,null,null,"",null,null,null,null,"",null,null,null,null,null,null,null,null,"",null,null,null,null,null,null,null,null,null,"",null,null,null,null,null,null,null,null,null,null,null,null,"",null,null,"",null,null,null,null,null,null,null,null,"",null,null,null,null,""]
[null,null,null,null,null,null,null,"",null,null,null,null,"",null,null,null,null,null,null,null,null,null,null,null,null,null,null,"",null,null,null,null,"",null,null,null,null,null,null,null,null,"",null,null,null,null,null,null,null,null,null,"",null,null,null,null,null,null,null,null,null,null,null,null,"",null,null,"",null,null,null,null,null,null,null,null,"",null,null,null,null,""]
[null,null,null,null,null,null,null,"",null,null,null,null,"",null,null,null,null,null,null,null,null,null,null,null,null,null,null,"",null,null,null,null,"",null,null,null,null,null,null,null,null,"",null,null,null,null,null,null,null,null,null,"",null,null,null,null,null,null,null,null,null,null,null,null,"",null,null,"",null,null,null,null,null,null,null,null,"",null,null,null,null,""]
[null,null,null,null,null,null,null,"",null,null,null,null,"",null,null,null,null,null,null,null,null,null,null,null,null,null,null,"",null,null,null,null,"",null,null,null,null,null,null,null,null,"",null,null,null,null,null,null,null,null,null,"",null,null,null,null,null,null,null,null,null,null,null,null,"",null,null,"",null,null,null,null,null,null,null,null,"",null,null,null,null,""]
[null,null,null,null,null,null,null,"",null,null,null,null,"",null,null,null,null,null,null,null,null,null,null,null,null,null,null,"",null,null,null,null,"",null,null,null,null,null,null,null,null,"",null,null,null,null,null,null,null,null,null,"",null,null,null,null,null,null,null,null,null,null,null,null,"",null,null,"",null,null,null,null,null,null,null,null,"",null,null,null,null,""]
[null,null,null,null,null,null,null,"",null,null,null,null,"",null,null,null,null,null,null,null,null,null,null,null,null,null,null,"",null,null,null,null,"",null,null,null,null,null,null,null,null,"",null,null,null,null,null,null,null,null,null,"",null,null,null,null,null,null,null,null,null,null,null,null,"",null,null,"",null,null,null,null,null,null,null,null,"",null,null,null,null,""]
[null,null,null,null,null,null,null,"",null,null,null,null,"",null,null,null,null,null,null,null,null,null,null,null,null,null,null,"",null,null,null,null,"",null,null,null,null,null,null,null,null,"",null,null,null,null,null,null,null,null,null,"",null,null,null,null,null,null,null,null,null,null,null,null,"",null,null,"",null,null,null,null,null,null,null,null,"",null,null,null,null,""]
[null,null,null,null,null,null,null,"",null,null,null,null,"",null,null,null,null,null,null,null,null,null,null,null,null,null,null,"",null,null,null,null,"",null,null,null,null,null,null,null,null,"",null,null,null,null,null,null,null,null,null,"",null,null,null,null,null,null,null,null,null,null,null,null,"",null,null,"",null,null,null,null,null,null,null,null,"",null,null,null,null,""]
[null,null,null,null,null,null,null,"",null,null,null,null,"",null,null,null,null,null,null,null,null,null,null,null,null,null,null,"",null,null,null,null,"",null,null,null,null,null,null,null,null,"",null,null,null,null,null,null,null,null,null,"",null,null,null,null,null,null,null,null,null,null,null,null,"",null,null,"",null,null,null,null,null,null,null,null,"",null,null,null,null,""]
[null,null,null,null,null,null,null,"",null,null,null,null,"",null,null,null,null,null,null,null,null,null,null,null,null,null,null,"",null,null,null,null,"",null,null,null,null,null,null,null,null,"",null,null,null,null,null,null,null,null,null,"",null,null,null,null,null,null,null,null,null,null,null,null,"",null,null,"",null,null,null,null,null,null,null,null,"",null,null,null,null,""]
[null,null,null,null,null,null,null,"",null,null,null,null,"",null,null,null,null,null,null,null,null,null,null,null,null,null,null,"",null,null,null,null,"",null,null,null,null,null,null,null,null,"",null,null,null,null,null,null,null,null,null,"",null,null,null,null,null,null,null,null,null,null,null,null,"",null,null,"",null,null,null,null,null,null,null,null,"",null,null,null,null,""]
[null,null,null,null,null,null,null,"",null,null,null,null,"",null,null,null,null,null,null,null,null,null,null,null,null,null,null,"",null,null,null,null,"",null,null,null,null,null,null,null,null,"",null,null,null,null,null,null,null,null,null,"",null,null,null,null,null,null,null,null,null,null,null,null,"",null,null,"",null,null,null,null,null,null,null,null,"",null,null,null,null,""]
[null,null,null,null,null,null,null,"",null,null,null,null,"",null,null,null,null,null,null,null,null,null,null,null,null,null,null,"",null,null,null,null,"",null,null,null,null,null,null,null,null,"",null,null,null,null,null,null,null,null,null,"",null,null,null,null,null,null,null,null,null,null,null,null,"",null,null,"",null,null,null,null,null,null,null,null,"",null,null,null,null,""]
[null,null,null,null,null,null,null,"",null,null,null,null,"",null,null,null,null,null,null,null,null,null,null,null,null,null,null,"",null,null,null,null,"",null,null,null,null,null,null,null,null,"",null,null,null,null,null,null,null,null,null,"",null,null,null,null,null,null,null,null,null,null,null,null,"",null,null,"",null,null,null,null,null,null,null,null,"",null,null,null,null,""]
[null,null,null,null,null,null,null,"",null,null,null,null,"",null,null,null,null,null,null,null,null,null,null,null,null,null,null,"",null,null,null,null,"",null,null,null,null,null,null,null,null,"",null,null,null,null,null,null,null,null,null,"",null,null,null,null,null,null,null,null,null,null,null,null,"",null,null,"",null,null,null,null,null,null,null,null,"",null,null,null,null,""]
[null,null,null,null,null,null,null,"",null,null,null,null,"",null,null,null,null,null,null,null,null,null,null,null,null,null,null,"",null,null,null,null,"",null,null,null,null,null,null,null,null,"",null,null,null,null,null,null,null,null,null,"",null,null,null,null,null,null,null,null,null,null,null,null,"",null,null,"",null,null,null,null,null,null,null,null,"",null,null,null,null,""]
[null,null,null,null,null,null,null,"",null,null,null,null,"",null,null,null,null,null,null,null,null,null,null,null,null,null,null,"",null,null,null,null,"",null,null,null,null,null,null,null,null,"",null,null,null,null,null,null,null,null,null,"",null,null,null,null,null,null,null,null,null,null,null,null,"",null,null,"",null,null,null,null,null,null,null,null,"",null,null,null,null,""]
[null,null,null,null,null,null,null,"",null,null,null,null,"",null,null,null,null,null,null,null,null,null,null,null,null,null,null,"",null,null,null,null,"",null,null,null,null,null,null,null,null,"",null,null,null,null,null,null,null,null,null,"",null,null,null,null,null,null,null,null,null,null,null,null,"",null,null,"",null,null,null,null,null,null,null,null,"",null,null,null,null,""]
[null,null,null,null,null,null,null,"",null,null,null,null,"",null,null,null,null,null,null,null,null,null,null,null,null,null,null,"",null,null,null,null,"",null,null,null,null,null,null,null,null,"",null,null,null,null,null,null,null,null,null,"",null,null,null,null,null,null,null,null,null,null,null,null,"",null,null,"",null,null,null,null,null,null,null,null,"",null,null,null,null,""]
[null,null,null,null,null,null,null,"",null,null,null,null,"",null,null,null,null,null,null,null,null,null,null,null,null,null,null,"",null,null,null,null,"",null,null,null,null,null,null,null,null,"",null,null,null,null,null,null,null,null,null,"",null,null,null,null,null,null,null,null,null,null,null,null,"",null,null,"",null,null,null,null,null,null,null,null,"",null,null,null,null,""]
[null,null,null,null,null,null,null,"",null,null,null,null,"",null,null,null,null,null,null,null,null,null,null,null,null,null,null,"",null,null,null,null,"",null,null,null,null,null,null,null,null,"",null,null,null,null,null,null,null,null,null,"",null,null,null,null,null,null,null,null,null,null,null,null,"",null,null,"",null,null,null,null,null,null,null,null,"",null,null,null,null,""]
[null,null,null,null,null,null,null,"",null,null,null,null,"",null,null,null,null,null,null,null,null,null,null,null,null,null,null,"",null,null,null,null,"",null,null,null,null,null,null,null,null,"",null,null,null,null,null,null,null,null,null,"",null,null,null,null,null,null,null,null,null,null,null,null,"",null,null,"",null,null,null,null,null,null,null,null,"",null,null,null,null,""]
[null,null,null,null,null,null,null,"",null,null,null,null,"",null,null,null,null,null,null,null,null,null,null,null,null,null,null,"",null,null,null,null,"",null,null,null,null,null,null,null,null,"",null,null,null,null,null,null,null,null,null,"",null,null,null,null,null,null,null,null,null,null,null,null,"",null,null,"",null,null,null,null,null,null,null,null,"",null,null,null,null,""]
[null,null,null,null,null,null,null,"",null,null,null,null,"",null,null,null,null,null,null,null,null,null,null,null,null,null,null,"",null,null,null,null,"",null,null,null,null,null,null,null,null,"",null,null,null,null,null,null,null,null,null,"",null,null,null,null,null,null,null,null,null,null,null,null,"",null,null,"",null,null,null,null,null,null,null,null,"",null,null,null,null,""]
[null,null,null,null,null,null,null,"",null,null,null,null,"",null,null,null,null,null,null,null,null,null,null,null,null,null,null,"",null,null,null,null,"",null,null,null,null,null,null,null,null,"",null,null,null,null,null,null,null,null,null,"",null,null,null,null,null,null,null,null,null,null,null,null,"",null,null,"",null,null,null,null,null,null,null,null,"",null,null,null,null,""]
[null,null,null,null,null,null,null,"",null,null,null,null,"",null,null,null,null,null,null,null,null,null,null,null,null,null,null,"",null,null,null,null,"",null,null,null,null,null,null,null,null,"",null,null,null,null,null,null,null,null,null,"",null,null,null,null,null,null,null,null,null,null,null,null,"",null,null,"",null,null,null,null,null,null,null,null,"",null,null,null,null,""]
[null,null,null,null,null,null,null,"",null,null,null,null,"",null,null,null,null,null,null,null,null,null,null,null,null,null,null,"",null,null,null,null,"",null,null,null,null,null,null,null,null,"",null,null,null,null,null,null,null,null,null,"",null,null,null,null,null,null,null,null,null,null,null,null,"",null,null,"",null,null,null,null,null,null,null,null,"",null,null,null,null,""]
[null,null,null,null,null,null,null,"",null,null,null,null,"",null,null,null,null,null,null,null,null,null,null,null,null,null,null,"",null,null,null,null,"",null,null,null,null,null,null,null,null,"",null,null,null,null,null,null,null,null,null,"",null,null,null,null,null,null,null,null,null,null,null,null,"",null,null,"",null,null,null,null,null,null,null,null,"",null,null,null,null,""]
[null,null,null,null,null,null,null,"",null,null,null,null,"",null,null,null,null,null,null,null,null,null,null,null,null,null,null,"",null,null,null,null,"",null,null,null,null,null,null,null,null,"",null,null,null,null,null,null,null,null,null,"",null,null,null,null,null,null,null,null,null,null,null,null,"",null,null,"",null,null,null,null,null,null,null,null,"",null,null,null,null,""]
[null,null,null,null,null,null,null,"",null,null,null,null,"",null,null,null,null,null,null,null,null,null,null,null,null,null,null,"",null,null,null,null,"",null,null,null,null,null,null,null,null,"",null,null,null,null,null,null,null,null,null,"",null,null,null,null,null,null,null,null,null,null,null,null,"",null,null,"",null,null,null,null,null,null,null,null,"",null,null,null,null,""]
[null,null,null,null,null,null,null,{"$f":"IF(G66<>\"\",(TODAY()-G66),\"\")","v":""},null,null,null,null,{"$f":"IF(L66<>\"\",DATE(YEAR(L66),MONTH(L66),DAY(L66)+45),\"\")","v":""},null,null,null,null,null,null,null,null,null,null,null,null,null,null,"",null,null,null,null,"",null,null,null,null,null,null,null,null,"",null,null,null,null,null,null,null,null,null,{"$f":"IF(BN66<>\"\",BN66,\"\")","v":""},null,null,null,null,null,null,null,null,null,null,null,null,"",null,null,"",null,null,null,null,null,null,null,null,"",null,null,null,null,""]
[null,null,null,null,null,null,null,"",null,null,null,null,"",null,null,null,null,null,null,null,null,null,null,null,null,null,null,{"$f":"IF(AA67<>\"\",(AA67-L67),\"\")","v":""},null,null,null,null,{"$f":"IF(AF67<>\"\",(AF67-L67),\"\")","v":""},null,null,null,null,null,null,null,null,{"$f":"IF(AF67<>\"\",AF67,\"\")","v":""},null,null,null,null,null,null,null,null,null,"",null,null,null,null,null,null,null,null,null,null,null,null,{"$f":"IF(G67<>\"\",(G67+915),\"\")","v":""},null,null,{"$f":"IF(BV67=\"Yes\",(DATE(YEAR(G67)+3,MONTH(G67),DAY(G67))-BO67),\"\")","v":""},null,null,null,null,null,null,null,null,{"$f":"IF(BV67=\"Yes\",(DATE(YEAR(G67)+3,MONTH(G67),DAY(G67))-BX67),IF(BV67=\"Yes, but family declined\",(DATE(YEAR(G67)+3,MONTH(G67),DAY(G67))-BX67),\"\"))","v":""},null,null,null,null,{"$f":"IF(BV67=\"Yes\",(DATE(YEAR(G67)+3,MONTH(G67),DAY(G67))-CC67),IF(BV67=\"Yes, but family declined\",(DATE(YEAR(G67)+3,MONTH(G67),DAY(G67))-CC67),\"\"))","v":""}]
[null,null,null,null,null,null,null,"",null,null,null,null,"",null,null,null,null,null,null,null,null,null,null,null,null,null,null,"",null,null,null,null,"",null,null,null,null,null,null,null,null,"",null,null,null,null,null,null,null,null,null,"",null,null,null,null,null,null,null,null,null,null,null,null,"",null,null,"",null,null,null,null,null,null,null,null,"",null,null,null,null,""]
[null,null,null,null,null,null,null,"",null,null,null,null,"",null,null,null,null,null,null,null,null,null,null,null,null,null,null,"",null,null,null,null,"",null,null,null,null,null,null,null,null,"",null,null,null,null,null,null,null,null,null,"",null,null,null,null,null,null,null,null,null,null,null,null,"",null,null,"",null,null,null,null,null,null,null,null,"",null,null,null,null,""]
[null,null,null,null,null,null,null,"",null,null,null,null,"",null,null,null,null,null,null,null,null,null,null,null,null,null,null,"",null,null,null,null,"",null,null,null,null,null,null,null,null,"",null,null,null,null,null,null,null,null,null,"",null,null,null,null,null,null,null,null,null,null,null,null,"",null,null,"",null,null,null,null,null,null,null,null,"",null,null,null,null,""]
[null,null,null,null,null,null,null,"",null,null,null,null,"",null,null,null,null,null,null,null,null,null,null,null,null,null,null,"",null,null,null,null,"",null,null,null,null,null,null,null,null,"",null,null,null,null,null,null,null,null,null,"",null,null,null,null,null,null,null,null,null,null,null,null,"",null,null,"",null,null,null,null,null,null,null,null,"",null,null,null,null,""]
[null,null,null,null,null,null,null,"",null,null,null,null,"",null,null,null,null,null,null,null,null,null,null,null,null,null,null,"",null,null,null,null,"",null,null,null,null,null,null,null,null,"",null,null,null,null,null,null,null,null,null,"",null,null,null,null,null,null,null,null,null,null,null,null,"",null,null,"",null,null,null,null,null,null,null,null,"",null,null,null,null,""]
[null,null,null,null,null,null,null,"",null,null,null,null,"",null,null,null,null,null,null,null,null,null,null,null,null,null,null,"",null,null,null,null,"",null,null,null,null,null,null,null,null,"",null,null,null,null,null,null,null,null,null,"",null,null,null,null,null,null,null,null,null,null,null,null,"",null,null,"",null,null,null,null,null,null,null,null,"",null,null,null,null,""]
[null,null,null,null,null,null,null,"",null,null,null,null,"",null,null,null,null,null,null,null,null,null,null,null,null,null,null,"",null,null,null,null,"",null,null,null,null,null,null,null,null,"",null,null,null,null,null,null,null,null,null,"",null,null,null,null,null,null,null,null,null,null,null,null,"",null,null,"",null,null,null,null,null,null,null,null,"",null,null,null,null,""]
[null,null,null,null,null,null,null,"",null,null,null,null,"",null,null,null,null,null,null,null,null,null,null,null,null,null,null,"",null,null,null,null,"",null,null,null,null,null,null,null,null,"",null,null,null,null,null,null,null,null,null,"",null,null,null,null,null,null,null,null,null,null,null,null,"",null,null,"",null,null,null,null,null,null,null,null,"",null,null,null,null,""]
[null,null,null,null,null,null,null,"",null,null,null,null,"",null,null,null,null,null,null,null,null,null,null,null,null,null,null,"",null,null,null,null,"",null,null,null,null,null,null,null,null,"",null,null,null,null,null,null,null,null,null,"",null,null,null,null,null,null,null,null,null,null,null,null,"",null,null,"",null,null,null,null,null,null,null,null,"",null,null,null,null,""]
[null,null,null,null,null,null,null,"",null,null,null,null,"",null,null,null,null,null,null,null,null,null,null,null,null,null,null,"",null,null,null,null,"",null,null,null,null,null,null,null,null,"",null,null,null,null,null,null,null,null,null,"",null,null,null,null,null,null,null,null,null,null,null,null,"",null,null,"",null,null,null,null,null,null,null,null,"",null,null,null,null,""]
[null,null,null,null,null,null,null,"",null,null,null,null,"",null,null,null,null,null,null,null,null,null,null,null,null,null,null,"",null,null,null,null,"",null,null,null,null,null,null,null,null,"",null,null,null,null,null,null,null,null,null,"",null,null,null,null,null,null,null,null,null,null,null,null,"",null,null,"",null,null,null,null,null,null,null,null,"",null,null,null,null,""]
[null,null,null,null,null,null,null,"",null,null,null,null,"",null,null,null,null,null,null,null,null,null,null,null,null,null,null,"",null,null,null,null,"",null,null,null,null,null,null,null,null,"",null,null,null,null,null,null,null,null,null,"",null,null,null,null,null,null,null,null,null,null,null,null,"",null,null,"",null,null,null,null,null,null,null,null,"",null,null,null,null,""]
[null,null,null,null,null,null,null,"",null,null,null,null,"",null,null,null,null,null,null,null,null,null,null,null,null,null,null,"",null,null,null,null,"",null,null,null,null,null,null,null,null,"",null,null,null,null,null,null,null,null,null,"",null,null,null,null,null,null,null,null,null,null,null,null,"",null,null,"",null,null,null,null,null,null,null,null,"",null,null,null,null,""]
[null,null,null,null,null,null,null,"",null,null,null,null,"",null,null,null,null,null,null,null,null,null,null,null,null,null,null,"",null,null,null,null,"",null,null,null,null,null,null,null,null,"",null,null,null,null,null,null,null,null,null,"",null,null,null,null,null,null,null,null,null,null,null,null,"",null,null,"",null,null,null,null,null,null,null,null,"",null,null,null,null,""]
[null,null,null,null,null,null,null,"",null,null,null,null,"",null,null,null,null,null,null,null,null,null,null,null,null,null,null,"",null,null,null,null,"",null,null,null,null,null,null,null,null,"",null,null,null,null,null,null,null,null,null,"",null,null,null,null,null,null,null,null,null,null,null,null,"",null,null,"",null,null,null,null,null,null,null,null,"",null,null,null,null,""]
[null,null,null,null,null,null,null,"",null,null,null,null,"",null,null,null,null,null,null,null,null,null,null,null,null,null,null,"",null,null,null,null,"",null,null,null,null,null,null,null,null,"",null,null,null,null,null,null,null,null,null,"",null,null,null,null,null,null,null,null,null,null,null,null,"",null,null,"",null,null,null,null,null,null,null,null,"",null,null,null,null,""]
[null,null,null,null,null,null,null,"",null,null,null,null,"",null,null,null,null,null,null,null,null,null,null,null,null,null,null,"",null,null,null,null,"",null,null,null,null,null,null,null,null,"",null,null,null,null,null,null,null,null,null,"",null,null,null,null,null,null,null,null,null,null,null,null,"",null,null,"",null,null,null,null,null,null,null,null,"",null,null,null,null,""]
[null,null,null,null,null,null,null,"",null,null,null,null,"",null,null,null,null,null,null,null,null,null,null,null,null,null,null,"",null,null,null,null,"",null,null,null,null,null,null,null,null,"",null,null,null,null,null,null,null,null,null,"",null,null,null,null,null,null,null,null,null,null,null,null,"",null,null,"",null,null,null,null,null,null,null,null,"",null,null,null,null,""]
[null,null,null,null,null,null,null,"",null,null,null,null,"",null,null,null,null,null,null,null,null,null,null,null,null,null,null,"",null,null,null,null,"",null,null,null,null,null,null,null,null,"",null,null,null,null,null,null,null,null,null,"",null,null,null,null,null,null,null,null,null,null,null,null,"",null,null,"",null,null,null,null,null,null,null,null,"",null,null,null,null,""]
[null,null,null,null,null,null,null,"",null,null,null,null,"",null,null,null,null,null,null,null,null,null,null,null,null,null,null,"",null,null,null,null,"",null,null,null,null,null,null,null,null,"",null,null,null,null,null,null,null,null,null,"",null,null,null,null,null,null,null,null,null,null,null,null,"",null,null,"",null,null,null,null,null,null,null,null,"",null,null,null,null,""]
[null,null,null,null,null,null,null,"",null,null,null,null,"",null,null,null,null,null,null,null,null,null,null,null,null,null,null,"",null,null,null,null,"",null,null,null,null,null,null,null,null,"",null,null,null,null,null,null,null,null,null,"",null,null,null,null,null,null,null,null,null,null,null,null,"",null,null,"",null,null,null,null,null,null,null,null,"",null,null,null,null,""]
[null,null,null,null,null,null,null,"",null,null,null,null,"",null,null,null,null,null,null,null,null,null,null,null,null,null,null,"",null,null,null,null,"",null,null,null,null,null,null,null,null,"",null,null,null,null,null,null,null,null,null,"",null,null,null,null,null,null,null,null,null,null,null,null,"",null,null,"",null,null,null,null,null,null,null,null,"",null,null,null,null,""]
[null,null,null,null,null,null,null,"",null,null,null,null,"",null,null,null,null,null,null,null,null,null,null,null,null,null,null,"",null,null,null,null,"",null,null,null,null,null,null,null,null,"",null,null,null,null,null,null,null,null,null,"",null,null,null,null,null,null,null,null,null,null,null,null,"",null,null,"",null,null,null,null,null,null,null,null,"",null,null,null,null,""]
[null,null,null,null,null,null,null,"",null,null,null,null,"",null,null,null,null,null,null,null,null,null,null,null,null,null,null,"",null,null,null,null,"",null,null,null,null,null,null,null,null,"",null,null,null,null,null,null,null,null,null,"",null,null,null,null,null,null,null,null,null,null,null,null,"",null,null,"",null,null,null,null,null,null,null,null,"",null,null,null,null,""]
[null,null,null,null,null,null,null,"",null,null,null,null,"",null,null,null,null,null,null,null,null,null,null,null,null,null,null,"",null,null,null,null,"",null,null,null,null,null,null,null,null,"",null,null,null,null,null,null,null,null,null,"",null,null,null,null,null,null,null,null,null,null,null,null,"",null,null,"",null,null,null,null,null,null,null,null,"",null,null,null,null,""]
[null,null,null,null,null,null,null,"",null,null,null,null,"",null,null,null,null,null,null,null,null,null,null,null,null,null,null,"",null,null,null,null,"",null,null,null,null,null,null,null,null,"",null,null,null,null,null,null,null,null,null,"",null,null,null,null,null,null,null,null,null,null,null,null,"",null,null,"",null,null,null,null,null,null,null,null,"",null,null,null,null,""]
[null,null,null,null,null,null,null,"",null,null,null,null,"",null,null,null,null,null,null,null,null,null,null,null,null,null,null,"",null,null,null,null,"",null,null,null,null,null,null,null,null,"",null,null,null,null,null,null,null,null,null,"",null,null,null,null,null,null,null,null,null,null,null,null,"",null,null,"",null,null,null,null,null,null,null,null,"",null,null,null,null,""]
[null,null,null,null,null,null,null,"",null,null,null,null,"",null,null,null,null,null,null,null,null,null,null,null,null,null,null,"",null,null,null,null,"",null,null,null,null,null,null,null,null,"",null,null,null,null,null,null,null,null,null,"",null,null,null,null,null,null,null,null,null,null,null,null,"",null,null,"",null,null,null,null,null,null,null,null,"",null,null,null,null,""]
[null,null,null,null,null,null,null,"",null,null,null,null,"",null,null,null,null,null,null,null,null,null,null,null,null,null,null,"",null,null,null,null,"",null,null,null,null,null,null,null,null,"",null,null,null,null,null,null,null,null,null,"",null,null,null,null,null,null,null,null,null,null,null,null,"",null,null,"",null,null,null,null,null,null,null,null,"",null,null,null,null,""]
[null,null,null,null,null,null,null,"",null,null,null,null,"",null,null,null,null,null,null,null,null,null,null,null,null,null,null,"",null,null,null,null,"",null,null,null,null,null,null,null,null,"",null,null,null,null,null,null,null,null,null,"",null,null,null,null,null,null,null,null,null,null,null,null,"",null,null,"",null,null,null,null,null,null,null,null,"",null,null,null,null,""]
[null,null,null,null,null,null,null,"",null,null,null,null,"",null,null,null,null,null,null,null,null,null,null,null,null,null,null,"",null,null,null,null,"",null,null,null,null,null,null,null,null,"",null,null,null,null,null,null,null,null,null,"",null,null,null,null,null,null,null,null,null,null,null,null,"",null,null,"",null,null,null,null,null,null,null,null,"",null,null,null,null,""]
[null,null,null,null,null,null,null,"",null,null,null,null,"",null,null,null,null,null,null,null,null,null,null,null,null,null,null,"",null,null,null,null,"",null,null,null,null,null,null,null,null,"",null,null,null,null,null,null,null,null,null,"",null,null,null,null,null,null,null,null,null,null,null,null,"",null,null,"",null,null,null,null,null,null,null,null,"",null,null,null,null,""]
[null,null,null,null,null,null,null,"",null,null,null,null,"",null,null,null,null,null,null,null,null,null,null,null,null,null,null,"",null,null,null,null,"",null,null,null,null,null,null,null,null,"",null,null,null,null,null,null,null,null,null,"",null,null,null,null,null,null,null,null,null,null,null,null,"",null,null,"",null,null,null,null,null,null,null,null,"",null,null,null,null,""]
[null,null,null,null,null,null,null,"",null,null,null,null,"",null,null,null,null,null,null,null,null,null,null,null,null,null,null,"",null,null,null,null,"",null,null,null,null,null,null,null,null,"",null,null,null,null,null,null,null,null,null,"",null,null,null,null,null,null,null,null,null,null,null,null,"",null,null,"",null,null,null,null,null,null,null,null,"",null,null,null,null,""]
[null,null,null,null,null,null,null,"",null,null,null,null,"",null,null,null,null,null,null,null,null,null,null,null,null,null,null,"",null,null,null,null,"",null,null,null,null,null,null,null,null,"",null,null,null,null,null,null,null,null,null,"",null,null,null,null,null,null,null,null,null,null,null,null,"",null,null,"",null,null,null,null,null,null,null,null,"",null,null,null,null,""]
[null,null,null,null,null,null,null,"",null,null,null,null,"",null,null,null,null,null,null,null,null,null,null,null,null,null,null,"",null,null,null,null,"",null,null,null,null,null,null,null,null,"",null,null,null,null,null,null,null,null,null,"",null,null,null,null,null,null,null,null,null,null,null,null,"",null,null,"",null,null,null,null,null,null,null,null,"",null,null,null,null,""]
[null,null,null,null,null,null,null,"",null,null,null,null,"",null,null,null,null,null,null,null,null,null,null,null,null,null,null,"",null,null,null,null,"",null,null,null,null,null,null,null,null,"",null,null,null,null,null,null,null,null,null,"",null,null,null,null,null,null,null,null,null,null,null,null,"",null,null,"",null,null,null,null,null,null,null,null,"",null,null,null,null,""]
[null,null,null,null,null,null,null,"",null,null,null,null,"",null,null,null,null,null,null,null,null,null,null,null,null,null,null,"",null,null,null,null,"",null,null,null,null,null,null,null,null,"",null,null,null,null,null,null,null,null,null,"",null,null,null,null,null,null,null,null,null,null,null,null,"",null,null,"",null,null,null,null,null,null,null,null,"",null,null,null,null,""]
[null,null,null,null,null,null,null,"",null,null,null,null,"",null,null,null,null,null,null,null,null,null,null,null,null,null,null,"",null,null,null,null,"",null,null,null,null,null,null,null,null,"",null,null,null,null,null,null,null,null,null,"",null,null,null,null,null,null,null,null,null,null,null,null,"",null,null,"",null,null,null,null,null,null,null,null,"",null,null,null,null,""]
[null,null,null,null,null,null,null,"",null,null,null,null,"",null,null,null,null,null,null,null,null,null,null,null,null,null,null,"",null,null,null,null,"",null,null,null,null,null,null,null,null,"",null,null,null,null,null,null,null,null,null,"",null,null,null,null,null,null,null,null,null,null,null,null,"",null,null,"",null,null,null,null,null,null,null,null,"",null,null,null,null,""]
[null,null,null,null,null,null,null,"",null,null,null,null,"",null,null,null,null,null,null,null,null,null,null,null,null,null,null,"",null,null,null,null,"",null,null,null,null,null,null,null,null,"",null,null,null,null,null,null,null,null,null,"",null,null,null,null,null,null,null,null,null,null,null,null,"",null,null,"",null,null,null,null,null,null,null,null,"",null,null,null,null,""]
[null,null,null,null,null,null,null,"",null,null,null,null,"",null,null,null,null,null,null,null,null,null,null,null,null,null,null,"",null,null,null,null,"",null,null,null,null,null,null,null,null,"",null,null,null,null,null,null,null,null,null,"",null,null,null,null,null,null,null,null,null,null,null,null,"",null,null,"",null,null,null,null,null,null,null,null,"",null,null,null,null,""]
[null,null,null,null,null,null,null,"",null,null,null,null,"",null,null,null,null,null,null,null,null,null,null,null,null,null,null,"",null,null,null,null,"",null,null,null,null,null,null,null,null,"",null,null,null,null,null,null,null,null,null,"",null,null,null,null,null,null,null,null,null,null,null,null,"",null,null,"",null,null,null,null,null,null,null,null,"",null,null,null,null,""]
[null,null,null,null,null,null,null,"",null,null,null,null,"",null,null,null,null,null,null,null,null,null,null,null,null,null,null,"",null,null,null,null,"",null,null,null,null,null,null,null,null,"",null,null,null,null,null,null,null,null,null,"",null,null,null,null,null,null,null,null,null,null,null,null,"",null,null,"",null,null,null,null,null,null,null,null,"",null,null,null,null,""]
[null,null,null,null,null,null,null,"",null,null,null,null,"",null,null,null,null,null,null,null,null,null,null,null,null,null,null,"",null,null,null,null,"",null,null,null,null,null,null,null,null,"",null,null,null,null,null,null,null,null,null,"",null,null,null,null,null,null,null,null,null,null,null,null,"",null,null,"",null,null,null,null,null,null,null,null,"",null,null,null,null,""]
[null,null,null,null,null,null,null,"",null,null,null,null,"",null,null,null,null,null,null,null,null,null,null,null,null,null,null,"",null,null,null,null,"",null,null,null,null,null,null,null,null,"",null,null,null,null,null,null,null,null,null,"",null,null,null,null,null,null,null,null,null,null,null,null,"",null,null,"",null,null,null,null,null,null,null,null,"",null,null,null,null,""]
[null,null,null,null,null,null,null,"",null,null,null,null,"",null,null,null,null,null,null,null,null,null,null,null,null,null,null,"",null,null,null,null,"",null,null,null,null,null,null,null,null,"",null,null,null,null,null,null,null,null,null,"",null,null,null,null,null,null,null,null,null,null,null,null,"",null,null,"",null,null,null,null,null,null,null,null,"",null,null,null,null,""]
[null,null,null,null,null,null,null,"",null,null,null,null,"",null,null,null,null,null,null,null,null,null,null,null,null,null,null,"",null,null,null,null,"",null,null,null,null,null,null,null,null,"",null,null,null,null,null,null,null,null,null,"",null,null,null,null,null,null,null,null,null,null,null,null,"",null,null,"",null,null,null,null,null,null,null,null,"",null,null,null,null,""]
[null,null,null,null,null,null,null,"",null,null,null,null,"",null,null,null,null,null,null,null,null,null,null,null,null,null,null,"",null,null,null,null,"",null,null,null,null,null,null,null,null,"",null,null,null,null,null,null,null,null,null,"",null,null,null,null,null,null,null,null,null,null,null,null,"",null,null,"",null,null,null,null,null,null,null,null,"",null,null,null,null,""]
[null,null,null,null,null,null,null,"",null,null,null,null,"",null,null,null,null,null,null,null,null,null,null,null,null,null,null,"",null,null,null,null,"",null,null,null,null,null,null,null,null,"",null,null,null,null,null,null,null,null,null,"",null,null,null,null,null,null,null,null,null,null,null,null,"",null,null,"",null,null,null,null,null,null,null,null,"",null,null,null,null,""]
[null,null,null,null,null,null,null,"",null,null,null,null,"",null,null,null,null,null,null,null,null,null,null,null,null,null,null,"",null,null,null,null,"",null,null,null,null,null,null,null,null,"",null,null,null,null,null,null,null,null,null,"",null,null,null,null,null,null,null,null,null,null,null,null,"",null,null,"",null,null,null,null,null,null,null,null,"",null,null,null,null,""]
[null,null,null,null,null,null,null,"",null,null,null,null,"",null,null,null,null,null,null,null,null,null,null,null,null,null,null,"",null,null,null,null,"",null,null,null,null,null,null,null,null,"",null,null,null,null,null,null,null,null,null,"",null,null,null,null,null,null,null,null,null,null,null,null,"",null,null,"",null,null,null,null,null,null,null,null,"",null,null,null,null,""]
[null,null,null,null,null,null,null,"",null,null,null,null,"",null,null,null,null,null,null,null,null,null,null,null,null,null,null,"",null,null,null,null,"",null,null,null,null,null,null,null,null,"",null,null,null,null,null,null,null,null,null,"",null,null,null,null,null,null,null,null,null,null,null,null,"",null,null,"",null,null,null,null,null,null,null,null,"",null,null,null,null,""]
[null,null,null,null,null,null,null,"",null,null,null,null,"",null,null,null,null,null,null,null,null,null,null,null,null,null,null,"",null,null,null,null,"",null,null,null,null,null,null,null,null,"",null,null,null,null,null,null,null,null,null,"",null,null,null,null,null,null,null,null,null,null,null,null,"",null,null,"",null,null,null,null,null,null,null,null,"",null,null,null,null,""]
[null,null,null,null,null,null,null,"",null,null,null,null,"",null,null,null,null,null,null,null,null,null,null,null,null,null,null,"",null,null,null,null,"",null,null,null,null,null,null,null,null,"",null,null,null,null,null,null,null,null,null,"",null,null,null,null,null,null,null,null,null,null,null,null,"",null,null,"",null,null,null,null,null,null,null,null,"",null,null,null,null,""]
[null,null,null,null,null,null,null,"",null,null,null,null,"",null,null,null,null,null,null,null,null,null,null,null,null,null,null,"",null,null,null,null,"",null,null,null,null,null,null,null,null,"",null,null,null,null,null,null,null,null,null,"",null,null,null,null,null,null,null,null,null,null,null,null,"",null,null,"",null,null,null,null,null,null,null,null,"",null,null,null,null,""]
[null,null,null,null,null,null,null,"",null,null,null,null,"",null,null,null,null,null,null,null,null,null,null,null,null,null,null,"",null,null,null,null,"",null,null,null,null,null,null,null,null,"",null,null,null,null,null,null,null,null,null,"",null,null,null,null,null,null,null,null,null,null,null,null,"",null,null,"",null,null,null,null,null,null,null,null,"",null,null,null,null,""]
[null,null,null,null,null,null,null,"",null,null,null,null,"",null,null,null,null,null,null,null,null,null,null,null,null,null,null,"",null,null,null,null,"",null,null,null,null,null,null,null,null,"",null,null,null,null,null,null,null,null,null,"",null,null,null,null,null,null,null,null,null,null,null,null,"",null,null,"",null,null,null,null,null,null,null,null,"",null,null,null,null,""]
[null,null,null,null,null,null,null,"",null,null,null,null,"",null,null,null,null,null,null,null,null,null,null,null,null,null,null,"",null,null,null,null,"",null,null,null,null,null,null,null,null,"",null,null,null,null,null,null,null,null,null,"",null,null,null,null,null,null,null,null,null,null,null,null,"",null,null,"",null,null,null,null,null,null,null,null,"",null,null,null,null,""]
[null,null,null,null,null,null,null,"",null,null,null,null,"",null,null,null,null,null,null,null,null,null,null,null,null,null,null,"",null,null,null,null,"",null,null,null,null,null,null,null,null,"",null,null,null,null,null,null,null,null,null,"",null,null,null,null,null,null,null,null,null,null,null,null,"",null,null,"",null,null,null,null,null,null,null,null,"",null,null,null,null,""]
[null,null,null,null,null,null,null,"",null,null,null,null,"",null,null,null,null,null,null,null,null,null,null,null,null,null,null,"",null,null,null,null,"",null,null,null,null,null,null,null,null,"",null,null,null,null,null,null,null,null,null,"",null,null,null,null,null,null,null,null,null,null,null,null,"",null,null,"",null,null,null,null,null,null,null,null,"",null,null,null,null,""]
[null,null,null,null,null,null,null,"",null,null,null,null,"",null,null,null,null,null,null,null,null,null,null,null,null,null,null,"",null,null,null,null,"",null,null,null,null,null,null,null,null,"",null,null,null,null,null,null,null,null,null,"",null,null,null,null,null,null,null,null,null,null,null,null,"",null,null,"",null,null,null,null,null,null,null,null,"",null,null,null,null,""]
[null,null,null,null,null,null,null,{"$f":"IF(G130<>\"\",(TODAY()-G130),\"\")","v":""},null,null,null,null,{"$f":"IF(L130<>\"\",DATE(YEAR(L130),MONTH(L130),DAY(L130)+45),\"\")","v":""},null,null,null,null,null,null,null,null,null,null,null,null,null,null,"",null,null,null,null,"",null,null,null,null,null,null,null,null,"",null,null,null,null,null,null,null,null,null,{"$f":"IF(BN130<>\"\",BN130,\"\")","v":""},null,null,null,null,null,null,null,null,null,null,null,null,"",null,null,"",null,null,null,null,null,null,null,null,"",null,null,null,null,""]
[null,null,null,null,null,null,null,"",null,null,null,null,"",null,null,null,null,null,null,null,null,null,null,null,null,null,null,{"$f":"IF(AA131<>\"\",(AA131-L131),\"\")","v":""},null,null,null,null,{"$f":"IF(AF131<>\"\",(AF131-L131),\"\")","v":""},null,null,null,null,null,null,null,null,{"$f":"IF(AF131<>\"\",AF131,\"\")","v":""},null,null,null,null,null,null,null,null,null,"",null,null,null,null,null,null,null,null,null,null,null,null,{"$f":"IF(G131<>\"\",(G131+915),\"\")","v":""},null,null,{"$f":"IF(BV131=\"Yes\",(DATE(YEAR(G131)+3,MONTH(G131),DAY(G131))-BO131),\"\")","v":""},null,null,null,null,null,null,null,null,{"$f":"IF(BV131=\"Yes\",(DATE(YEAR(G131)+3,MONTH(G131),DAY(G131))-BX131),IF(BV131=\"Yes, but family declined\",(DATE(YEAR(G131)+3,MONTH(G131),DAY(G131))-BX131),\"\"))","v":""},null,null,null,null,{"$f":"IF(BV131=\"Yes\",(DATE(YEAR(G131)+3,MONTH(G131),DAY(G131))-CC131),IF(BV131=\"Yes, but family declined\",(DATE(YEAR(G131)+3,MONTH(G131),DAY(G131))-CC131),\"\"))","v":""}]
[null,null,null,null,null,null,null,"",null,null,null,null,"",null,null,null,null,null,null,null,null,null,null,null,null,null,null,"",null,null,null,null,"",null,null,null,null,null,null,null,null,"",null,null,null,null,null,null,null,null,null,"",null,null,null,null,null,null,null,null,null,null,null,null,"",null,null,"",null,null,null,null,null,null,null,null,"",null,null,null,null,""]
[null,null,null,null,null,null,null,"",null,null,null,null,"",null,null,null,null,null,null,null,null,null,null,null,null,null,null,"",null,null,null,null,"",null,null,null,null,null,null,null,null,"",null,null,null,null,null,null,null,null,null,"",null,null,null,null,null,null,null,null,null,null,null,null,"",null,null,"",null,null,null,null,null,null,null,null,"",null,null,null,null,""]
[null,null,null,null,null,null,null,"",null,null,null,null,"",null,null,null,null,null,null,null,null,null,null,null,null,null,null,"",null,null,null,null,"",null,null,null,null,null,null,null,null,"",null,null,null,null,null,null,null,null,null,"",null,null,null,null,null,null,null,null,null,null,null,null,"",null,null,"",null,null,null,null,null,null,null,null,"",null,null,null,null,""]
[null,null,null,null,null,null,null,"",null,null,null,null,"",null,null,null,null,null,null,null,null,null,null,null,null,null,null,"",null,null,null,null,"",null,null,null,null,null,null,null,null,"",null,null,null,null,null,null,null,null,null,"",null,null,null,null,null,null,null,null,null,null,null,null,"",null,null,"",null,null,null,null,null,null,null,null,"",null,null,null,null,""]
[null,null,null,null,null,null,null,"",null,null,null,null,"",null,null,null,null,null,null,null,null,null,null,null,null,null,null,"",null,null,null,null,"",null,null,null,null,null,null,null,null,"",null,null,null,null,null,null,null,null,null,"",null,null,null,null,null,null,null,null,null,null,null,null,"",null,null,"",null,null,null,null,null,null,null,null,"",null,null,null,null,""]
[null,null,null,null,null,null,null,"",null,null,null,null,"",null,null,null,null,null,null,null,null,null,null,null,null,null,null,"",null,null,null,null,"",null,null,null,null,null,null,null,null,"",null,null,null,null,null,null,null,null,null,"",null,null,null,null,null,null,null,null,null,null,null,null,"",null,null,"",null,null,null,null,null,null,null,null,"",null,null,null,null,""]
[null,null,null,null,null,null,null,"",null,null,null,null,"",null,null,null,null,null,null,null,null,null,null,null,null,null,null,"",null,null,null,null,"",null,null,null,null,null,null,null,null,"",null,null,null,null,null,null,null,null,null,"",null,null,null,null,null,null,null,null,null,null,null,null,"",null,null,"",null,null,null,null,null,null,null,null,"",null,null,null,null,""]
[null,null,null,null,null,null,null,"",null,null,null,null,"",null,null,null,null,null,null,null,null,null,null,null,null,null,null,"",null,null,null,null,"",null,null,null,null,null,null,null,null,"",null,null,null,null,null,null,null,null,null,"",null,null,null,null,null,null,null,null,null,null,null,null,"",null,null,"",null,null,null,null,null,null,null,null,"",null,null,null,null,""]
[null,null,null,null,null,null,null,"",null,null,null,null,"",null,null,null,null,null,null,null,null,null,null,null,null,null,null,"",null,null,null,null,"",null,null,null,null,null,null,null,null,"",null,null,null,null,null,null,null,null,null,"",null,null,null,null,null,null,null,null,null,null,null,null,"",null,null,"",null,null,null,null,null,null,null,null,"",null,null,null,null,""]
[null,null,null,null,null,null,null,"",null,null,null,null,"",null,null,null,null,null,null,null,null,null,null,null,null,null,null,"",null,null,null,null,"",null,null,null,null,null,null,null,null,"",null,null,null,null,null,null,null,null,null,"",null,null,null,null,null,null,null,null,null,null,null,null,"",null,null,"",null,null,null,null,null,null,null,null,"",null,null,null,null,""]
[null,null,null,null,null,null,null,"",null,null,null,null,"",null,null,null,null,null,null,null,null,null,null,null,null,null,null,"",null,null,null,null,"",null,null,null,null,null,null,null,null,"",null,null,null,null,null,null,null,null,null,"",null,null,null,null,null,null,null,null,null,null,null,null,"",null,null,"",null,null,null,null,null,null,null,null,"",null,null,null,null,""]
[null,null,null,null,null,null,null,"",null,null,null,null,"",null,null,null,null,null,null,null,null,null,null,null,null,null,null,"",null,null,null,null,"",null,null,null,null,null,null,null,null,"",null,null,null,null,null,null,null,null,null,"",null,null,null,null,null,null,null,null,null,null,null,null,"",null,null,"",null,null,null,null,null,null,null,null,"",null,null,null,null,""]
[null,null,null,null,null,null,null,"",null,null,null,null,"",null,null,null,null,null,null,null,null,null,null,null,null,null,null,"",null,null,null,null,"",null,null,null,null,null,null,null,null,"",null,null,null,null,null,null,null,null,null,"",null,null,null,null,null,null,null,null,null,null,null,null,"",null,null,"",null,null,null,null,null,null,null,null,"",null,null,null,null,""]
[null,null,null,null,null,null,null,"",null,null,null,null,"",null,null,null,null,null,null,null,null,null,null,null,null,null,null,"",null,null,null,null,"",null,null,null,null,null,null,null,null,"",null,null,null,null,null,null,null,null,null,"",null,null,null,null,null,null,null,null,null,null,null,null,"",null,null,"",null,null,null,null,null,null,null,null,"",null,null,null,null,""]
[null,null,null,null,null,null,null,"",null,null,null,null,"",null,null,null,null,null,null,null,null,null,null,null,null,null,null,"",null,null,null,null,"",null,null,null,null,null,null,null,null,"",null,null,null,null,null,null,null,null,null,"",null,null,null,null,null,null,null,null,null,null,null,null,"",null,null,"",null,null,null,null,null,null,null,null,"",null,null,null,null,""]
[null,null,null,null,null,null,null,"",null,null,null,null,"",null,null,null,null,null,null,null,null,null,null,null,null,null,null,"",null,null,null,null,"",null,null,null,null,null,null,null,null,"",null,null,null,null,null,null,null,null,null,"",null,null,null,null,null,null,null,null,null,null,null,null,"",null,null,"",null,null,null,null,null,null,null,null,"",null,null,null,null,""]
[null,null,null,null,null,null,null,"",null,null,null,null,"",null,null,null,null,null,null,null,null,null,null,null,null,null,null,"",null,null,null,null,"",null,null,null,null,null,null,null,null,"",null,null,null,null,null,null,null,null,null,"",null,null,null,null,null,null,null,null,null,null,null,null,"",null,null,"",null,null,null,null,null,null,null,null,"",null,null,null,null,""]
[null,null,null,null,null,null,null,"",null,null,null,null,"",null,null,null,null,null,null,null,null,null,null,null,null,null,null,"",null,null,null,null,"",null,null,null,null,null,null,null,null,"",null,null,null,null,null,null,null,null,null,"",null,null,null,null,null,null,null,null,null,null,null,null,"",null,null,"",null,null,null,null,null,null,null,null,"",null,null,null,null,""]
[null,null,null,null,null,null,null,"",null,null,null,null,"",null,null,null,null,null,null,null,null,null,null,null,null,null,null,"",null,null,null,null,"",null,null,null,null,null,null,null,null,"",null,null,null,null,null,null,null,null,null,"",null,null,null,null,null,null,null,null,null,null,null,null,"",null,null,"",null,null,null,null,null,null,null,null,"",null,null,null,null,""]
[null,null,null,null,null,null,null,"",null,null,null,null,"",null,null,null,null,null,null,null,null,null,null,null,null,null,null,"",null,null,null,null,"",null,null,null,null,null,null,null,null,"",null,null,null,null,null,null,null,null,null,"",null,null,null,null,null,null,null,null,null,null,null,null,"",null,null,"",null,null,null,null,null,null,null,null,"",null,null,null,null,""]
[null,null,null,null,null,null,null,"",null,null,null,null,"",null,null,null,null,null,null,null,null,null,null,null,null,null,null,"",null,null,null,null,"",null,null,null,null,null,null,null,null,"",null,null,null,null,null,null,null,null,null,"",null,null,null,null,null,null,null,null,null,null,null,null,"",null,null,"",null,null,null,null,null,null,null,null,"",null,null,null,null,""]
[null,null,null,null,null,null,null,"",null,null,null,null,"",null,null,null,null,null,null,null,null,null,null,null,null,null,null,"",null,null,null,null,"",null,null,null,null,null,null,null,null,"",null,null,null,null,null,null,null,null,null,"",null,null,null,null,null,null,null,null,null,null,null,null,"",null,null,"",null,null,null,null,null,null,null,null,"",null,null,null,null,""]
[null,null,null,null,null,null,null,"",null,null,null,null,"",null,null,null,null,null,null,null,null,null,null,null,null,null,null,"",null,null,null,null,"",null,null,null,null,null,null,null,null,"",null,null,null,null,null,null,null,null,null,"",null,null,null,null,null,null,null,null,null,null,null,null,"",null,null,"",null,null,null,null,null,null,null,null,"",null,null,null,null,""]
[null,null,null,null,null,null,null,"",null,null,null,null,"",null,null,null,null,null,null,null,null,null,null,null,null,null,null,"",null,null,null,null,"",null,null,null,null,null,null,null,null,"",null,null,null,null,null,null,null,null,null,"",null,null,null,null,null,null,null,null,null,null,null,null,"",null,null,"",null,null,null,null,null,null,null,null,"",null,null,null,null,""]
[null,null,null,null,null,null,null,"",null,null,null,null,"",null,null,null,null,null,null,null,null,null,null,null,null,null,null,"",null,null,null,null,"",null,null,null,null,null,null,null,null,"",null,null,null,null,null,null,null,null,null,"",null,null,null,null,null,null,null,null,null,null,null,null,"",null,null,"",null,null,null,null,null,null,null,null,"",null,null,null,null,""]
[null,null,null,null,null,null,null,"",null,null,null,null,"",null,null,null,null,null,null,null,null,null,null,null,null,null,null,"",null,null,null,null,"",null,null,null,null,null,null,null,null,"",null,null,null,null,null,null,null,null,null,"",null,null,null,null,null,null,null,null,null,null,null,null,"",null,null,"",null,null,null,null,null,null,null,null,"",null,null,null,null,""]
[null,null,null,null,null,null,null,"",null,null,null,null,"",null,null,null,null,null,null,null,null,null,null,null,null,null,null,"",null,null,null,null,"",null,null,null,null,null,null,null,null,"",null,null,null,null,null,null,null,null,null,"",null,null,null,null,null,null,null,null,null,null,null,null,"",null,null,"",null,null,null,null,null,null,null,null,"",null,null,null,null,""]
[null,null,null,null,null,null,null,"",null,null,null,null,"",null,null,null,null,null,null,null,null,null,null,null,null,null,null,"",null,null,null,null,"",null,null,null,null,null,null,null,null,"",null,null,null,null,null,null,null,null,null,"",null,null,null,null,null,null,null,null,null,null,null,null,"",null,null,"",null,null,null,null,null,null,null,null,"",null,null,null,null,""]
[null,null,null,null,null,null,null,"",null,null,null,null,"",null,null,null,null,null,null,null,null,null,null,null,null,null,null,"",null,null,null,null,"",null,null,null,null,null,null,null,null,"",null,null,null,null,null,null,null,null,null,"",null,null,null,null,null,null,null,null,null,null,null,null,"",null,null,"",null,null,null,null,null,null,null,null,"",null,null,null,null,""]
[null,null,null,null,null,null,null,"",null,null,null,null,"",null,null,null,null,null,null,null,null,null,null,null,null,null,null,"",null,null,null,null,"",null,null,null,null,null,null,null,null,"",null,null,null,null,null,null,null,null,null,"",null,null,null,null,null,null,null,null,null,null,null,null,"",null,null,"",null,null,null,null,null,null,null,null,"",null,null,null,null,""]
[null,null,null,null,null,null,null,"",null,null,null,null,"",null,null,null,null,null,null,null,null,null,null,null,null,null,null,"",null,null,null,null,"",null,null,null,null,null,null,null,null,"",null,null,null,null,null,null,null,null,null,"",null,null,null,null,null,null,null,null,null,null,null,null,"",null,null,"",null,null,null,null,null,null,null,null,"",null,null,null,null,""]
[null,null,null,null,null,null,null,"",null,null,null,null,"",null,null,null,null,null,null,null,null,null,null,null,null,null,null,"",null,null,null,null,"",null,null,null,null,null,null,null,null,"",null,null,null,null,null,null,null,null,null,"",null,null,null,null,null,null,null,null,null,null,null,null,"",null,null,"",null,null,null,null,null,null,null,null,"",null,null,null,null,""]
[null,null,null,null,null,null,null,"",null,null,null,null,"",null,null,null,null,null,null,null,null,null,null,null,null,null,null,"",null,null,null,null,"",null,null,null,null,null,null,null,null,"",null,null,null,null,null,null,null,null,null,"",null,null,null,null,null,null,null,null,null,null,null,null,"",null,null,"",null,null,null,null,null,null,null,null,"",null,null,null,null,""]
[null,null,null,null,null,null,null,"",null,null,null,null,"",null,null,null,null,null,null,null,null,null,null,null,null,null,null,"",null,null,null,null,"",null,null,null,null,null,null,null,null,"",null,null,null,null,null,null,null,null,null,"",null,null,null,null,null,null,null,null,null,null,null,null,"",null,null,"",null,null,null,null,null,null,null,null,"",null,null,null,null,""]
[null,null,null,null,null,null,null,"",null,null,null,null,"",null,null,null,null,null,null,null,null,null,null,null,null,null,null,"",null,null,null,null,"",null,null,null,null,null,null,null,null,"",null,null,null,null,null,null,null,null,null,"",null,null,null,null,null,null,null,null,null,null,null,null,"",null,null,"",null,null,null,null,null,null,null,null,"",null,null,null,null,""]
[null,null,null,null,null,null,null,"",null,null,null,null,"",null,null,null,null,null,null,null,null,null,null,null,null,null,null,"",null,null,null,null,"",null,null,null,null,null,null,null,null,"",null,null,null,null,null,null,null,null,null,"",null,null,null,null,null,null,null,null,null,null,null,null,"",null,null,"",null,null,null,null,null,null,null,null,"",null,null,null,null,""]
[null,null,null,null,null,null,null,"",null,null,null,null,"",null,null,null,null,null,null,null,null,null,null,null,null,null,null,"",null,null,null,null,"",null,null,null,null,null,null,null,null,"",null,null,null,null,null,null,null,null,null,"",null,null,null,null,null,null,null,null,null,null,null,null,"",null,null,"",null,null,null,null,null,null,null,null,"",null,null,null,null,""]
[null,null,null,null,null,null,null,"",null,null,null,null,"",null,null,null,null,null,null,null,null,null,null,null,null,null,null,"",null,null,null,null,"",null,null,null,null,null,null,null,null,"",null,null,null,null,null,null,null,null,null,"",null,null,null,null,null,null,null,null,null,null,null,null,"",null,null,"",null,null,null,null,null,null,null,null,"",null,null,null,null,""]
[null,null,null,null,null,null,null,"",null,null,null,null,"",null,null,null,null,null,null,null,null,null,null,null,null,null,null,"",null,null,null,null,"",null,null,null,null,null,null,null,null,"",null,null,null,null,null,null,null,null,null,"",null,null,null,null,null,null,null,null,null,null,null,null,"",null,null,"",null,null,null,null,null,null,null,null,"",null,null,null,null,""]
[null,null,null,null,null,null,null,"",null,null,null,null,"",null,null,null,null,null,null,null,null,null,null,null,null,null,null,"",null,null,null,null,"",null,null,null,null,null,null,null,null,"",null,null,null,null,null,null,null,null,null,"",null,null,null,null,null,null,null,null,null,null,null,null,"",null,null,"",null,null,null,null,null,null,null,null,"",null,null,null,null,""]
[null,null,null,null,null,null,null,"",null,null,null,null,"",null,null,null,null,null,null,null,null,null,null,null,null,null,null,"",null,null,null,null,"",null,null,null,null,null,null,null,null,"",null,null,null,null,null,null,null,null,null,"",null,null,null,null,null,null,null,null,null,null,null,null,"",null,null,"",null,null,null,null,null,null,null,null,"",null,null,null,null,""]
[null,null,null,null,null,null,null,"",null,null,null,null,"",null,null,null,null,null,null,null,null,null,null,null,null,null,null,"",null,null,null,null,"",null,null,null,null,null,null,null,null,"",null,null,null,null,null,null,null,null,null,"",null,null,null,null,null,null,null,null,null,null,null,null,"",null,null,"",null,null,null,null,null,null,null,null,"",null,null,null,null,""]
[null,null,null,null,null,null,null,"",null,null,null,null,"",null,null,null,null,null,null,null,null,null,null,null,null,null,null,"",null,null,null,null,"",null,null,null,null,null,null,null,null,"",null,null,null,null,null,null,null,null,null,"",null,null,null,null,null,null,null,null,null,null,null,null,"",null,null,"",null,null,null,null,null,null,null,null,"",null,null,null,null,""]
[null,null,null,null,null,null,null,"",null,null,null,null,"",null,null,null,null,null,null,null,null,null,null,null,null,null,null,"",null,null,null,null,"",null,null,null,null,null,null,null,null,"",null,null,null,null,null,null,null,null,null,"",null,null,null,null,null,null,null,null,null,null,null,null,"",null,null,"",null,null,null,null,null,null,null,null,"",null,null,null,null,""]
[null,null,null,null,null,null,null,"",null,null,null,null,"",null,null,null,null,null,null,null,null,null,null,null,null,null,null,"",null,null,null,null,"",null,null,null,null,null,null,null,null,"",null,null,null,null,null,null,null,null,null,"",null,null,null,null,null,null,null,null,null,null,null,null,"",null,null,"",null,null,null,null,null,null,null,null,"",null,null,null,null,""]
[null,null,null,null,null,null,null,"",null,null,null,null,"",null,null,null,null,null,null,null,null,null,null,null,null,null,null,"",null,null,null,null,"",null,null,null,null,null,null,null,null,"",null,null,null,null,null,null,null,null,null,"",null,null,null,null,null,null,null,null,null,null,null,null,"",null,null,"",null,null,null,null,null,null,null,null,"",null,null,null,null,""]
[null,null,null,null,null,null,null,"",null,null,null,null,"",null,null,null,null,null,null,null,null,null,null,null,null,null,null,"",null,null,null,null,"",null,null,null,null,null,null,null,null,"",null,null,null,null,null,null,null,null,null,"",null,null,null,null,null,null,null,null,null,null,null,null,"",null,null,"",null,null,null,null,null,null,null,null,"",null,null,null,null,""]
[null,null,null,null,null,null,null,"",null,null,null,null,"",null,null,null,null,null,null,null,null,null,null,null,null,null,null,"",null,null,null,null,"",null,null,null,null,null,null,null,null,"",null,null,null,null,null,null,null,null,null,"",null,null,null,null,null,null,null,null,null,null,null,null,"",null,null,"",null,null,null,null,null,null,null,null,"",null,null,null,null,""]
[null,null,null,null,null,null,null,"",null,null,null,null,"",null,null,null,null,null,null,null,null,null,null,null,null,null,null,"",null,null,null,null,"",null,null,null,null,null,null,null,null,"",null,null,null,null,null,null,null,null,null,"",null,null,null,null,null,null,null,null,null,null,null,null,"",null,null,"",null,null,null,null,null,null,null,null,"",null,null,null,null,""]
[null,null,null,null,null,null,null,"",null,null,null,null,"",null,null,null,null,null,null,null,null,null,null,null,null,null,null,"",null,null,null,null,"",null,null,null,null,null,null,null,null,"",null,null,null,null,null,null,null,null,null,"",null,null,null,null,null,null,null,null,null,null,null,null,"",null,null,"",null,null,null,null,null,null,null,null,"",null,null,null,null,""]
[null,null,null,null,null,null,null,"",null,null,null,null,"",null,null,null,null,null,null,null,null,null,null,null,null,null,null,"",null,null,null,null,"",null,null,null,null,null,null,null,null,"",null,null,null,null,null,null,null,null,null,"",null,null,null,null,null,null,null,null,null,null,null,null,"",null,null,"",null,null,null,null,null,null,null,null,"",null,null,null,null,""]
[null,null,null,null,null,null,null,"",null,null,null,null,"",null,null,null,null,null,null,null,null,null,null,null,null,null,null,"",null,null,null,null,"",null,null,null,null,null,null,null,null,"",null,null,null,null,null,null,null,null,null,"",null,null,null,null,null,null,null,null,null,null,null,null,"",null,null,"",null,null,null,null,null,null,null,null,"",null,null,null,null,""]
[null,null,null,null,null,null,null,"",null,null,null,null,"",null,null,null,null,null,null,null,null,null,null,null,null,null,null,"",null,null,null,null,"",null,null,null,null,null,null,null,null,"",null,null,null,null,null,null,null,null,null,"",null,null,null,null,null,null,null,null,null,null,null,null,"",null,null,"",null,null,null,null,null,null,null,null,"",null,null,null,null,""]
[null,null,null,null,null,null,null,"",null,null,null,null,"",null,null,null,null,null,null,null,null,null,null,null,null,null,null,"",null,null,null,null,"",null,null,null,null,null,null,null,null,"",null,null,null,null,null,null,null,null,null,"",null,null,null,null,null,null,null,null,null,null,null,null,"",null,null,"",null,null,null,null,null,null,null,null,"",null,null,null,null,""]
[null,null,null,null,null,null,null,"",null,null,null,null,"",null,null,null,null,null,null,null,null,null,null,null,null,null,null,"",null,null,null,null,"",null,null,null,null,null,null,null,null,"",null,null,null,null,null,null,null,null,null,"",null,null,null,null,null,null,null,null,null,null,null,null,"",null,null,"",null,null,null,null,null,null,null,null,"",null,null,null,null,""]
[null,null,null,null,null,null,null,"",null,null,null,null,"",null,null,null,null,null,null,null,null,null,null,null,null,null,null,"",null,null,null,null,"",null,null,null,null,null,null,null,null,"",null,null,null,null,null,null,null,null,null,"",null,null,null,null,null,null,null,null,null,null,null,null,"",null,null,"",null,null,null,null,null,null,null,null,"",null,null,null,null,""]
[null,null,null,null,null,null,null,"",null,null,null,null,"",null,null,null,null,null,null,null,null,null,null,null,null,null,null,"",null,null,null,null,"",null,null,null,null,null,null,null,null,"",null,null,null,null,null,null,null,null,null,"",null,null,null,null,null,null,null,null,null,null,null,null,"",null,null,"",null,null,null,null,null,null,null,null,"",null,null,null,null,""]
[null,null,null,null,null,null,null,"",null,null,null,null,"",null,null,null,null,null,null,null,null,null,null,null,null,null,null,"",null,null,null,null,"",null,null,null,null,null,null,null,null,"",null,null,null,null,null,null,null,null,null,"",null,null,null,null,null,null,null,null,null,null,null,null,"",null,null,"",null,null,null,null,null,null,null,null,"",null,null,null,null,""]
[null,null,null,null,null,null,null,"",null,null,null,null,"",null,null,null,null,null,null,null,null,null,null,null,null,null,null,"",null,null,null,null,"",null,null,null,null,null,null,null,null,"",null,null,null,null,null,null,null,null,null,"",null,null,null,null,null,null,null,null,null,null,null,null,"",null,null,"",null,null,null,null,null,null,null,null,"",null,null,null,null,""]
[null,null,null,null,null,null,null,"",null,null,null,null,"",null,null,null,null,null,null,null,null,null,null,null,null,null,null,"",null,null,null,null,"",null,null,null,null,null,null,null,null,"",null,null,null,null,null,null,null,null,null,"",null,null,null,null,null,null,null,null,null,null,null,null,"",null,null,"",null,null,null,null,null,null,null,null,"",null,null,null,null,""]
[null,null,null,null,null,null,null,"",null,null,null,null,"",null,null,null,null,null,null,null,null,null,null,null,null,null,null,"",null,null,null,null,"",null,null,null,null,null,null,null,null,"",null,null,null,null,null,null,null,null,null,"",null,null,null,null,null,null,null,null,null,null,null,null,"",null,null,"",null,null,null,null,null,null,null,null,"",null,null,null,null,""]
[null,null,null,null,null,null,null,"",null,null,null,null,"",null,null,null,null,null,null,null,null,null,null,null,null,null,null,"",null,null,null,null,"",null,null,null,null,null,null,null,null,"",null,null,null,null,null,null,null,null,null,"",null,null,null,null,null,null,null,null,null,null,null,null,"",null,null,"",null,null,null,null,null,null,null,null,"",null,null,null,null,""]
[null,null,null,null,null,null,null,{"$f":"IF(G194<>\"\",(TODAY()-G194),\"\")","v":""},null,null,null,null,{"$f":"IF(L194<>\"\",DATE(YEAR(L194),MONTH(L194),DAY(L194)+45),\"\")","v":""},null,null,null,null,null,null,null,null,null,null,null,null,null,null,"",null,null,null,null,"",null,null,null,null,null,null,null,null,"",null,null,null,null,null,null,null,null,null,{"$f":"IF(BN194<>\"\",BN194,\"\")","v":""},null,null,null,null,null,null,null,null,null,null,null,null,"",null,null,"",null,null,null,null,null,null,null,null,"",null,null,null,null,""]
[null,null,null,null,null,null,null,"",null,null,null,null,"",null,null,null,null,null,null,null,null,null,null,null,null,null,null,{"$f":"IF(AA195<>\"\",(AA195-L195),\"\")","v":""},null,null,null,null,{"$f":"IF(AF195<>\"\",(AF195-L195),\"\")","v":""},null,null,null,null,null,null,null,null,{"$f":"IF(AF195<>\"\",AF195,\"\")","v":""},null,null,null,null,null,null,null,null,null,"",null,null,null,null,null,null,null,null,null,null,null,null,{"$f":"IF(G195<>\"\",(G195+915),\"\")","v":""},null,null,{"$f":"IF(BV195=\"Yes\",(DATE(YEAR(G195)+3,MONTH(G195),DAY(G195))-BO195),\"\")","v":""},null,null,null,null,null,null,null,null,{"$f":"IF(BV195=\"Yes\",(DATE(YEAR(G195)+3,MONTH(G195),DAY(G195))-BX195),IF(BV195=\"Yes, but family declined\",(DATE(YEAR(G195)+3,MONTH(G195),DAY(G195))-BX195),\"\"))","v":""},null,null,null,null,{"$f":"IF(BV195=\"Yes\",(DATE(YEAR(G195)+3,MONTH(G195),DAY(G195))-CC195),IF(BV195=\"Yes, but family declined\",(DATE(YEAR(G195)+3,MONTH(G195),DAY(G195))-CC195),\"\"))","v":""}]
[null,null,null,null,null,null,null,"",null,null,null,null,"",null,null,null,null,null,null,null,null,null,null,null,null,null,null,"",null,null,null,null,"",null,null,null,null,null,null,null,null,"",null,null,null,null,null,null,null,null,null,"",null,null,null,null,null,null,null,null,null,null,null,null,"",null,null,"",null,null,null,null,null,null,null,null,"",null,null,null,null,""]
[null,null,null,null,null,null,null,"",null,null,null,null,"",null,null,null,null,null,null,null,null,null,null,null,null,null,null,"",null,null,null,null,"",null,null,null,null,null,null,null,null,"",null,null,null,null,null,null,null,null,null,"",null,null,null,null,null,null,null,null,null,null,null,null,"",null,null,"",null,null,null,null,null,null,null,null,"",null,null,null,null,""]
[null,null,null,null,null,null,null,"",null,null,null,null,"",null,null,null,null,null,null,null,null,null,null,null,null,null,null,"",null,null,null,null,"",null,null,null,null,null,null,null,null,"",null,null,null,null,null,null,null,null,null,"",null,null,null,null,null,null,null,null,null,null,null,null,"",null,null,"",null,null,null,null,null,null,null,null,"",null,null,null,null,""]
[null,null,null,null,null,null,null,"",null,null,null,null,"",null,null,null,null,null,null,null,null,null,null,null,null,null,null,"",null,null,null,null,"",null,null,null,null,null,null,null,null,"",null,null,null,null,null,null,null,null,null,"",null,null,null,null,null,null,null,null,null,null,null,null,"",null,null,"",null,null,null,null,null,null,null,null,"",null,null,null,null,""]
[null,null,null,null,null,null,null,"",null,null,null,null,"",null,null,null,null,null,null,null,null,null,null,null,null,null,null,"",null,null,null,null,"",null,null,null,null,null,null,null,null,"",null,null,null,null,null,null,null,null,null,"",null,null,null,null,null,null,null,null,null,null,null,null,"",null,null,"",null,null,null,null,null,null,null,null,"",null,null,null,null,""]
[null,null,null,null,null,null,null,"",null,null,null,null,"",null,null,null,null,null,null,null,null,null,null,null,null,null,null,"",null,null,null,null,"",null,null,null,null,null,null,null,null,"",null,null,null,null,null,null,null,null,null,"",null,null,null,null,null,null,null,null,null,null,null,null,"",null,null,"",null,null,null,null,null,null,null,null,"",null,null,null,null,""]
[null,null,null,null,null,null,null,"",null,null,null,null,"",null,null,null,null,null,null,null,null,null,null,null,null,null,null,"",null,null,null,null,"",null,null,null,null,null,null,null,null,"",null,null,null,null,null,null,null,null,null,"",null,null,null,null,null,null,null,null,null,null,null,null,"",null,null,"",null,null,null,null,null,null,null,null,"",null,null,null,null,""]
[null,null,null,null,null,null,null,"",null,null,null,null,"",null,null,null,null,null,null,null,null,null,null,null,null,null,null,"",null,null,null,null,"",null,null,null,null,null,null,null,null,"",null,null,null,null,null,null,null,null,null,"",null,null,null,null,null,null,null,null,null,null,null,null,"",null,null,"",null,null,null,null,null,null,null,null,"",null,null,null,null,""]
[null,null,null,null,null,null,null,"",null,null,null,null,"",null,null,null,null,null,null,null,null,null,null,null,null,null,null,"",null,null,null,null,"",null,null,null,null,null,null,null,null,"",null,null,null,null,null,null,null,null,null,"",null,null,null,null,null,null,null,null,null,null,null,null,"",null,null,"",null,null,null,null,null,null,null,null,"",null,null,null,null,""]
[null,null,null,null,null,null,null,"",null,null,null,null,"",null,null,null,null,null,null,null,null,null,null,null,null,null,null,"",null,null,null,null,"",null,null,null,null,null,null,null,null,"",null,null,null,null,null,null,null,null,null,"",null,null,null,null,null,null,null,null,null,null,null,null,"",null,null,"",null,null,null,null,null,null,null,null,"",null,null,null,null,""]
[null,null,null,null,null,null,null,"",null,null,null,null,"",null,null,null,null,null,null,null,null,null,null,null,null,null,null,"",null,null,null,null,"",null,null,null,null,null,null,null,null,"",null,null,null,null,null,null,null,null,null,"",null,null,null,null,null,null,null,null,null,null,null,null,"",null,null,"",null,null,null,null,null,null,null,null,"",null,null,null,null,""]
[null,null,null,null,null,null,null,"",null,null,null,null,"",null,null,null,null,null,null,null,null,null,null,null,null,null,null,"",null,null,null,null,"",null,null,null,null,null,null,null,null,"",null,null,null,null,null,null,null,null,null,"",null,null,null,null,null,null,null,null,null,null,null,null,"",null,null,"",null,null,null,null,null,null,null,null,"",null,null,null,null,""]
[null,null,null,null,null,null,null,"",null,null,null,null,"",null,null,null,null,null,null,null,null,null,null,null,null,null,null,"",null,null,null,null,"",null,null,null,null,null,null,null,null,"",null,null,null,null,null,null,null,null,null,"",null,null,null,null,null,null,null,null,null,null,null,null,"",null,null,"",null,null,null,null,null,null,null,null,"",null,null,null,null,""]
[null,null,null,null,null,null,null,"",null,null,null,null,"",null,null,null,null,null,null,null,null,null,null,null,null,null,null,"",null,null,null,null,"",null,null,null,null,null,null,null,null,"",null,null,null,null,null,null,null,null,null,"",null,null,null,null,null,null,null,null,null,null,null,null,"",null,null,"",null,null,null,null,null,null,null,null,"",null,null,null,null,""]
[null,null,null,null,null,null,null,"",null,null,null,null,"",null,null,null,null,null,null,null,null,null,null,null,null,null,null,"",null,null,null,null,"",null,null,null,null,null,null,null,null,"",null,null,null,null,null,null,null,null,null,"",null,null,null,null,null,null,null,null,null,null,null,null,"",null,null,"",null,null,null,null,null,null,null,null,"",null,null,null,null,""]
[null,null,null,null,null,null,null,"",null,null,null,null,"",null,null,null,null,null,null,null,null,null,null,null,null,null,null,"",null,null,null,null,"",null,null,null,null,null,null,null,null,"",null,null,null,null,null,null,null,null,null,"",null,null,null,null,null,null,null,null,null,null,null,null,"",null,null,"",null,null,null,null,null,null,null,null,"",null,null,null,null,""]
[null,null,null,null,null,null,null,"",null,null,null,null,"",null,null,null,null,null,null,null,null,null,null,null,null,null,null,"",null,null,null,null,"",null,null,null,null,null,null,null,null,"",null,null,null,null,null,null,null,null,null,"",null,null,null,null,null,null,null,null,null,null,null,null,"",null,null,"",null,null,null,null,null,null,null,null,"",null,null,null,null,""]
[null,null,null,null,null,null,null,"",null,null,null,null,"",null,null,null,null,null,null,null,null,null,null,null,null,null,null,"",null,null,null,null,"",null,null,null,null,null,null,null,null,"",null,null,null,null,null,null,null,null,null,"",null,null,null,null,null,null,null,null,null,null,null,null,"",null,null,"",null,null,null,null,null,null,null,null,"",null,null,null,null,""]
[null,null,null,null,null,null,null,"",null,null,null,null,"",null,null,null,null,null,null,null,null,null,null,null,null,null,null,"",null,null,null,null,"",null,null,null,null,null,null,null,null,"",null,null,null,null,null,null,null,null,null,"",null,null,null,null,null,null,null,null,null,null,null,null,"",null,null,"",null,null,null,null,null,null,null,null,"",null,null,null,null,""]
[null,null,null,null,null,null,null,"",null,null,null,null,"",null,null,null,null,null,null,null,null,null,null,null,null,null,null,"",null,null,null,null,"",null,null,null,null,null,null,null,null,"",null,null,null,null,null,null,null,null,null,"",null,null,null,null,null,null,null,null,null,null,null,null,"",null,null,"",null,null,null,null,null,null,null,null,"",null,null,null,null,""]
[null,null,null,null,null,null,null,"",null,null,null,null,"",null,null,null,null,null,null,null,null,null,null,null,null,null,null,"",null,null,null,null,"",null,null,null,null,null,null,null,null,"",null,null,null,null,null,null,null,null,null,"",null,null,null,null,null,null,null,null,null,null,null,null,"",null,null,"",null,null,null,null,null,null,null,null,"",null,null,null,null,""]
[null,null,null,null,null,null,null,"",null,null,null,null,"",null,null,null,null,null,null,null,null,null,null,null,null,null,null,"",null,null,null,null,"",null,null,null,null,null,null,null,null,"",null,null,null,null,null,null,null,null,null,"",null,null,null,null,null,null,null,null,null,null,null,null,"",null,null,"",null,null,null,null,null,null,null,null,"",null,null,null,null,""]
[null,null,null,null,null,null,null,"",null,null,null,null,"",null,null,null,null,null,null,null,null,null,null,null,null,null,null,"",null,null,null,null,"",null,null,null,null,null,null,null,null,"",null,null,null,null,null,null,null,null,null,"",null,null,null,null,null,null,null,null,null,null,null,null,"",null,null,"",null,null,null,null,null,null,null,null,"",null,null,null,null,""]
[null,null,null,null,null,null,null,"",null,null,null,null,"",null,null,null,null,null,null,null,null,null,null,null,null,null,null,"",null,null,null,null,"",null,null,null,null,null,null,null,null,"",null,null,null,null,null,null,null,null,null,"",null,null,null,null,null,null,null,null,null,null,null,null,"",null,null,"",null,null,null,null,null,null,null,null,"",null,null,null,null,""]
[null,null,null,null,null,null,null,"",null,null,null,null,"",null,null,null,null,null,null,null,null,null,null,null,null,null,null,"",null,null,null,null,"",null,null,null,null,null,null,null,null,"",null,null,null,null,null,null,null,null,null,"",null,null,null,null,null,null,null,null,null,null,null,null,"",null,null,"",null,null,null,null,null,null,null,null,"",null,null,null,null,""]
[null,null,null,null,null,null,null,"",null,null,null,null,"",null,null,null,null,null,null,null,null,null,null,null,null,null,null,"",null,null,null,null,"",null,null,null,null,null,null,null,null,"",null,null,null,null,null,null,null,null,null,"",null,null,null,null,null,null,null,null,null,null,null,null,"",null,null,"",null,null,null,null,null,null,null,null,"",null,null,null,null,""]
[null,null,null,null,null,null,null,"",null,null,null,null,"",null,null,null,null,null,null,null,null,null,null,null,null,null,null,"",null,null,null,null,"",null,null,null,null,null,null,null,null,"",null,null,null,null,null,null,null,null,null,"",null,null,null,null,null,null,null,null,null,null,null,null,"",null,null,"",null,null,null,null,null,null,null,null,"",null,null,null,null,""]
[null,null,null,null,null,null,null,"",null,null,null,null,"",null,null,null,null,null,null,null,null,null,null,null,null,null,null,"",null,null,null,null,"",null,null,null,null,null,null,null,null,"",null,null,null,null,null,null,null,null,null,"",null,null,null,null,null,null,null,null,null,null,null,null,"",null,null,"",null,null,null,null,null,null,null,null,"",null,null,null,null,""]
[null,null,null,null,null,null,null,"",null,null,null,null,"",null,null,null,null,null,null,null,null,null,null,null,null,null,null,"",null,null,null,null,"",null,null,null,null,null,null,null,null,"",null,null,null,null,null,null,null,null,null,"",null,null,null,null,null,null,null,null,null,null,null,null,"",null,null,"",null,null,null,null,null,null,null,null,"",null,null,null,null,""]
[null,null,null,null,null,null,null,"",null,null,null,null,"",null,null,null,null,null,null,null,null,null,null,null,null,null,null,"",null,null,null,null,"",null,null,null,null,null,null,null,null,"",null,null,null,null,null,null,null,null,null,"",null,null,null,null,null,null,null,null,null,null,null,null,"",null,null,"",null,null,null,null,null,null,null,null,"",null,null,null,null,""]
[null,null,null,null,null,null,null,"",null,null,null,null,"",null,null,null,null,null,null,null,null,null,null,null,null,null,null,"",null,null,null,null,"",null,null,null,null,null,null,null,null,"",null,null,null,null,null,null,null,null,null,"",null,null,null,null,null,null,null,null,null,null,null,null,"",null,null,"",null,null,null,null,null,null,null,null,"",null,null,null,null,""]
[null,null,null,null,null,null,null,"",null,null,null,null,"",null,null,null,null,null,null,null,null,null,null,null,null,null,null,"",null,null,null,null,"",null,null,null,null,null,null,null,null,"",null,null,null,null,null,null,null,null,null,"",null,null,null,null,null,null,null,null,null,null,null,null,"",null,null,"",null,null,null,null,null,null,null,null,"",null,null,null,null,""]
[null,null,null,null,null,null,null,"",null,null,null,null,"",null,null,null,null,null,null,null,null,null,null,null,null,null,null,"",null,null,null,null,"",null,null,null,null,null,null,null,null,"",null,null,null,null,null,null,null,null,null,"",null,null,null,null,null,null,null,null,null,null,null,null,"",null,null,"",null,null,null,null,null,null,null,null,"",null,null,null,null,""]
[null,null,null,null,null,null,null,"",null,null,null,null,"",null,null,null,null,null,null,null,null,null,null,null,null,null,null,"",null,null,null,null,"",null,null,null,null,null,null,null,null,"",null,null,null,null,null,null,null,null,null,"",null,null,null,null,null,null,null,null,null,null,null,null,"",null,null,"",null,null,null,null,null,null,null,null,"",null,null,null,null,""]
[null,null,null,null,null,null,null,"",null,null,null,null,"",null,null,null,null,null,null,null,null,null,null,null,null,null,null,"",null,null,null,null,"",null,null,null,null,null,null,null,null,"",null,null,null,null,null,null,null,null,null,"",null,null,null,null,null,null,null,null,null,null,null,null,"",null,null,"",null,null,null,null,null,null,null,null,"",null,null,null,null,""]
[null,null,null,null,null,null,null,"",null,null,null,null,"",null,null,null,null,null,null,null,null,null,null,null,null,null,null,"",null,null,null,null,"",null,null,null,null,null,null,null,null,"",null,null,null,null,null,null,null,null,null,"",null,null,null,null,null,null,null,null,null,null,null,null,"",null,null,"",null,null,null,null,null,null,null,null,"",null,null,null,null,""]
[null,null,null,null,null,null,null,"",null,null,null,null,"",null,null,null,null,null,null,null,null,null,null,null,null,null,null,"",null,null,null,null,"",null,null,null,null,null,null,null,null,"",null,null,null,null,null,null,null,null,null,"",null,null,null,null,null,null,null,null,null,null,null,null,"",null,null,"",null,null,null,null,null,null,null,null,"",null,null,null,null,""]
[null,null,null,null,null,null,null,"",null,null,null,null,"",null,null,null,null,null,null,null,null,null,null,null,null,null,null,"",null,null,null,null,"",null,null,null,null,null,null,null,null,"",null,null,null,null,null,null,null,null,null,"",null,null,null,null,null,null,null,null,null,null,null,null,"",null,null,"",null,null,null,null,null,null,null,null,"",null,null,null,null,""]
[null,null,null,null,null,null,null,"",null,null,null,null,"",null,null,null,null,null,null,null,null,null,null,null,null,null,null,"",null,null,null,null,"",null,null,null,null,null,null,null,null,"",null,null,null,null,null,null,null,null,null,"",null,null,null,null,null,null,null,null,null,null,null,null,"",null,null,"",null,null,null,null,null,null,null,null,"",null,null,null,null,""]
[null,null,null,null,null,null,null,"",null,null,null,null,"",null,null,null,null,null,null,null,null,null,null,null,null,null,null,"",null,null,null,null,"",null,null,null,null,null,null,null,null,"",null,null,null,null,null,null,null,null,null,"",null,null,null,null,null,null,null,null,null,null,null,null,"",null,null,"",null,null,null,null,null,null,null,null,"",null,null,null,null,""]
[null,null,null,null,null,null,null,"",null,null,null,null,"",null,null,null,null,null,null,null,null,null,null,null,null,null,null,"",null,null,null,null,"",null,null,null,null,null,null,null,null,"",null,null,null,null,null,null,null,null,null,"",null,null,null,null,null,null,null,null,null,null,null,null,"",null,null,"",null,null,null,null,null,null,null,null,"",null,null,null,null,""]
[null,null,null,null,null,null,null,"",null,null,null,null,"",null,null,null,null,null,null,null,null,null,null,null,null,null,null,"",null,null,null,null,"",null,null,null,null,null,null,null,null,"",null,null,null,null,null,null,null,null,null,"",null,null,null,null,null,null,null,null,null,null,null,null,"",null,null,"",null,null,null,null,null,null,null,null,"",null,null,null,null,""]
[null,null,null,null,null,null,null,"",null,null,null,null,"",null,null,null,null,null,null,null,null,null,null,null,null,null,null,"",null,null,null,null,"",null,null,null,null,null,null,null,null,"",null,null,null,null,null,null,null,null,null,"",null,null,null,null,null,null,null,null,null,null,null,null,"",null,null,"",null,null,null,null,null,null,null,null,"",null,null,null,null,""]
[null,null,null,null,null,null,null,"",null,null,null,null,"",null,null,null,null,null,null,null,null,null,null,null,null,null,null,"",null,null,null,null,"",null,null,null,null,null,null,null,null,"",null,null,null,null,null,null,null,null,null,"",null,null,null,null,null,null,null,null,null,null,null,null,"",null,null,"",null,null,null,null,null,null,null,null,"",null,null,null,null,""]
[null,null,null,null,null,null,null,"",null,null,null,null,"",null,null,null,null,null,null,null,null,null,null,null,null,null,null,"",null,null,null,null,"",null,null,null,null,null,null,null,null,"",null,null,null,null,null,null,null,null,null,"",null,null,null,null,null,null,null,null,null,null,null,null,"",null,null,"",null,null,null,null,null,null,null,null,"",null,null,null,null,""]
[null,null,null,null,null,null,null,"",null,null,null,null,"",null,null,null,null,null,null,null,null,null,null,null,null,null,null,"",null,null,null,null,"",null,null,null,null,null,null,null,null,"",null,null,null,null,null,null,null,null,null,"",null,null,null,null,null,null,null,null,null,null,null,null,"",null,null,"",null,null,null,null,null,null,null,null,"",null,null,null,null,""]
[null,null,null,null,null,null,null,"",null,null,null,null,"",null,null,null,null,null,null,null,null,null,null,null,null,null,null,"",null,null,null,null,"",null,null,null,null,null,null,null,null,"",null,null,null,null,null,null,null,null,null,"",null,null,null,null,null,null,null,null,null,null,null,null,"",null,null,"",null,null,null,null,null,null,null,null,"",null,null,null,null,""]
[null,null,null,null,null,null,null,"",null,null,null,null,"",null,null,null,null,null,null,null,null,null,null,null,null,null,null,"",null,null,null,null,"",null,null,null,null,null,null,null,null,"",null,null,null,null,null,null,null,null,null,"",null,null,null,null,null,null,null,null,null,null,null,null,"",null,null,"",null,null,null,null,null,null,null,null,"",null,null,null,null,""]
[null,null,null,null,null,null,null,"",null,null,null,null,"",null,null,null,null,null,null,null,null,null,null,null,null,null,null,"",null,null,null,null,"",null,null,null,null,null,null,null,null,"",null,null,null,null,null,null,null,null,null,"",null,null,null,null,null,null,null,null,null,null,null,null,"",null,null,"",null,null,null,null,null,null,null,null,"",null,null,null,null,""]
[null,null,null,null,null,null,null,"",null,null,null,null,"",null,null,null,null,null,null,null,null,null,null,null,null,null,null,"",null,null,null,null,"",null,null,null,null,null,null,null,null,"",null,null,null,null,null,null,null,null,null,"",null,null,null,null,null,null,null,null,null,null,null,null,"",null,null,"",null,null,null,null,null,null,null,null,"",null,null,null,null,""]
[null,null,null,null,null,null,null,"",null,null,null,null,"",null,null,null,null,null,null,null,null,null,null,null,null,null,null,"",null,null,null,null,"",null,null,null,null,null,null,null,null,"",null,null,null,null,null,null,null,null,null,"",null,null,null,null,null,null,null,null,null,null,null,null,"",null,null,"",null,null,null,null,null,null,null,null,"",null,null,null,null,""]
[null,null,null,null,null,null,null,"",null,null,null,null,"",null,null,null,null,null,null,null,null,null,null,null,null,null,null,"",null,null,null,null,"",null,null,null,null,null,null,null,null,"",null,null,null,null,null,null,null,null,null,"",null,null,null,null,null,null,null,null,null,null,null,null,"",null,null,"",null,null,null,null,null,null,null,null,"",null,null,null,null,""]
[null,null,null,null,null,null,null,"",null,null,null,null,"",null,null,null,null,null,null,null,null,null,null,null,null,null,null,"",null,null,null,null,"",null,null,null,null,null,null,null,null,"",null,null,null,null,null,null,null,null,null,"",null,null,null,null,null,null,null,null,null,null,null,null,"",null,null,"",null,null,null,null,null,null,null,null,"",null,null,null,null,""]
[null,null,null,null,null,null,null,"",null,null,null,null,"",null,null,null,null,null,null,null,null,null,null,null,null,null,null,"",null,null,null,null,"",null,null,null,null,null,null,null,null,"",null,null,null,null,null,null,null,null,null,"",null,null,null,null,null,null,null,null,null,null,null,null,"",null,null,"",null,null,null,null,null,null,null,null,"",null,null,null,null,""]
[null,null,null,null,null,null,null,"",null,null,null,null,"",null,null,null,null,null,null,null,null,null,null,null,null,null,null,"",null,null,null,null,"",null,null,null,null,null,null,null,null,"",null,null,null,null,null,null,null,null,null,"",null,null,null,null,null,null,null,null,null,null,null,null,"",null,null,"",null,null,null,null,null,null,null,null,"",null,null,null,null,""]
[null,null,null,null,null,null,null,"",null,null,null,null,"",null,null,null,null,null,null,null,null,null,null,null,null,null,null,"",null,null,null,null,"",null,null,null,null,null,null,null,null,"",null,null,null,null,null,null,null,null,null,"",null,null,null,null,null,null,null,null,null,null,null,null,"",null,null,"",null,null,null,null,null,null,null,null,"",null,null,null,null,""]
[null,null,null,null,null,null,null,"",null,null,null,null,"",null,null,null,null,null,null,null,null,null,null,null,null,null,null,"",null,null,null,null,"",null,null,null,null,null,null,null,null,"",null,null,null,null,null,null,null,null,null,"",null,null,null,null,null,null,null,null,null,null,null,null,"",null,null,"",null,null,null,null,null,null,null,null,"",null,null,null,null,""]
[null,null,null,null,null,null,null,"",null,null,null,null,"",null,null,null,null,null,null,null,null,null,null,null,null,null,null,"",null,null,null,null,"",null,null,null,null,null,null,null,null,"",null,null,null,null,null,null,null,null,null,"",null,null,null,null,null,null,null,null,null,null,null,null,"",null,null,"",null,null,null,null,null,null,null,null,"",null,null,null,null,""]
[null,null,null,null,null,null,null,"",null,null,null,null,"",null,null,null,null,null,null,null,null,null,null,null,null,null,null,"",null,null,null,null,"",null,null,null,null,null,null,null,null,"",null,null,null,null,null,null,null,null,null,"",null,null,null,null,null,null,null,null,null,null,null,null,"",null,null,"",null,null,null,null,null,null,null,null,"",null,null,null,null,""]
[null,null,null,null,null,null,null,"",null,null,null,null,"",null,null,null,null,null,null,null,null,null,null,null,null,null,null,"",null,null,null,null,"",null,null,null,null,null,null,null,null,"",null,null,null,null,null,null,null,null,null,"",null,null,null,null,null,null,null,null,null,null,null,null,"",null,null,"",null,null,null,null,null,null,null,null,"",null,null,null,null,""]
[null,null,null,null,null,null,null,"",null,null,null,null,"",null,null,null,null,null,null,null,null,null,null,null,null,null,null,"",null,null,null,null,"",null,null,null,null,null,null,null,null,"",null,null,null,null,null,null,null,null,null,"",null,null,null,null,null,null,null,null,null,null,null,null,"",null,null,"",null,null,null,null,null,null,null,null,"",null,null,null,null,""]
[null,null,null,null,null,null,null,"",null,null,null,null,"",null,null,null,null,null,null,null,null,null,null,null,null,null,null,"",null,null,null,null,"",null,null,null,null,null,null,null,null,"",null,null,null,null,null,null,null,null,null,"",null,null,null,null,null,null,null,null,null,null,null,null,"",null,null,"",null,null,null,null,null,null,null,null,"",null,null,null,null,""]
[null,null,null,null,null,null,null,{"$f":"IF(G258<>\"\",(TODAY()-G258),\"\")","v":""},null,null,null,null,{"$f":"IF(L258<>\"\",DATE(YEAR(L258),MONTH(L258),DAY(L258)+45),\"\")","v":""},null,null,null,null,null,null,null,null,null,null,null,null,null,null,"",null,null,null,null,"",null,null,null,null,null,null,null,null,"",null,null,null,null,null,null,null,null,null,{"$f":"IF(BN258<>\"\",BN258,\"\")","v":""},null,null,null,null,null,null,null,null,null,null,null,null,"",null,null,"",null,null,null,null,null,null,null,null,"",null,null,null,null,""]
[null,null,null,null,null,null,null,"",null,null,null,null,"",null,null,null,null,null,null,null,null,null,null,null,null,null,null,{"$f":"IF(AA259<>\"\",(AA259-L259),\"\")","v":""},null,null,null,null,{"$f":"IF(AF259<>\"\",(AF259-L259),\"\")","v":""},null,null,null,null,null,null,null,null,{"$f":"IF(AF259<>\"\",AF259,\"\")","v":""},null,null,null,null,null,null,null,null,null,"",null,null,null,null,null,null,null,null,null,null,null,null,{"$f":"IF(G259<>\"\",(G259+915),\"\")","v":""},null,null,{"$f":"IF(BV259=\"Yes\",(DATE(YEAR(G259)+3,MONTH(G259),DAY(G259))-BO259),\"\")","v":""},null,null,null,null,null,null,null,null,{"$f":"IF(BV259=\"Yes\",(DATE(YEAR(G259)+3,MONTH(G259),DAY(G259))-BX259),IF(BV259=\"Yes, but family declined\",(DATE(YEAR(G259)+3,MONTH(G259),DAY(G259))-BX259),\"\"))","v":""},null,null,null,null,{"$f":"IF(BV259=\"Yes\",(DATE(YEAR(G259)+3,MONTH(G259),DAY(G259))-CC259),IF(BV259=\"Yes, but family declined\",(DATE(YEAR(G259)+3,MONTH(G259),DAY(G259))-CC259),\"\"))","v":""}]
[null,null,null,null,null,null,null,"",null,null,null,null,"",null,null,null,null,null,null,null,null,null,null,null,null,null,null,"",null,null,null,null,"",null,null,null,null,null,null,null,null,"",null,null,null,null,null,null,null,null,null,"",null,null,null,null,null,null,null,null,null,null,null,null,"",null,null,"",null,null,null,null,null,null,null,null,"",null,null,null,null,""]
[null,null,null,null,null,null,null,"",null,null,null,null,"",null,null,null,null,null,null,null,null,null,null,null,null,null,null,"",null,null,null,null,"",null,null,null,null,null,null,null,null,"",null,null,null,null,null,null,null,null,null,"",null,null,null,null,null,null,null,null,null,null,null,null,"",null,null,"",null,null,null,null,null,null,null,null,"",null,null,null,null,""]
[null,null,null,null,null,null,null,"",null,null,null,null,"",null,null,null,null,null,null,null,null,null,null,null,null,null,null,"",null,null,null,null,"",null,null,null,null,null,null,null,null,"",null,null,null,null,null,null,null,null,null,"",null,null,null,null,null,null,null,null,null,null,null,null,"",null,null,"",null,null,null,null,null,null,null,null,"",null,null,null,null,""]
[null,null,null,null,null,null,null,"",null,null,null,null,"",null,null,null,null,null,null,null,null,null,null,null,null,null,null,"",null,null,null,null,"",null,null,null,null,null,null,null,null,"",null,null,null,null,null,null,null,null,null,"",null,null,null,null,null,null,null,null,null,null,null,null,"",null,null,"",null,null,null,null,null,null,null,null,"",null,null,null,null,""]
[null,null,null,null,null,null,null,"",null,null,null,null,"",null,null,null,null,null,null,null,null,null,null,null,null,null,null,"",null,null,null,null,"",null,null,null,null,null,null,null,null,"",null,null,null,null,null,null,null,null,null,"",null,null,null,null,null,null,null,null,null,null,null,null,"",null,null,"",null,null,null,null,null,null,null,null,"",null,null,null,null,""]
[null,null,null,null,null,null,null,"",null,null,null,null,"",null,null,null,null,null,null,null,null,null,null,null,null,null,null,"",null,null,null,null,"",null,null,null,null,null,null,null,null,"",null,null,null,null,null,null,null,null,null,"",null,null,null,null,null,null,null,null,null,null,null,null,"",null,null,"",null,null,null,null,null,null,null,null,"",null,null,null,null,""]
[null,null,null,null,null,null,null,"",null,null,null,null,"",null,null,null,null,null,null,null,null,null,null,null,null,null,null,"",null,null,null,null,"",null,null,null,null,null,null,null,null,"",null,null,null,null,null,null,null,null,null,"",null,null,null,null,null,null,null,null,null,null,null,null,"",null,null,"",null,null,null,null,null,null,null,null,"",null,null,null,null,""]
[null,null,null,null,null,null,null,"",null,null,null,null,"",null,null,null,null,null,null,null,null,null,null,null,null,null,null,"",null,null,null,null,"",null,null,null,null,null,null,null,null,"",null,null,null,null,null,null,null,null,null,"",null,null,null,null,null,null,null,null,null,null,null,null,"",null,null,"",null,null,null,null,null,null,null,null,"",null,null,null,null,""]
[null,null,null,null,null,null,null,"",null,null,null,null,"",null,null,null,null,null,null,null,null,null,null,null,null,null,null,"",null,null,null,null,"",null,null,null,null,null,null,null,null,"",null,null,null,null,null,null,null,null,null,"",null,null,null,null,null,null,null,null,null,null,null,null,"",null,null,"",null,null,null,null,null,null,null,null,"",null,null,null,null,""]
[null,null,null,null,null,null,null,"",null,null,null,null,"",null,null,null,null,null,null,null,null,null,null,null,null,null,null,"",null,null,null,null,"",null,null,null,null,null,null,null,null,"",null,null,null,null,null,null,null,null,null,"",null,null,null,null,null,null,null,null,null,null,null,null,"",null,null,"",null,null,null,null,null,null,null,null,"",null,null,null,null,""]
[null,null,null,null,null,null,null,"",null,null,null,null,"",null,null,null,null,null,null,null,null,null,null,null,null,null,null,"",null,null,null,null,"",null,null,null,null,null,null,null,null,"",null,null,null,null,null,null,null,null,null,"",null,null,null,null,null,null,null,null,null,null,null,null,"",null,null,"",null,null,null,null,null,null,null,null,"",null,null,null,null,""]
[null,null,null,null,null,null,null,"",null,null,null,null,"",null,null,null,null,null,null,null,null,null,null,null,null,null,null,"",null,null,null,null,"",null,null,null,null,null,null,null,null,"",null,null,null,null,null,null,null,null,null,"",null,null,null,null,null,null,null,null,null,null,null,null,"",null,null,"",null,null,null,null,null,null,null,null,"",null,null,null,null,""]
[null,null,null,null,null,null,null,"",null,null,null,null,"",null,null,null,null,null,null,null,null,null,null,null,null,null,null,"",null,null,null,null,"",null,null,null,null,null,null,null,null,"",null,null,null,null,null,null,null,null,null,"",null,null,null,null,null,null,null,null,null,null,null,null,"",null,null,"",null,null,null,null,null,null,null,null,"",null,null,null,null,""]
[null,null,null,null,null,null,null,"",null,null,null,null,"",null,null,null,null,null,null,null,null,null,null,null,null,null,null,"",null,null,null,null,"",null,null,null,null,null,null,null,null,"",null,null,null,null,null,null,null,null,null,"",null,null,null,null,null,null,null,null,null,null,null,null,"",null,null,"",null,null,null,null,null,null,null,null,"",null,null,null,null,""]
[null,null,null,null,null,null,null,"",null,null,null,null,"",null,null,null,null,null,null,null,null,null,null,null,null,null,null,"",null,null,null,null,"",null,null,null,null,null,null,null,null,"",null,null,null,null,null,null,null,null,null,"",null,null,null,null,null,null,null,null,null,null,null,null,"",null,null,"",null,null,null,null,null,null,null,null,"",null,null,null,null,""]
[null,null,null,null,null,null,null,"",null,null,null,null,"",null,null,null,null,null,null,null,null,null,null,null,null,null,null,"",null,null,null,null,"",null,null,null,null,null,null,null,null,"",null,null,null,null,null,null,null,null,null,"",null,null,null,null,null,null,null,null,null,null,null,null,"",null,null,"",null,null,null,null,null,null,null,null,"",null,null,null,null,""]
[null,null,null,null,null,null,null,"",null,null,null,null,"",null,null,null,null,null,null,null,null,null,null,null,null,null,null,"",null,null,null,null,"",null,null,null,null,null,null,null,null,"",null,null,null,null,null,null,null,null,null,"",null,null,null,null,null,null,null,null,null,null,null,null,"",null,null,"",null,null,null,null,null,null,null,null,"",null,null,null,null,""]
[null,null,null,null,null,null,null,"",null,null,null,null,"",null,null,null,null,null,null,null,null,null,null,null,null,null,null,"",null,null,null,null,"",null,null,null,null,null,null,null,null,"",null,null,null,null,null,null,null,null,null,"",null,null,null,null,null,null,null,null,null,null,null,null,"",null,null,"",null,null,null,null,null,null,null,null,"",null,null,null,null,""]
[null,null,null,null,null,null,null,"",null,null,null,null,"",null,null,null,null,null,null,null,null,null,null,null,null,null,null,"",null,null,null,null,"",null,null,null,null,null,null,null,null,"",null,null,null,null,null,null,null,null,null,"",null,null,null,null,null,null,null,null,null,null,null,null,"",null,null,"",null,null,null,null,null,null,null,null,"",null,null,null,null,""]
[null,null,null,null,null,null,null,"",null,null,null,null,"",null,null,null,null,null,null,null,null,null,null,null,null,null,null,"",null,null,null,null,"",null,null,null,null,null,null,null,null,"",null,null,null,null,null,null,null,null,null,"",null,null,null,null,null,null,null,null,null,null,null,null,"",null,null,"",null,null,null,null,null,null,null,null,"",null,null,null,null,""]
[null,null,null,null,null,null,null,"",null,null,null,null,"",null,null,null,null,null,null,null,null,null,null,null,null,null,null,"",null,null,null,null,"",null,null,null,null,null,null,null,null,"",null,null,null,null,null,null,null,null,null,"",null,null,null,null,null,null,null,null,null,null,null,null,"",null,null,"",null,null,null,null,null,null,null,null,"",null,null,null,null,""]
[null,null,null,null,null,null,null,"",null,null,null,null,"",null,null,null,null,null,null,null,null,null,null,null,null,null,null,"",null,null,null,null,"",null,null,null,null,null,null,null,null,"",null,null,null,null,null,null,null,null,null,"",null,null,null,null,null,null,null,null,null,null,null,null,"",null,null,"",null,null,null,null,null,null,null,null,"",null,null,null,null,""]
[null,null,null,null,null,null,null,"",null,null,null,null,"",null,null,null,null,null,null,null,null,null,null,null,null,null,null,"",null,null,null,null,"",null,null,null,null,null,null,null,null,"",null,null,null,null,null,null,null,null,null,"",null,null,null,null,null,null,null,null,null,null,null,null,"",null,null,"",null,null,null,null,null,null,null,null,"",null,null,null,null,""]
[null,null,null,null,null,null,null,"",null,null,null,null,"",null,null,null,null,null,null,null,null,null,null,null,null,null,null,"",null,null,null,null,"",null,null,null,null,null,null,null,null,"",null,null,null,null,null,null,null,null,null,"",null,null,null,null,null,null,null,null,null,null,null,null,"",null,null,"",null,null,null,null,null,null,null,null,"",null,null,null,null,""]
[null,null,null,null,null,null,null,"",null,null,null,null,"",null,null,null,null,null,null,null,null,null,null,null,null,null,null,"",null,null,null,null,"",null,null,null,null,null,null,null,null,"",null,null,null,null,null,null,null,null,null,"",null,null,null,null,null,null,null,null,null,null,null,null,"",null,null,"",null,null,null,null,null,null,null,null,"",null,null,null,null,""]
[null,null,null,null,null,null,null,"",null,null,null,null,"",null,null,null,null,null,null,null,null,null,null,null,null,null,null,"",null,null,null,null,"",null,null,null,null,null,null,null,null,"",null,null,null,null,null,null,null,null,null,"",null,null,null,null,null,null,null,null,null,null,null,null,"",null,null,"",null,null,null,null,null,null,null,null,"",null,null,null,null,""]
[null,null,null,null,null,null,null,"",null,null,null,null,"",null,null,null,null,null,null,null,null,null,null,null,null,null,null,"",null,null,null,null,"",null,null,null,null,null,null,null,null,"",null,null,null,null,null,null,null,null,null,"",null,null,null,null,null,null,null,null,null,null,null,null,"",null,null,"",null,null,null,null,null,null,null,null,"",null,null,null,null,""]
[null,null,null,null,null,null,null,"",null,null,null,null,"",null,null,null,null,null,null,null,null,null,null,null,null,null,null,"",null,null,null,null,"",null,null,null,null,null,null,null,null,"",null,null,null,null,null,null,null,null,null,"",null,null,null,null,null,null,null,null,null,null,null,null,"",null,null,"",null,null,null,null,null,null,null,null,"",null,null,null,null,""]
[null,null,null,null,null,null,null,"",null,null,null,null,"",null,null,null,null,null,null,null,null,null,null,null,null,null,null,"",null,null,null,null,"",null,null,null,null,null,null,null,null,"",null,null,null,null,null,null,null,null,null,"",null,null,null,null,null,null,null,null,null,null,null,null,"",null,null,"",null,null,null,null,null,null,null,null,"",null,null,null,null,""]
[null,null,null,null,null,null,null,"",null,null,null,null,"",null,null,null,null,null,null,null,null,null,null,null,null,null,null,"",null,null,null,null,"",null,null,null,null,null,null,null,null,"",null,null,null,null,null,null,null,null,null,"",null,null,null,null,null,null,null,null,null,null,null,null,"",null,null,"",null,null,null,null,null,null,null,null,"",null,null,null,null,""]
[null,null,null,null,null,null,null,"",null,null,null,null,"",null,null,null,null,null,null,null,null,null,null,null,null,null,null,"",null,null,null,null,"",null,null,null,null,null,null,null,null,"",null,null,null,null,null,null,null,null,null,"",null,null,null,null,null,null,null,null,null,null,null,null,"",null,null,"",null,null,null,null,null,null,null,null,"",null,null,null,null,""]
[null,null,null,null,null,null,null,"",null,null,null,null,"",null,null,null,null,null,null,null,null,null,null,null,null,null,null,"",null,null,null,null,"",null,null,null,null,null,null,null,null,"",null,null,null,null,null,null,null,null,null,"",null,null,null,null,null,null,null,null,null,null,null,null,"",null,null,"",null,null,null,null,null,null,null,null,"",null,null,null,null,""]
[null,null,null,null,null,null,null,"",null,null,null,null,"",null,null,null,null,null,null,null,null,null,null,null,null,null,null,"",null,null,null,null,"",null,null,null,null,null,null,null,null,"",null,null,null,null,null,null,null,null,null,"",null,null,null,null,null,null,null,null,null,null,null,null,"",null,null,"",null,null,null,null,null,null,null,null,"",null,null,null,null,""]
[null,null,null,null,null,null,null,"",null,null,null,null,"",null,null,null,null,null,null,null,null,null,null,null,null,null,null,"",null,null,null,null,"",null,null,null,null,null,null,null,null,"",null,null,null,null,null,null,null,null,null,"",null,null,null,null,null,null,null,null,null,null,null,null,"",null,null,"",null,null,null,null,null,null,null,null,"",null,null,null,null,""]
[null,null,null,null,null,null,null,"",null,null,null,null,"",null,null,null,null,null,null,null,null,null,null,null,null,null,null,"",null,null,null,null,"",null,null,null,null,null,null,null,null,"",null,null,null,null,null,null,null,null,null,"",null,null,null,null,null,null,null,null,null,null,null,null,"",null,null,"",null,null,null,null,null,null,null,null,"",null,null,null,null,""]
[null,null,null,null,null,null,null,"",null,null,null,null,"",null,null,null,null,null,null,null,null,null,null,null,null,null,null,"",null,null,null,null,"",null,null,null,null,null,null,null,null,"",null,null,null,null,null,null,null,null,null,"",null,null,null,null,null,null,null,null,null,null,null,null,"",null,null,"",null,null,null,null,null,null,null,null,"",null,null,null,null,""]
[null,null,null,null,null,null,null,"",null,null,null,null,"",null,null,null,null,null,null,null,null,null,null,null,null,null,null,"",null,null,null,null,"",null,null,null,null,null,null,null,null,"",null,null,null,null,null,null,null,null,null,"",null,null,null,null,null,null,null,null,null,null,null,null,"",null,null,"",null,null,null,null,null,null,null,null,"",null,null,null,null,""]
[null,null,null,null,null,null,null,"",null,null,null,null,"",null,null,null,null,null,null,null,null,null,null,null,null,null,null,"",null,null,null,null,"",null,null,null,null,null,null,null,null,"",null,null,null,null,null,null,null,null,null,"",null,null,null,null,null,null,null,null,null,null,null,null,"",null,null,"",null,null,null,null,null,null,null,null,"",null,null,null,null,""]
[null,null,null,null,null,null,null,"",null,null,null,null,"",null,null,null,null,null,null,null,null,null,null,null,null,null,null,"",null,null,null,null,"",null,null,null,null,null,null,null,null,"",null,null,null,null,null,null,null,null,null,"",null,null,null,null,null,null,null,null,null,null,null,null,"",null,null,"",null,null,null,null,null,null,null,null,"",null,null,null,null,""]
[null,null,null,null,null,null,null,"",null,null,null,null,"",null,null,null,null,null,null,null,null,null,null,null,null,null,null,"",null,null,null,null,"",null,null,null,null,null,null,null,null,"",null,null,null,null,null,null,null,null,null,"",null,null,null,null,null,null,null,null,null,null,null,null,"",null,null,"",null,null,null,null,null,null,null,null,"",null,null,null,null,""]
[null,null,null,null,null,null,null,"",null,null,null,null,"",null,null,null,null,null,null,null,null,null,null,null,null,null,null,"",null,null,null,null,"",null,null,null,null,null,null,null,null,"",null,null,null,null,null,null,null,null,null,"",null,null,null,null,null,null,null,null,null,null,null,null,"",null,null,"",null,null,null,null,null,null,null,null,"",null,null,null,null,""]
[null,null,null,null,null,null,null,"",null,null,null,null,"",null,null,null,null,null,null,null,null,null,null,null,null,null,null,"",null,null,null,null,"",null,null,null,null,null,null,null,null,"",null,null,null,null,null,null,null,null,null,"",null,null,null,null,null,null,null,null,null,null,null,null,"",null,null,"",null,null,null,null,null,null,null,null,"",null,null,null,null,""]
[null,null,null,null,null,null,null,"",null,null,null,null,"",null,null,null,null,null,null,null,null,null,null,null,null,null,null,"",null,null,null,null,"",null,null,null,null,null,null,null,null,"",null,null,null,null,null,null,null,null,null,"",null,null,null,null,null,null,null,null,null,null,null,null,"",null,null,"",null,null,null,null,null,null,null,null,"",null,null,null,null,""]
[null,null,null,null,null,null,null,"",null,null,null,null,"",null,null,null,null,null,null,null,null,null,null,null,null,null,null,"",null,null,null,null,"",null,null,null,null,null,null,null,null,"",null,null,null,null,null,null,null,null,null,"",null,null,null,null,null,null,null,null,null,null,null,null,"",null,null,"",null,null,null,null,null,null,null,null,"",null,null,null,null,""]
[null,null,null,null,null,null,null,"",null,null,null,null,"",null,null,null,null,null,null,null,null,null,null,null,null,null,null,"",null,null,null,null,"",null,null,null,null,null,null,null,null,"",null,null,null,null,null,null,null,null,null,"",null,null,null,null,null,null,null,null,null,null,null,null,"",null,null,"",null,null,null,null,null,null,null,null,"",null,null,null,null,""]
[null,null,null,null,null,null,null,"",null,null,null,null,"",null,null,null,null,null,null,null,null,null,null,null,null,null,null,"",null,null,null,null,"",null,null,null,null,null,null,null,null,"",null,null,null,null,null,null,null,null,null,"",null,null,null,null,null,null,null,null,null,null,null,null,"",null,null,"",null,null,null,null,null,null,null,null,"",null,null,null,null,""]
[null,null,null,null,null,null,null,"",null,null,null,null,"",null,null,null,null,null,null,null,null,null,null,null,null,null,null,"",null,null,null,null,"",null,null,null,null,null,null,null,null,"",null,null,null,null,null,null,null,null,null,"",null,null,null,null,null,null,null,null,null,null,null,null,"",null,null,"",null,null,null,null,null,null,null,null,"",null,null,null,null,""]
[null,null,null,null,null,null,null,"",null,null,null,null,"",null,null,null,null,null,null,null,null,null,null,null,null,null,null,"",null,null,null,null,"",null,null,null,null,null,null,null,null,"",null,null,null,null,null,null,null,null,null,"",null,null,null,null,null,null,null,null,null,null,null,null,"",null,null,"",null,null,null,null,null,null,null,null,"",null,null,null,null,""]
[null,null,null,null,null,null,null,"",null,null,null,null,"",null,null,null,null,null,null,null,null,null,null,null,null,null,null,"",null,null,null,null,"",null,null,null,null,null,null,null,null,"",null,null,null,null,null,null,null,null,null,"",null,null,null,null,null,null,null,null,null,null,null,null,"",null,null,"",null,null,null,null,null,null,null,null,"",null,null,null,null,""]
[null,null,null,null,null,null,null,"",null,null,null,null,"",null,null,null,null,null,null,null,null,null,null,null,null,null,null,"",null,null,null,null,"",null,null,null,null,null,null,null,null,"",null,null,null,null,null,null,null,null,null,"",null,null,null,null,null,null,null,null,null,null,null,null,"",null,null,"",null,null,null,null,null,null,null,null,"",null,null,null,null,""]
[null,null,null,null,null,null,null,"",null,null,null,null,"",null,null,null,null,null,null,null,null,null,null,null,null,null,null,"",null,null,null,null,"",null,null,null,null,null,null,null,null,"",null,null,null,null,null,null,null,null,null,"",null,null,null,null,null,null,null,null,null,null,null,null,"",null,null,"",null,null,null,null,null,null,null,null,"",null,null,null,null,""]
[null,null,null,null,null,null,null,"",null,null,null,null,"",null,null,null,null,null,null,null,null,null,null,null,null,null,null,"",null,null,null,null,"",null,null,null,null,null,null,null,null,"",null,null,null,null,null,null,null,null,null,"",null,null,null,null,null,null,null,null,null,null,null,null,"",null,null,"",null,null,null,null,null,null,null,null,"",null,null,null,null,""]
[null,null,null,null,null,null,null,"",null,null,null,null,"",null,null,null,null,null,null,null,null,null,null,null,null,null,null,"",null,null,null,null,"",null,null,null,null,null,null,null,null,"",null,null,null,null,null,null,null,null,null,"",null,null,null,null,null,null,null,null,null,null,null,null,"",null,null,"",null,null,null,null,null,null,null,null,"",null,null,null,null,""]
[null,null,null,null,null,null,null,null,null,null,null,null,null,null,null,null,null,null,null,null,null,null,null,null,null,null,null,"",null,null,null,null,"",null,null,null,null,null,null,null,null,"",null,null,null,null,null,null,null,null,null,"",null,null,null,null,null,null,null,null,null,null,null,null,"",null,null,"",null,null,null,null,null,null,null,null,"",null,null,null,null,""]
[null,null,null,null,null,null,null,null,null,null,null,null,null,null,null,null,null,null,null,null,null,null,null,null,null,null,null,"",null,null,null,null,"",null,null,null,null,null,null,null,null,"",null,null,null,null,null,null,null,null,null,"",null,null,null,null,null,null,null,null,null,null,null,null,"",null,null,"",null,null,null,null,null,null,null,null,"",null,null,null,null,""]
[null,null,null,null,null,null,null,null,null,null,null,null,null,null,null,null,null,null,null,null,null,null,null,null,null,null,null,"",null,null,null,null,"",null,null,null,null,null,null,null,null,"",null,null,null,null,null,null,null,null,null,"",null,null,null,null,null,null,null,null,null,null,null,null,"",null,null,"",null,null,null,null,null,null,null,null,"",null,null,null,null,""]
[null,null,null,null,null,null,null,null,null,null,null,null,null,null,null,null,null,null,null,null,null,null,null,null,null,null,null,"",null,null,null,null,"",null,null,null,null,null,null,null,null,"",null,null,null,null,null,null,null,null,null,"",null,null,null,null,null,null,null,null,null,null,null,null,"",null,null,"",null,null,null,null,null,null,null,null,"",null,null,null,null,""]
[null,null,null,null,null,null,null,null,null,null,null,null,null,null,null,null,null,null,null,null,null,null,null,null,null,null,null,"",null,null,null,null,"",null,null,null,null,null,null,null,null,"",null,null,null,null,null,null,null,null,null,"",null,null,null,null,null,null,null,null,null,null,null,null,"",null,null,"",null,null,null,null,null,null,null,null,"",null,null,null,null,""]
[null,null,null,null,null,null,null,null,null,null,null,null,null,null,null,null,null,null,null,null,null,null,null,null,null,null,null,"",null,null,null,null,"",null,null,null,null,null,null,null,null,"",null,null,null,null,null,null,null,null,null,"",null,null,null,null,null,null,null,null,null,null,null,null,"",null,null,"",null,null,null,null,null,null,null,null,"",null,null,null,null,""]
[null,null,null,null,null,null,null,null,null,null,null,null,null,null,null,null,null,null,null,null,null,null,null,null,null,null,null,"",null,null,null,null,"",null,null,null,null,null,null,null,null,"",null,null,null,null,null,null,null,null,null,"",null,null,null,null,null,null,null,null,null,null,null,null,"",null,null,"",null,null,null,null,null,null,null,null,"",null,null,null,null,""]
[null,null,null,null,null,null,null,null,null,null,null,null,null,null,null,null,null,null,null,null,null,null,null,null,null,null,null,"",null,null,null,null,"",null,null,null,null,null,null,null,null,"",null,null,null,null,null,null,null,null,null,"",null,null,null,null,null,null,null,null,null,null,null,null,"",null,null,"",null,null,null,null,null,null,null,null,"",null,null,null,null,""]
[null,null,null,null,null,null,null,null,null,null,null,null,null,null,null,null,null,null,null,null,null,null,null,null,null,null,null,"",null,null,null,null,"",null,null,null,null,null,null,null,null,"",null,null,null,null,null,null,null,null,null,"",null,null,null,null,null,null,null,null,null,null,null,null,"",null,null,"",null,null,null,null,null,null,null,null,"",null,null,null,null,""]
[null,null,null,null,null,null,null,null,null,null,null,null,null,null,null,null,null,null,null,null,null,null,null,null,null,null,null,null,null,null,null,null,null,null,null,null,null,null,null,null,null,"",null,null,null,null,null,null,null,null,null,{"$f":"IF(BN322<>\"\",BN322,\"\")","v":""},null,null,null,null,null,null,null,null,null,null,null,null,"",null,null,"",null,null,null,null,null,null,null,null,"",null,null,null,null,""]
[null,null,null,null,null,null,null,null,null,null,null,null,null,null,null,null,null,null,null,null,null,null,null,null,null,null,null,null,null,null,null,null,null,null,null,null,null,null,null,null,null,{"$f":"IF(AF323<>\"\",AF323,\"\")","v":""},null,null,null,null,null,null,null,null,null,"",null,null,null,null,null,null,null,null,null,null,null,null,{"$f":"IF(G323<>\"\",(G323+915),\"\")","v":""},null,null,{"$f":"IF(BV323=\"Yes\",(DATE(YEAR(G323)+3,MONTH(G323),DAY(G323))-BO323),\"\")","v":""},null,null,null,null,null,null,null,null,{"$f":"IF(BV323=\"Yes\",(DATE(YEAR(G323)+3,MONTH(G323),DAY(G323))-BX323),IF(BV323=\"Yes, but family declined\",(DATE(YEAR(G323)+3,MONTH(G323),DAY(G323))-BX323),\"\"))","v":""},null,null,null,null,{"$f":"IF(BV323=\"Yes\",(DATE(YEAR(G323)+3,MONTH(G323),DAY(G323))-CC323),IF(BV323=\"Yes, but family declined\",(DATE(YEAR(G323)+3,MONTH(G323),DAY(G323))-CC323),\"\"))","v":""}]
[null,null,null,null,null,null,null,null,null,null,null,null,null,null,null,null,null,null,null,null,null,null,null,null,null,null,null,null,null,null,null,null,null,null,null,null,null,null,null,null,null,"",null,null,null,null,null,null,null,null,null,"",null,null,null,null,null,null,null,null,null,null,null,null,"",null,null,"",null,null,null,null,null,null,null,null,"",null,null,null,null,""]
[null,null,null,null,null,null,null,null,null,null,null,null,null,null,null,null,null,null,null,null,null,null,null,null,null,null,null,null,null,null,null,null,null,null,null,null,null,null,null,null,null,"",null,null,null,null,null,null,null,null,null,"",null,null,null,null,null,null,null,null,null,null,null,null,"",null,null,"",null,null,null,null,null,null,null,null,"",null,null,null,null,""]
[null,null,null,null,null,null,null,null,null,null,null,null,null,null,null,null,null,null,null,null,null,null,null,null,null,null,null,null,null,null,null,null,null,null,null,null,null,null,null,null,null,"",null,null,null,null,null,null,null,null,null,"",null,null,null,null,null,null,null,null,null,null,null,null,"",null,null,"",null,null,null,null,null,null,null,null,"",null,null,null,null,""]
[null,null,null,null,null,null,null,null,null,null,null,null,null,null,null,null,null,null,null,null,null,null,null,null,null,null,null,null,null,null,null,null,null,null,null,null,null,null,null,null,null,"",null,null,null,null,null,null,null,null,null,"",null,null,null,null,null,null,null,null,null,null,null,null,"",null,null,"",null,null,null,null,null,null,null,null,"",null,null,null,null,""]
[null,null,null,null,null,null,null,null,null,null,null,null,null,null,null,null,null,null,null,null,null,null,null,null,null,null,null,null,null,null,null,null,null,null,null,null,null,null,null,null,null,"",null,null,null,null,null,null,null,null,null,"",null,null,null,null,null,null,null,null,null,null,null,null,"",null,null,"",null,null,null,null,null,null,null,null,"",null,null,null,null,""]
[null,null,null,null,null,null,null,null,null,null,null,null,null,null,null,null,null,null,null,null,null,null,null,null,null,null,null,null,null,null,null,null,null,null,null,null,null,null,null,null,null,"",null,null,null,null,null,null,null,null,null,"",null,null,null,null,null,null,null,null,null,null,null,null,"",null,null,"",null,null,null,null,null,null,null,null,"",null,null,null,null,""]
[null,null,null,null,null,null,null,null,null,null,null,null,null,null,null,null,null,null,null,null,null,null,null,null,null,null,null,null,null,null,null,null,null,null,null,null,null,null,null,null,null,"",null,null,null,null,null,null,null,null,null,"",null,null,null,null,null,null,null,null,null,null,null,null,"",null,null,"",null,null,null,null,null,null,null,null,"",null,null,null,null,""]
[null,null,null,null,null,null,null,null,null,null,null,null,null,null,null,null,null,null,null,null,null,null,null,null,null,null,null,null,null,null,null,null,null,null,null,null,null,null,null,null,null,"",null,null,null,null,null,null,null,null,null,"",null,null,null,null,null,null,null,null,null,null,null,null,"",null,null,"",null,null,null,null,null,null,null,null,"",null,null,null,null,""]
[null,null,null,null,null,null,null,null,null,null,null,null,null,null,null,null,null,null,null,null,null,null,null,null,null,null,null,null,null,null,null,null,null,null,null,null,null,null,null,null,null,"",null,null,null,null,null,null,null,null,null,"",null,null,null,null,null,null,null,null,null,null,null,null,"",null,null,"",null,null,null,null,null,null,null,null,"",null,null,null,null,""]
[null,null,null,null,null,null,null,null,null,null,null,null,null,null,null,null,null,null,null,null,null,null,null,null,null,null,null,null,null,null,null,null,null,null,null,null,null,null,null,null,null,"",null,null,null,null,null,null,null,null,null,"",null,null,null,null,null,null,null,null,null,null,null,null,"",null,null,"",null,null,null,null,null,null,null,null,"",null,null,null,null,""]
[null,null,null,null,null,null,null,null,null,null,null,null,null,null,null,null,null,null,null,null,null,null,null,null,null,null,null,null,null,null,null,null,null,null,null,null,null,null,null,null,null,"",null,null,null,null,null,null,null,null,null,"",null,null,null,null,null,null,null,null,null,null,null,null,"",null,null,"",null,null,null,null,null,null,null,null,"",null,null,null,null,""]
[null,null,null,null,null,null,null,null,null,null,null,null,null,null,null,null,null,null,null,null,null,null,null,null,null,null,null,null,null,null,null,null,null,null,null,null,null,null,null,null,null,"",null,null,null,null,null,null,null,null,null,"",null,null,null,null,null,null,null,null,null,null,null,null,"",null,null,"",null,null,null,null,null,null,null,null,"",null,null,null,null,""]
[null,null,null,null,null,null,null,null,null,null,null,null,null,null,null,null,null,null,null,null,null,null,null,null,null,null,null,null,null,null,null,null,null,null,null,null,null,null,null,null,null,"",null,null,null,null,null,null,null,null,null,"",null,null,null,null,null,null,null,null,null,null,null,null,"",null,null,"",null,null,null,null,null,null,null,null,"",null,null,null,null,""]
[null,null,null,null,null,null,null,null,null,null,null,null,null,null,null,null,null,null,null,null,null,null,null,null,null,null,null,null,null,null,null,null,null,null,null,null,null,null,null,null,null,"",null,null,null,null,null,null,null,null,null,"",null,null,null,null,null,null,null,null,null,null,null,null,"",null,null,"",null,null,null,null,null,null,null,null,"",null,null,null,null,""]
[null,null,null,null,null,null,null,null,null,null,null,null,null,null,null,null,null,null,null,null,null,null,null,null,null,null,null,null,null,null,null,null,null,null,null,null,null,null,null,null,null,"",null,null,null,null,null,null,null,null,null,"",null,null,null,null,null,null,null,null,null,null,null,null,"",null,null,"",null,null,null,null,null,null,null,null,"",null,null,null,null,""]
[null,null,null,null,null,null,null,null,null,null,null,null,null,null,null,null,null,null,null,null,null,null,null,null,null,null,null,null,null,null,null,null,null,null,null,null,null,null,null,null,null,"",null,null,null,null,null,null,null,null,null,"",null,null,null,null,null,null,null,null,null,null,null,null,"",null,null,"",null,null,null,null,null,null,null,null,"",null,null,null,null,""]
[null,null,null,null,null,null,null,null,null,null,null,null,null,null,null,null,null,null,null,null,null,null,null,null,null,null,null,null,null,null,null,null,null,null,null,null,null,null,null,null,null,"",null,null,null,null,null,null,null,null,null,"",null,null,null,null,null,null,null,null,null,null,null,null,"",null,null,"",null,null,null,null,null,null,null,null,"",null,null,null,null,""]
[null,null,null,null,null,null,null,null,null,null,null,null,null,null,null,null,null,null,null,null,null,null,null,null,null,null,null,null,null,null,null,null,null,null,null,null,null,null,null,null,null,"",null,null,null,null,null,null,null,null,null,"",null,null,null,null,null,null,null,null,null,null,null,null,"",null,null,"",null,null,null,null,null,null,null,null,"",null,null,null,null,""]
[null,null,null,null,null,null,null,null,null,null,null,null,null,null,null,null,null,null,null,null,null,null,null,null,null,null,null,null,null,null,null,null,null,null,null,null,null,null,null,null,null,"",null,null,null,null,null,null,null,null,null,"",null,null,null,null,null,null,null,null,null,null,null,null,"",null,null,"",null,null,null,null,null,null,null,null,"",null,null,null,null,""]
[null,null,null,null,null,null,null,null,null,null,null,null,null,null,null,null,null,null,null,null,null,null,null,null,null,null,null,null,null,null,null,null,null,null,null,null,null,null,null,null,null,"",null,null,null,null,null,null,null,null,null,"",null,null,null,null,null,null,null,null,null,null,null,null,"",null,null,"",null,null,null,null,null,null,null,null,"",null,null,null,null,""]
[null,null,null,null,null,null,null,null,null,null,null,null,null,null,null,null,null,null,null,null,null,null,null,null,null,null,null,null,null,null,null,null,null,null,null,null,null,null,null,null,null,"",null,null,null,null,null,null,null,null,null,"",null,null,null,null,null,null,null,null,null,null,null,null,"",null,null,"",null,null,null,null,null,null,null,null,"",null,null,null,null,""]
[null,null,null,null,null,null,null,null,null,null,null,null,null,null,null,null,null,null,null,null,null,null,null,null,null,null,null,null,null,null,null,null,null,null,null,null,null,null,null,null,null,"",null,null,null,null,null,null,null,null,null,"",null,null,null,null,null,null,null,null,null,null,null,null,"",null,null,"",null,null,null,null,null,null,null,null,"",null,null,null,null,""]
[null,null,null,null,null,null,null,null,null,null,null,null,null,null,null,null,null,null,null,null,null,null,null,null,null,null,null,null,null,null,null,null,null,null,null,null,null,null,null,null,null,"",null,null,null,null,null,null,null,null,null,"",null,null,null,null,null,null,null,null,null,null,null,null,"",null,null,"",null,null,null,null,null,null,null,null,"",null,null,null,null,""]
[null,null,null,null,null,null,null,null,null,null,null,null,null,null,null,null,null,null,null,null,null,null,null,null,null,null,null,null,null,null,null,null,null,null,null,null,null,null,null,null,null,"",null,null,null,null,null,null,null,null,null,"",null,null,null,null,null,null,null,null,null,null,null,null,"",null,null,"",null,null,null,null,null,null,null,null,"",null,null,null,null,""]
[null,null,null,null,null,null,null,null,null,null,null,null,null,null,null,null,null,null,null,null,null,null,null,null,null,null,null,null,null,null,null,null,null,null,null,null,null,null,null,null,null,"",null,null,null,null,null,null,null,null,null,"",null,null,null,null,null,null,null,null,null,null,null,null,"",null,null,"",null,null,null,null,null,null,null,null,"",null,null,null,null,""]
[null,null,null,null,null,null,null,null,null,null,null,null,null,null,null,null,null,null,null,null,null,null,null,null,null,null,null,null,null,null,null,null,null,null,null,null,null,null,null,null,null,"",null,null,null,null,null,null,null,null,null,"",null,null,null,null,null,null,null,null,null,null,null,null,"",null,null,"",null,null,null,null,null,null,null,null,"",null,null,null,null,""]
[null,null,null,null,null,null,null,null,null,null,null,null,null,null,null,null,null,null,null,null,null,null,null,null,null,null,null,null,null,null,null,null,null,null,null,null,null,null,null,null,null,"",null,null,null,null,null,null,null,null,null,"",null,null,null,null,null,null,null,null,null,null,null,null,"",null,null,"",null,null,null,null,null,null,null,null,"",null,null,null,null,""]
[null,null,null,null,null,null,null,null,null,null,null,null,null,null,null,null,null,null,null,null,null,null,null,null,null,null,null,null,null,null,null,null,null,null,null,null,null,null,null,null,null,"",null,null,null,null,null,null,null,null,null,"",null,null,null,null,null,null,null,null,null,null,null,null,"",null,null,"",null,null,null,null,null,null,null,null,"",null,null,null,null,""]
[null,null,null,null,null,null,null,null,null,null,null,null,null,null,null,null,null,null,null,null,null,null,null,null,null,null,null,null,null,null,null,null,null,null,null,null,null,null,null,null,null,"",null,null,null,null,null,null,null,null,null,"",null,null,null,null,null,null,null,null,null,null,null,null,"",null,null,"",null,null,null,null,null,null,null,null,"",null,null,null,null,""]
[null,null,null,null,null,null,null,null,null,null,null,null,null,null,null,null,null,null,null,null,null,null,null,null,null,null,null,null,null,null,null,null,null,null,null,null,null,null,null,null,null,"",null,null,null,null,null,null,null,null,null,"",null,null,null,null,null,null,null,null,null,null,null,null,"",null,null,"",null,null,null,null,null,null,null,null,"",null,null,null,null,""]
[null,null,null,null,null,null,null,null,null,null,null,null,null,null,null,null,null,null,null,null,null,null,null,null,null,null,null,null,null,null,null,null,null,null,null,null,null,null,null,null,null,"",null,null,null,null,null,null,null,null,null,"",null,null,null,null,null,null,null,null,null,null,null,null,"",null,null,"",null,null,null,null,null,null,null,null,"",null,null,null,null,""]
[null,null,null,null,null,null,null,null,null,null,null,null,null,null,null,null,null,null,null,null,null,null,null,null,null,null,null,null,null,null,null,null,null,null,null,null,null,null,null,null,null,"",null,null,null,null,null,null,null,null,null,"",null,null,null,null,null,null,null,null,null,null,null,null,"",null,null,"",null,null,null,null,null,null,null,null,"",null,null,null,null,""]
[null,null,null,null,null,null,null,null,null,null,null,null,null,null,null,null,null,null,null,null,null,null,null,null,null,null,null,null,null,null,null,null,null,null,null,null,null,null,null,null,null,"",null,null,null,null,null,null,null,null,null,"",null,null,null,null,null,null,null,null,null,null,null,null,"",null,null,"",null,null,null,null,null,null,null,null,"",null,null,null,null,""]
[null,null,null,null,null,null,null,null,null,null,null,null,null,null,null,null,null,null,null,null,null,null,null,null,null,null,null,null,null,null,null,null,null,null,null,null,null,null,null,null,null,"",null,null,null,null,null,null,null,null,null,"",null,null,null,null,null,null,null,null,null,null,null,null,"",null,null,"",null,null,null,null,null,null,null,null,"",null,null,null,null,""]
[null,null,null,null,null,null,null,null,null,null,null,null,null,null,null,null,null,null,null,null,null,null,null,null,null,null,null,null,null,null,null,null,null,null,null,null,null,null,null,null,null,"",null,null,null,null,null,null,null,null,null,"",null,null,null,null,null,null,null,null,null,null,null,null,"",null,null,"",null,null,null,null,null,null,null,null,"",null,null,null,null,""]
[null,null,null,null,null,null,null,null,null,null,null,null,null,null,null,null,null,null,null,null,null,null,null,null,null,null,null,null,null,null,null,null,null,null,null,null,null,null,null,null,null,"",null,null,null,null,null,null,null,null,null,"",null,null,null,null,null,null,null,null,null,null,null,null,"",null,null,"",null,null,null,null,null,null,null,null,"",null,null,null,null,""]
[null,null,null,null,null,null,null,null,null,null,null,null,null,null,null,null,null,null,null,null,null,null,null,null,null,null,null,null,null,null,null,null,null,null,null,null,null,null,null,null,null,"",null,null,null,null,null,null,null,null,null,"",null,null,null,null,null,null,null,null,null,null,null,null,"",null,null,"",null,null,null,null,null,null,null,null,"",null,null,null,null,""]
[null,null,null,null,null,null,null,null,null,null,null,null,null,null,null,null,null,null,null,null,null,null,null,null,null,null,null,null,null,null,null,null,null,null,null,null,null,null,null,null,null,"",null,null,null,null,null,null,null,null,null,"",null,null,null,null,null,null,null,null,null,null,null,null,"",null,null,"",null,null,null,null,null,null,null,null,"",null,null,null,null,""]
[null,null,null,null,null,null,null,null,null,null,null,null,null,null,null,null,null,null,null,null,null,null,null,null,null,null,null,null,null,null,null,null,null,null,null,null,null,null,null,null,null,"",null,null,null,null,null,null,null,null,null,"",null,null,null,null,null,null,null,null,null,null,null,null,"",null,null,"",null,null,null,null,null,null,null,null,"",null,null,null,null,""]
[null,null,null,null,null,null,null,null,null,null,null,null,null,null,null,null,null,null,null,null,null,null,null,null,null,null,null,null,null,null,null,null,null,null,null,null,null,null,null,null,null,"",null,null,null,null,null,null,null,null,null,"",null,null,null,null,null,null,null,null,null,null,null,null,"",null,null,"",null,null,null,null,null,null,null,null,"",null,null,null,null,""]
[null,null,null,null,null,null,null,null,null,null,null,null,null,null,null,null,null,null,null,null,null,null,null,null,null,null,null,null,null,null,null,null,null,null,null,null,null,null,null,null,null,"",null,null,null,null,null,null,null,null,null,"",null,null,null,null,null,null,null,null,null,null,null,null,"",null,null,"",null,null,null,null,null,null,null,null,"",null,null,null,null,""]
[null,null,null,null,null,null,null,null,null,null,null,null,null,null,null,null,null,null,null,null,null,null,null,null,null,null,null,null,null,null,null,null,null,null,null,null,null,null,null,null,null,"",null,null,null,null,null,null,null,null,null,"",null,null,null,null,null,null,null,null,null,null,null,null,"",null,null,"",null,null,null,null,null,null,null,null,"",null,null,null,null,""]
[null,null,null,null,null,null,null,null,null,null,null,null,null,null,null,null,null,null,null,null,null,null,null,null,null,null,null,null,null,null,null,null,null,null,null,null,null,null,null,null,null,"",null,null,null,null,null,null,null,null,null,"",null,null,null,null,null,null,null,null,null,null,null,null,"",null,null,"",null,null,null,null,null,null,null,null,"",null,null,null,null,""]
[null,null,null,null,null,null,null,null,null,null,null,null,null,null,null,null,null,null,null,null,null,null,null,null,null,null,null,null,null,null,null,null,null,null,null,null,null,null,null,null,null,"",null,null,null,null,null,null,null,null,null,"",null,null,null,null,null,null,null,null,null,null,null,null,"",null,null,"",null,null,null,null,null,null,null,null,"",null,null,null,null,""]
[null,null,null,null,null,null,null,null,null,null,null,null,null,null,null,null,null,null,null,null,null,null,null,null,null,null,null,null,null,null,null,null,null,null,null,null,null,null,null,null,null,"",null,null,null,null,null,null,null,null,null,"",null,null,null,null,null,null,null,null,null,null,null,null,"",null,null,"",null,null,null,null,null,null,null,null,"",null,null,null,null,""]
[null,null,null,null,null,null,null,null,null,null,null,null,null,null,null,null,null,null,null,null,null,null,null,null,null,null,null,null,null,null,null,null,null,null,null,null,null,null,null,null,null,"",null,null,null,null,null,null,null,null,null,"",null,null,null,null,null,null,null,null,null,null,null,null,"",null,null,"",null,null,null,null,null,null,null,null,"",null,null,null,null,""]
[null,null,null,null,null,null,null,null,null,null,null,null,null,null,null,null,null,null,null,null,null,null,null,null,null,null,null,null,null,null,null,null,null,null,null,null,null,null,null,null,null,"",null,null,null,null,null,null,null,null,null,"",null,null,null,null,null,null,null,null,null,null,null,null,"",null,null,"",null,null,null,null,null,null,null,null,"",null,null,null,null,""]
[null,null,null,null,null,null,null,null,null,null,null,null,null,null,null,null,null,null,null,null,null,null,null,null,null,null,null,null,null,null,null,null,null,null,null,null,null,null,null,null,null,"",null,null,null,null,null,null,null,null,null,"",null,null,null,null,null,null,null,null,null,null,null,null,"",null,null,"",null,null,null,null,null,null,null,null,"",null,null,null,null,""]
[null,null,null,null,null,null,null,null,null,null,null,null,null,null,null,null,null,null,null,null,null,null,null,null,null,null,null,null,null,null,null,null,null,null,null,null,null,null,null,null,null,"",null,null,null,null,null,null,null,null,null,"",null,null,null,null,null,null,null,null,null,null,null,null,"",null,null,"",null,null,null,null,null,null,null,null,"",null,null,null,null,""]
[null,null,null,null,null,null,null,null,null,null,null,null,null,null,null,null,null,null,null,null,null,null,null,null,null,null,null,null,null,null,null,null,null,null,null,null,null,null,null,null,null,"",null,null,null,null,null,null,null,null,null,"",null,null,null,null,null,null,null,null,null,null,null,null,"",null,null,"",null,null,null,null,null,null,null,null,"",null,null,null,null,""]
[null,null,null,null,null,null,null,null,null,null,null,null,null,null,null,null,null,null,null,null,null,null,null,null,null,null,null,null,null,null,null,null,null,null,null,null,null,null,null,null,null,"",null,null,null,null,null,null,null,null,null,"",null,null,null,null,null,null,null,null,null,null,null,null,"",null,null,"",null,null,null,null,null,null,null,null,"",null,null,null,null,""]
[null,null,null,null,null,null,null,null,null,null,null,null,null,null,null,null,null,null,null,null,null,null,null,null,null,null,null,null,null,null,null,null,null,null,null,null,null,null,null,null,null,"",null,null,null,null,null,null,null,null,null,"",null,null,null,null,null,null,null,null,null,null,null,null,"",null,null,"",null,null,null,null,null,null,null,null,"",null,null,null,null,""]
[null,null,null,null,null,null,null,null,null,null,null,null,null,null,null,null,null,null,null,null,null,null,null,null,null,null,null,null,null,null,null,null,null,null,null,null,null,null,null,null,null,"",null,null,null,null,null,null,null,null,null,"",null,null,null,null,null,null,null,null,null,null,null,null,"",null,null,"",null,null,null,null,null,null,null,null,"",null,null,null,null,""]
[null,null,null,null,null,null,null,null,null,null,null,null,null,null,null,null,null,null,null,null,null,null,null,null,null,null,null,null,null,null,null,null,null,null,null,null,null,null,null,null,null,"",null,null,null,null,null,null,null,null,null,"",null,null,null,null,null,null,null,null,null,null,null,null,"",null,null,"",null,null,null,null,null,null,null,null,"",null,null,null,null,""]
[null,null,null,null,null,null,null,null,null,null,null,null,null,null,null,null,null,null,null,null,null,null,null,null,null,null,null,null,null,null,null,null,null,null,null,null,null,null,null,null,null,"",null,null,null,null,null,null,null,null,null,"",null,null,null,null,null,null,null,null,null,null,null,null,"",null,null,"",null,null,null,null,null,null,null,null,"",null,null,null,null,""]
[null,null,null,null,null,null,null,null,null,null,null,null,null,null,null,null,null,null,null,null,null,null,null,null,null,null,null,null,null,null,null,null,null,null,null,null,null,null,null,null,null,"",null,null,null,null,null,null,null,null,null,"",null,null,null,null,null,null,null,null,null,null,null,null,"",null,null,"",null,null,null,null,null,null,null,null,"",null,null,null,null,""]
[null,null,null,null,null,null,null,null,null,null,null,null,null,null,null,null,null,null,null,null,null,null,null,null,null,null,null,null,null,null,null,null,null,null,null,null,null,null,null,null,null,"",null,null,null,null,null,null,null,null,null,"",null,null,null,null,null,null,null,null,null,null,null,null,"",null,null,"",null,null,null,null,null,null,null,null,"",null,null,null,null,""]
[null,null,null,null,null,null,null,null,null,null,null,null,null,null,null,null,null,null,null,null,null,null,null,null,null,null,null,null,null,null,null,null,null,null,null,null,null,null,null,null,null,"",null,null,null,null,null,null,null,null,null,"",null,null,null,null,null,null,null,null,null,null,null,null,"",null,null,"",null,null,null,null,null,null,null,null,"",null,null,null,null,""]
[null,null,null,null,null,null,null,null,null,null,null,null,null,null,null,null,null,null,null,null,null,null,null,null,null,null,null,null,null,null,null,null,null,null,null,null,null,null,null,null,null,"",null,null,null,null,null,null,null,null,null,"",null,null,null,null,null,null,null,null,null,null,null,null,"",null,null,"",null,null,null,null,null,null,null,null,"",null,null,null,null,""]
[null,null,null,null,null,null,null,null,null,null,null,null,null,null,null,null,null,null,null,null,null,null,null,null,null,null,null,null,null,null,null,null,null,null,null,null,null,null,null,null,null,"",null,null,null,null,null,null,null,null,null,"",null,null,null,null,null,null,null,null,null,null,null,null,"",null,null,"",null,null,null,null,null,null,null,null,"",null,null,null,null,""]
[null,null,null,null,null,null,null,null,null,null,null,null,null,null,null,null,null,null,null,null,null,null,null,null,null,null,null,null,null,null,null,null,null,null,null,null,null,null,null,null,null,"",null,null,null,null,null,null,null,null,null,"",null,null,null,null,null,null,null,null,null,null,null,null,"",null,null,"",null,null,null,null,null,null,null,null,"",null,null,null,null,""]
[null,null,null,null,null,null,null,null,null,null,null,null,null,null,null,null,null,null,null,null,null,null,null,null,null,null,null,null,null,null,null,null,null,null,null,null,null,null,null,null,null,"",null,null,null,null,null,null,null,null,null,"",null,null,null,null,null,null,null,null,null,null,null,null,"",null,null,"",null,null,null,null,null,null,null,null,"",null,null,null,null,""]
[null,null,null,null,null,null,null,null,null,null,null,null,null,null,null,null,null,null,null,null,null,null,null,null,null,null,null,null,null,null,null,null,null,null,null,null,null,null,null,null,null,"",null,null,null,null,null,null,null,null,null,{"$f":"IF(BN386<>\"\",BN386,\"\")","v":""},null,null,null,null,null,null,null,null,null,null,null,null,"",null,null,"",null,null,null,null,null,null,null,null,"",null,null,null,null,""]
[null,null,null,null,null,null,null,null,null,null,null,null,null,null,null,null,null,null,null,null,null,null,null,null,null,null,null,null,null,null,null,null,null,null,null,null,null,null,null,null,null,{"$f":"IF(AF387<>\"\",AF387,\"\")","v":""},null,null,null,null,null,null,null,null,null,"",null,null,null,null,null,null,null,null,null,null,null,null,{"$f":"IF(G387<>\"\",(G387+915),\"\")","v":""},null,null,{"$f":"IF(BV387=\"Yes\",(DATE(YEAR(G387)+3,MONTH(G387),DAY(G387))-BO387),\"\")","v":""},null,null,null,null,null,null,null,null,{"$f":"IF(BV387=\"Yes\",(DATE(YEAR(G387)+3,MONTH(G387),DAY(G387))-BX387),IF(BV387=\"Yes, but family declined\",(DATE(YEAR(G387)+3,MONTH(G387),DAY(G387))-BX387),\"\"))","v":""},null,null,null,null,{"$f":"IF(BV387=\"Yes\",(DATE(YEAR(G387)+3,MONTH(G387),DAY(G387))-CC387),IF(BV387=\"Yes, but family declined\",(DATE(YEAR(G387)+3,MONTH(G387),DAY(G387))-CC387),\"\"))","v":""}]
[null,null,null,null,null,null,null,null,null,null,null,null,null,null,null,null,null,null,null,null,null,null,null,null,null,null,null,null,null,null,null,null,null,null,null,null,null,null,null,null,null,"",null,null,null,null,null,null,null,null,null,"",null,null,null,null,null,null,null,null,null,null,null,null,"",null,null,"",null,null,null,null,null,null,null,null,"",null,null,null,null,""]
[null,null,null,null,null,null,null,null,null,null,null,null,null,null,null,null,null,null,null,null,null,null,null,null,null,null,null,null,null,null,null,null,null,null,null,null,null,null,null,null,null,"",null,null,null,null,null,null,null,null,null,"",null,null,null,null,null,null,null,null,null,null,null,null,"",null,null,"",null,null,null,null,null,null,null,null,"",null,null,null,null,""]
[null,null,null,null,null,null,null,null,null,null,null,null,null,null,null,null,null,null,null,null,null,null,null,null,null,null,null,null,null,null,null,null,null,null,null,null,null,null,null,null,null,"",null,null,null,null,null,null,null,null,null,"",null,null,null,null,null,null,null,null,null,null,null,null,"",null,null,"",null,null,null,null,null,null,null,null,"",null,null,null,null,""]
[null,null,null,null,null,null,null,null,null,null,null,null,null,null,null,null,null,null,null,null,null,null,null,null,null,null,null,null,null,null,null,null,null,null,null,null,null,null,null,null,null,"",null,null,null,null,null,null,null,null,null,"",null,null,null,null,null,null,null,null,null,null,null,null,"",null,null,"",null,null,null,null,null,null,null,null,"",null,null,null,null,""]
[null,null,null,null,null,null,null,null,null,null,null,null,null,null,null,null,null,null,null,null,null,null,null,null,null,null,null,null,null,null,null,null,null,null,null,null,null,null,null,null,null,"",null,null,null,null,null,null,null,null,null,"",null,null,null,null,null,null,null,null,null,null,null,null,"",null,null,"",null,null,null,null,null,null,null,null,"",null,null,null,null,""]
[null,null,null,null,null,null,null,null,null,null,null,null,null,null,null,null,null,null,null,null,null,null,null,null,null,null,null,null,null,null,null,null,null,null,null,null,null,null,null,null,null,"",null,null,null,null,null,null,null,null,null,"",null,null,null,null,null,null,null,null,null,null,null,null,"",null,null,"",null,null,null,null,null,null,null,null,"",null,null,null,null,""]
[null,null,null,null,null,null,null,null,null,null,null,null,null,null,null,null,null,null,null,null,null,null,null,null,null,null,null,null,null,null,null,null,null,null,null,null,null,null,null,null,null,"",null,null,null,null,null,null,null,null,null,"",null,null,null,null,null,null,null,null,null,null,null,null,"",null,null,"",null,null,null,null,null,null,null,null,"",null,null,null,null,""]
[null,null,null,null,null,null,null,null,null,null,null,null,null,null,null,null,null,null,null,null,null,null,null,null,null,null,null,null,null,null,null,null,null,null,null,null,null,null,null,null,null,"",null,null,null,null,null,null,null,null,null,"",null,null,null,null,null,null,null,null,null,null,null,null,"",null,null,"",null,null,null,null,null,null,null,null,"",null,null,null,null,""]
[null,null,null,null,null,null,null,null,null,null,null,null,null,null,null,null,null,null,null,null,null,null,null,null,null,null,null,null,null,null,null,null,null,null,null,null,null,null,null,null,null,"",null,null,null,null,null,null,null,null,null,"",null,null,null,null,null,null,null,null,null,null,null,null,"",null,null,"",null,null,null,null,null,null,null,null,"",null,null,null,null,""]
[null,null,null,null,null,null,null,null,null,null,null,null,null,null,null,null,null,null,null,null,null,null,null,null,null,null,null,null,null,null,null,null,null,null,null,null,null,null,null,null,null,"",null,null,null,null,null,null,null,null,null,"",null,null,null,null,null,null,null,null,null,null,null,null,"",null,null,"",null,null,null,null,null,null,null,null,"",null,null,null,null,""]
[null,null,null,null,null,null,null,null,null,null,null,null,null,null,null,null,null,null,null,null,null,null,null,null,null,null,null,null,null,null,null,null,null,null,null,null,null,null,null,null,null,"",null,null,null,null,null,null,null,null,null,"",null,null,null,null,null,null,null,null,null,null,null,null,"",null,null,"",null,null,null,null,null,null,null,null,"",null,null,null,null,""]
[null,null,null,null,null,null,null,null,null,null,null,null,null,null,null,null,null,null,null,null,null,null,null,null,null,null,null,null,null,null,null,null,null,null,null,null,null,null,null,null,null,"",null,null,null,null,null,null,null,null,null,"",null,null,null,null,null,null,null,null,null,null,null,null,"",null,null,"",null,null,null,null,null,null,null,null,"",null,null,null,null,""]
[null,null,null,null,null,null,null,null,null,null,null,null,null,null,null,null,null,null,null,null,null,null,null,null,null,null,null,null,null,null,null,null,null,null,null,null,null,null,null,null,null,"",null,null,null,null,null,null,null,null,null,"",null,null,null,null,null,null,null,null,null,null,null,null,"",null,null,"",null,null,null,null,null,null,null,null,"",null,null,null,null,""]
[null,null,null,null,null,null,null,null,null,null,null,null,null,null,null,null,null,null,null,null,null,null,null,null,null,null,null,null,null,null,null,null,null,null,null,null,null,null,null,null,null,"",null,null,null,null,null,null,null,null,null,"",null,null,null,null,null,null,null,null,null,null,null,null,"",null,null,"",null,null,null,null,null,null,null,null,"",null,null,null,null,""]
[null,null,null,null,null,null,null,null,null,null,null,null,null,null,null,null,null,null,null,null,null,null,null,null,null,null,null,null,null,null,null,null,null,null,null,null,null,null,null,null,null,"",null,null,null,null,null,null,null,null,null,"",null,null,null,null,null,null,null,null,null,null,null,null,"",null,null,"",null,null,null,null,null,null,null,null,"",null,null,null,null,""]
[null,null,null,null,null,null,null,null,null,null,null,null,null,null,null,null,null,null,null,null,null,null,null,null,null,null,null,null,null,null,null,null,null,null,null,null,null,null,null,null,null,"",null,null,null,null,null,null,null,null,null,"",null,null,null,null,null,null,null,null,null,null,null,null,"",null,null,"",null,null,null,null,null,null,null,null,"",null,null,null,null,""]
[null,null,null,null,null,null,null,null,null,null,null,null,null,null,null,null,null,null,null,null,null,null,null,null,null,null,null,null,null,null,null,null,null,null,null,null,null,null,null,null,null,"",null,null,null,null,null,null,null,null,null,"",null,null,null,null,null,null,null,null,null,null,null,null,"",null,null,"",null,null,null,null,null,null,null,null,"",null,null,null,null,""]
[null,null,null,null,null,null,null,null,null,null,null,null,null,null,null,null,null,null,null,null,null,null,null,null,null,null,null,null,null,null,null,null,null,null,null,null,null,null,null,null,null,"",null,null,null,null,null,null,null,null,null,"",null,null,null,null,null,null,null,null,null,null,null,null,"",null,null,"",null,null,null,null,null,null,null,null,"",null,null,null,null,""]
[null,null,null,null,null,null,null,null,null,null,null,null,null,null,null,null,null,null,null,null,null,null,null,null,null,null,null,null,null,null,null,null,null,null,null,null,null,null,null,null,null,"",null,null,null,null,null,null,null,null,null,"",null,null,null,null,null,null,null,null,null,null,null,null,"",null,null,"",null,null,null,null,null,null,null,null,"",null,null,null,null,""]
[null,null,null,null,null,null,null,null,null,null,null,null,null,null,null,null,null,null,null,null,null,null,null,null,null,null,null,null,null,null,null,null,null,null,null,null,null,null,null,null,null,"",null,null,null,null,null,null,null,null,null,"",null,null,null,null,null,null,null,null,null,null,null,null,"",null,null,"",null,null,null,null,null,null,null,null,"",null,null,null,null,""]
[null,null,null,null,null,null,null,null,null,null,null,null,null,null,null,null,null,null,null,null,null,null,null,null,null,null,null,null,null,null,null,null,null,null,null,null,null,null,null,null,null,"",null,null,null,null,null,null,null,null,null,"",null,null,null,null,null,null,null,null,null,null,null,null,"",null,null,"",null,null,null,null,null,null,null,null,"",null,null,null,null,""]
[null,null,null,null,null,null,null,null,null,null,null,null,null,null,null,null,null,null,null,null,null,null,null,null,null,null,null,null,null,null,null,null,null,null,null,null,null,null,null,null,null,"",null,null,null,null,null,null,null,null,null,"",null,null,null,null,null,null,null,null,null,null,null,null,"",null,null,"",null,null,null,null,null,null,null,null,"",null,null,null,null,""]
[null,null,null,null,null,null,null,null,null,null,null,null,null,null,null,null,null,null,null,null,null,null,null,null,null,null,null,null,null,null,null,null,null,null,null,null,null,null,null,null,null,"",null,null,null,null,null,null,null,null,null,"",null,null,null,null,null,null,null,null,null,null,null,null,"",null,null,"",null,null,null,null,null,null,null,null,"",null,null,null,null,""]
[null,null,null,null,null,null,null,null,null,null,null,null,null,null,null,null,null,null,null,null,null,null,null,null,null,null,null,null,null,null,null,null,null,null,null,null,null,null,null,null,null,"",null,null,null,null,null,null,null,null,null,"",null,null,null,null,null,null,null,null,null,null,null,null,"",null,null,"",null,null,null,null,null,null,null,null,"",null,null,null,null,""]
[null,null,null,null,null,null,null,null,null,null,null,null,null,null,null,null,null,null,null,null,null,null,null,null,null,null,null,null,null,null,null,null,null,null,null,null,null,null,null,null,null,"",null,null,null,null,null,null,null,null,null,"",null,null,null,null,null,null,null,null,null,null,null,null,"",null,null,"",null,null,null,null,null,null,null,null,"",null,null,null,null,""]
[null,null,null,null,null,null,null,null,null,null,null,null,null,null,null,null,null,null,null,null,null,null,null,null,null,null,null,null,null,null,null,null,null,null,null,null,null,null,null,null,null,"",null,null,null,null,null,null,null,null,null,"",null,null,null,null,null,null,null,null,null,null,null,null,"",null,null,"",null,null,null,null,null,null,null,null,"",null,null,null,null,""]
[null,null,null,null,null,null,null,null,null,null,null,null,null,null,null,null,null,null,null,null,null,null,null,null,null,null,null,null,null,null,null,null,null,null,null,null,null,null,null,null,null,"",null,null,null,null,null,null,null,null,null,"",null,null,null,null,null,null,null,null,null,null,null,null,"",null,null,"",null,null,null,null,null,null,null,null,"",null,null,null,null,""]
[null,null,null,null,null,null,null,null,null,null,null,null,null,null,null,null,null,null,null,null,null,null,null,null,null,null,null,null,null,null,null,null,null,null,null,null,null,null,null,null,null,"",null,null,null,null,null,null,null,null,null,"",null,null,null,null,null,null,null,null,null,null,null,null,"",null,null,"",null,null,null,null,null,null,null,null,"",null,null,null,null,""]
[null,null,null,null,null,null,null,null,null,null,null,null,null,null,null,null,null,null,null,null,null,null,null,null,null,null,null,null,null,null,null,null,null,null,null,null,null,null,null,null,null,"",null,null,null,null,null,null,null,null,null,"",null,null,null,null,null,null,null,null,null,null,null,null,"",null,null,"",null,null,null,null,null,null,null,null,"",null,null,null,null,""]
[null,null,null,null,null,null,null,null,null,null,null,null,null,null,null,null,null,null,null,null,null,null,null,null,null,null,null,null,null,null,null,null,null,null,null,null,null,null,null,null,null,"",null,null,null,null,null,null,null,null,null,"",null,null,null,null,null,null,null,null,null,null,null,null,"",null,null,"",null,null,null,null,null,null,null,null,"",null,null,null,null,""]
[null,null,null,null,null,null,null,null,null,null,null,null,null,null,null,null,null,null,null,null,null,null,null,null,null,null,null,null,null,null,null,null,null,null,null,null,null,null,null,null,null,"",null,null,null,null,null,null,null,null,null,"",null,null,null,null,null,null,null,null,null,null,null,null,"",null,null,"",null,null,null,null,null,null,null,null,"",null,null,null,null,""]
[null,null,null,null,null,null,null,null,null,null,null,null,null,null,null,null,null,null,null,null,null,null,null,null,null,null,null,null,null,null,null,null,null,null,null,null,null,null,null,null,null,"",null,null,null,null,null,null,null,null,null,"",null,null,null,null,null,null,null,null,null,null,null,null,"",null,null,"",null,null,null,null,null,null,null,null,"",null,null,null,null,""]
[null,null,null,null,null,null,null,null,null,null,null,null,null,null,null,null,null,null,null,null,null,null,null,null,null,null,null,null,null,null,null,null,null,null,null,null,null,null,null,null,null,"",null,null,null,null,null,null,null,null,null,"",null,null,null,null,null,null,null,null,null,null,null,null,"",null,null,"",null,null,null,null,null,null,null,null,"",null,null,null,null,""]
[null,null,null,null,null,null,null,null,null,null,null,null,null,null,null,null,null,null,null,null,null,null,null,null,null,null,null,null,null,null,null,null,null,null,null,null,null,null,null,null,null,"",null,null,null,null,null,null,null,null,null,"",null,null,null,null,null,null,null,null,null,null,null,null,"",null,null,"",null,null,null,null,null,null,null,null,"",null,null,null,null,""]
[null,null,null,null,null,null,null,null,null,null,null,null,null,null,null,null,null,null,null,null,null,null,null,null,null,null,null,null,null,null,null,null,null,null,null,null,null,null,null,null,null,"",null,null,null,null,null,null,null,null,null,"",null,null,null,null,null,null,null,null,null,null,null,null,"",null,null,"",null,null,null,null,null,null,null,null,"",null,null,null,null,""]
[null,null,null,null,null,null,null,null,null,null,null,null,null,null,null,null,null,null,null,null,null,null,null,null,null,null,null,null,null,null,null,null,null,null,null,null,null,null,null,null,null,"",null,null,null,null,null,null,null,null,null,"",null,null,null,null,null,null,null,null,null,null,null,null,"",null,null,"",null,null,null,null,null,null,null,null,"",null,null,null,null,""]
[null,null,null,null,null,null,null,null,null,null,null,null,null,null,null,null,null,null,null,null,null,null,null,null,null,null,null,null,null,null,null,null,null,null,null,null,null,null,null,null,null,"",null,null,null,null,null,null,null,null,null,"",null,null,null,null,null,null,null,null,null,null,null,null,"",null,null,"",null,null,null,null,null,null,null,null,"",null,null,null,null,""]
[null,null,null,null,null,null,null,null,null,null,null,null,null,null,null,null,null,null,null,null,null,null,null,null,null,null,null,null,null,null,null,null,null,null,null,null,null,null,null,null,null,"",null,null,null,null,null,null,null,null,null,"",null,null,null,null,null,null,null,null,null,null,null,null,"",null,null,"",null,null,null,null,null,null,null,null,"",null,null,null,null,""]
[null,null,null,null,null,null,null,null,null,null,null,null,null,null,null,null,null,null,null,null,null,null,null,null,null,null,null,null,null,null,null,null,null,null,null,null,null,null,null,null,null,"",null,null,null,null,null,null,null,null,null,"",null,null,null,null,null,null,null,null,null,null,null,null,"",null,null,"",null,null,null,null,null,null,null,null,"",null,null,null,null,""]
[null,null,null,null,null,null,null,null,null,null,null,null,null,null,null,null,null,null,null,null,null,null,null,null,null,null,null,null,null,null,null,null,null,null,null,null,null,null,null,null,null,"",null,null,null,null,null,null,null,null,null,"",null,null,null,null,null,null,null,null,null,null,null,null,"",null,null,"",null,null,null,null,null,null,null,null,"",null,null,null,null,""]
[null,null,null,null,null,null,null,null,null,null,null,null,null,null,null,null,null,null,null,null,null,null,null,null,null,null,null,null,null,null,null,null,null,null,null,null,null,null,null,null,null,"",null,null,null,null,null,null,null,null,null,"",null,null,null,null,null,null,null,null,null,null,null,null,"",null,null,"",null,null,null,null,null,null,null,null,"",null,null,null,null,""]
[null,null,null,null,null,null,null,null,null,null,null,null,null,null,null,null,null,null,null,null,null,null,null,null,null,null,null,null,null,null,null,null,null,null,null,null,null,null,null,null,null,"",null,null,null,null,null,null,null,null,null,"",null,null,null,null,null,null,null,null,null,null,null,null,"",null,null,"",null,null,null,null,null,null,null,null,"",null,null,null,null,""]
[null,null,null,null,null,null,null,null,null,null,null,null,null,null,null,null,null,null,null,null,null,null,null,null,null,null,null,null,null,null,null,null,null,null,null,null,null,null,null,null,null,"",null,null,null,null,null,null,null,null,null,"",null,null,null,null,null,null,null,null,null,null,null,null,"",null,null,"",null,null,null,null,null,null,null,null,"",null,null,null,null,""]
[null,null,null,null,null,null,null,null,null,null,null,null,null,null,null,null,null,null,null,null,null,null,null,null,null,null,null,null,null,null,null,null,null,null,null,null,null,null,null,null,null,"",null,null,null,null,null,null,null,null,null,"",null,null,null,null,null,null,null,null,null,null,null,null,"",null,null,"",null,null,null,null,null,null,null,null,"",null,null,null,null,""]
[null,null,null,null,null,null,null,null,null,null,null,null,null,null,null,null,null,null,null,null,null,null,null,null,null,null,null,null,null,null,null,null,null,null,null,null,null,null,null,null,null,"",null,null,null,null,null,null,null,null,null,"",null,null,null,null,null,null,null,null,null,null,null,null,"",null,null,"",null,null,null,null,null,null,null,null,"",null,null,null,null,""]
[null,null,null,null,null,null,null,null,null,null,null,null,null,null,null,null,null,null,null,null,null,null,null,null,null,null,null,null,null,null,null,null,null,null,null,null,null,null,null,null,null,"",null,null,null,null,null,null,null,null,null,"",null,null,null,null,null,null,null,null,null,null,null,null,"",null,null,"",null,null,null,null,null,null,null,null,"",null,null,null,null,""]
[null,null,null,null,null,null,null,null,null,null,null,null,null,null,null,null,null,null,null,null,null,null,null,null,null,null,null,null,null,null,null,null,null,null,null,null,null,null,null,null,null,"",null,null,null,null,null,null,null,null,null,"",null,null,null,null,null,null,null,null,null,null,null,null,"",null,null,"",null,null,null,null,null,null,null,null,"",null,null,null,null,""]
[null,null,null,null,null,null,null,null,null,null,null,null,null,null,null,null,null,null,null,null,null,null,null,null,null,null,null,null,null,null,null,null,null,null,null,null,null,null,null,null,null,"",null,null,null,null,null,null,null,null,null,"",null,null,null,null,null,null,null,null,null,null,null,null,"",null,null,"",null,null,null,null,null,null,null,null,"",null,null,null,null,""]
[null,null,null,null,null,null,null,null,null,null,null,null,null,null,null,null,null,null,null,null,null,null,null,null,null,null,null,null,null,null,null,null,null,null,null,null,null,null,null,null,null,"",null,null,null,null,null,null,null,null,null,"",null,null,null,null,null,null,null,null,null,null,null,null,"",null,null,"",null,null,null,null,null,null,null,null,"",null,null,null,null,""]
[null,null,null,null,null,null,null,null,null,null,null,null,null,null,null,null,null,null,null,null,null,null,null,null,null,null,null,null,null,null,null,null,null,null,null,null,null,null,null,null,null,"",null,null,null,null,null,null,null,null,null,"",null,null,null,null,null,null,null,null,null,null,null,null,"",null,null,"",null,null,null,null,null,null,null,null,"",null,null,null,null,""]
[null,null,null,null,null,null,null,null,null,null,null,null,null,null,null,null,null,null,null,null,null,null,null,null,null,null,null,null,null,null,null,null,null,null,null,null,null,null,null,null,null,"",null,null,null,null,null,null,null,null,null,"",null,null,null,null,null,null,null,null,null,null,null,null,"",null,null,"",null,null,null,null,null,null,null,null,"",null,null,null,null,""]
[null,null,null,null,null,null,null,null,null,null,null,null,null,null,null,null,null,null,null,null,null,null,null,null,null,null,null,null,null,null,null,null,null,null,null,null,null,null,null,null,null,"",null,null,null,null,null,null,null,null,null,"",null,null,null,null,null,null,null,null,null,null,null,null,"",null,null,"",null,null,null,null,null,null,null,null,"",null,null,null,null,""]
[null,null,null,null,null,null,null,null,null,null,null,null,null,null,null,null,null,null,null,null,null,null,null,null,null,null,null,null,null,null,null,null,null,null,null,null,null,null,null,null,null,"",null,null,null,null,null,null,null,null,null,"",null,null,null,null,null,null,null,null,null,null,null,null,"",null,null,"",null,null,null,null,null,null,null,null,"",null,null,null,null,""]
[null,null,null,null,null,null,null,null,null,null,null,null,null,null,null,null,null,null,null,null,null,null,null,null,null,null,null,null,null,null,null,null,null,null,null,null,null,null,null,null,null,"",null,null,null,null,null,null,null,null,null,"",null,null,null,null,null,null,null,null,null,null,null,null,"",null,null,"",null,null,null,null,null,null,null,null,"",null,null,null,null,""]
[null,null,null,null,null,null,null,null,null,null,null,null,null,null,null,null,null,null,null,null,null,null,null,null,null,null,null,null,null,null,null,null,null,null,null,null,null,null,null,null,null,"",null,null,null,null,null,null,null,null,null,"",null,null,null,null,null,null,null,null,null,null,null,null,"",null,null,"",null,null,null,null,null,null,null,null,"",null,null,null,null,""]
[null,null,null,null,null,null,null,null,null,null,null,null,null,null,null,null,null,null,null,null,null,null,null,null,null,null,null,null,null,null,null,null,null,null,null,null,null,null,null,null,null,"",null,null,null,null,null,null,null,null,null,"",null,null,null,null,null,null,null,null,null,null,null,null,"",null,null,"",null,null,null,null,null,null,null,null,"",null,null,null,null,""]
[null,null,null,null,null,null,null,null,null,null,null,null,null,null,null,null,null,null,null,null,null,null,null,null,null,null,null,null,null,null,null,null,null,null,null,null,null,null,null,null,null,"",null,null,null,null,null,null,null,null,null,"",null,null,null,null,null,null,null,null,null,null,null,null,"",null,null,"",null,null,null,null,null,null,null,null,"",null,null,null,null,""]
[null,null,null,null,null,null,null,null,null,null,null,null,null,null,null,null,null,null,null,null,null,null,null,null,null,null,null,null,null,null,null,null,null,null,null,null,null,null,null,null,null,"",null,null,null,null,null,null,null,null,null,"",null,null,null,null,null,null,null,null,null,null,null,null,"",null,null,"",null,null,null,null,null,null,null,null,"",null,null,null,null,""]
[null,null,null,null,null,null,null,null,null,null,null,null,null,null,null,null,null,null,null,null,null,null,null,null,null,null,null,null,null,null,null,null,null,null,null,null,null,null,null,null,null,"",null,null,null,null,null,null,null,null,null,"",null,null,null,null,null,null,null,null,null,null,null,null,"",null,null,"",null,null,null,null,null,null,null,null,"",null,null,null,null,""]
[null,null,null,null,null,null,null,null,null,null,null,null,null,null,null,null,null,null,null,null,null,null,null,null,null,null,null,null,null,null,null,null,null,null,null,null,null,null,null,null,null,"",null,null,null,null,null,null,null,null,null,"",null,null,null,null,null,null,null,null,null,null,null,null,"",null,null,"",null,null,null,null,null,null,null,null,"",null,null,null,null,""]
[null,null,null,null,null,null,null,null,null,null,null,null,null,null,null,null,null,null,null,null,null,null,null,null,null,null,null,null,null,null,null,null,null,null,null,null,null,null,null,null,null,"",null,null,null,null,null,null,null,null,null,"",null,null,null,null,null,null,null,null,null,null,null,null,"",null,null,"",null,null,null,null,null,null,null,null,"",null,null,null,null,""]
[null,null,null,null,null,null,null,null,null,null,null,null,null,null,null,null,null,null,null,null,null,null,null,null,null,null,null,null,null,null,null,null,null,null,null,null,null,null,null,null,null,"",null,null,null,null,null,null,null,null,null,"",null,null,null,null,null,null,null,null,null,null,null,null,"",null,null,"",null,null,null,null,null,null,null,null,"",null,null,null,null,""]
[null,null,null,null,null,null,null,null,null,null,null,null,null,null,null,null,null,null,null,null,null,null,null,null,null,null,null,null,null,null,null,null,null,null,null,null,null,null,null,null,null,"",null,null,null,null,null,null,null,null,null,{"$f":"IF(BN450<>\"\",BN450,\"\")","v":""},null,null,null,null,null,null,null,null,null,null,null,null,"",null,null,"",null,null,null,null,null,null,null,null,"",null,null,null,null,""]
[null,null,null,null,null,null,null,null,null,null,null,null,null,null,null,null,null,null,null,null,null,null,null,null,null,null,null,null,null,null,null,null,null,null,null,null,null,null,null,null,null,{"$f":"IF(AF451<>\"\",AF451,\"\")","v":""},null,null,null,null,null,null,null,null,null,"",null,null,null,null,null,null,null,null,null,null,null,null,{"$f":"IF(G451<>\"\",(G451+915),\"\")","v":""},null,null,{"$f":"IF(BV451=\"Yes\",(DATE(YEAR(G451)+3,MONTH(G451),DAY(G451))-BO451),\"\")","v":""},null,null,null,null,null,null,null,null,{"$f":"IF(BV451=\"Yes\",(DATE(YEAR(G451)+3,MONTH(G451),DAY(G451))-BX451),IF(BV451=\"Yes, but family declined\",(DATE(YEAR(G451)+3,MONTH(G451),DAY(G451))-BX451),\"\"))","v":""},null,null,null,null,{"$f":"IF(BV451=\"Yes\",(DATE(YEAR(G451)+3,MONTH(G451),DAY(G451))-CC451),IF(BV451=\"Yes, but family declined\",(DATE(YEAR(G451)+3,MONTH(G451),DAY(G451))-CC451),\"\"))","v":""}]
[null,null,null,null,null,null,null,null,null,null,null,null,null,null,null,null,null,null,null,null,null,null,null,null,null,null,null,null,null,null,null,null,null,null,null,null,null,null,null,null,null,"",null,null,null,null,null,null,null,null,null,"",null,null,null,null,null,null,null,null,null,null,null,null,"",null,null,"",null,null,null,null,null,null,null,null,"",null,null,null,null,""]
[null,null,null,null,null,null,null,null,null,null,null,null,null,null,null,null,null,null,null,null,null,null,null,null,null,null,null,null,null,null,null,null,null,null,null,null,null,null,null,null,null,"",null,null,null,null,null,null,null,null,null,"",null,null,null,null,null,null,null,null,null,null,null,null,"",null,null,"",null,null,null,null,null,null,null,null,"",null,null,null,null,""]
[null,null,null,null,null,null,null,null,null,null,null,null,null,null,null,null,null,null,null,null,null,null,null,null,null,null,null,null,null,null,null,null,null,null,null,null,null,null,null,null,null,"",null,null,null,null,null,null,null,null,null,"",null,null,null,null,null,null,null,null,null,null,null,null,"",null,null,"",null,null,null,null,null,null,null,null,"",null,null,null,null,""]
[null,null,null,null,null,null,null,null,null,null,null,null,null,null,null,null,null,null,null,null,null,null,null,null,null,null,null,null,null,null,null,null,null,null,null,null,null,null,null,null,null,"",null,null,null,null,null,null,null,null,null,"",null,null,null,null,null,null,null,null,null,null,null,null,"",null,null,"",null,null,null,null,null,null,null,null,"",null,null,null,null,""]
[null,null,null,null,null,null,null,null,null,null,null,null,null,null,null,null,null,null,null,null,null,null,null,null,null,null,null,null,null,null,null,null,null,null,null,null,null,null,null,null,null,"",null,null,null,null,null,null,null,null,null,"",null,null,null,null,null,null,null,null,null,null,null,null,"",null,null,"",null,null,null,null,null,null,null,null,"",null,null,null,null,""]
[null,null,null,null,null,null,null,null,null,null,null,null,null,null,null,null,null,null,null,null,null,null,null,null,null,null,null,null,null,null,null,null,null,null,null,null,null,null,null,null,null,"",null,null,null,null,null,null,null,null,null,"",null,null,null,null,null,null,null,null,null,null,null,null,"",null,null,"",null,null,null,null,null,null,null,null,"",null,null,null,null,""]
[null,null,null,null,null,null,null,null,null,null,null,null,null,null,null,null,null,null,null,null,null,null,null,null,null,null,null,null,null,null,null,null,null,null,null,null,null,null,null,null,null,"",null,null,null,null,null,null,null,null,null,"",null,null,null,null,null,null,null,null,null,null,null,null,"",null,null,"",null,null,null,null,null,null,null,null,"",null,null,null,null,""]
[null,null,null,null,null,null,null,null,null,null,null,null,null,null,null,null,null,null,null,null,null,null,null,null,null,null,null,null,null,null,null,null,null,null,null,null,null,null,null,null,null,"",null,null,null,null,null,null,null,null,null,"",null,null,null,null,null,null,null,null,null,null,null,null,"",null,null,"",null,null,null,null,null,null,null,null,"",null,null,null,null,""]
[null,null,null,null,null,null,null,null,null,null,null,null,null,null,null,null,null,null,null,null,null,null,null,null,null,null,null,null,null,null,null,null,null,null,null,null,null,null,null,null,null,"",null,null,null,null,null,null,null,null,null,"",null,null,null,null,null,null,null,null,null,null,null,null,"",null,null,"",null,null,null,null,null,null,null,null,"",null,null,null,null,""]
[null,null,null,null,null,null,null,null,null,null,null,null,null,null,null,null,null,null,null,null,null,null,null,null,null,null,null,null,null,null,null,null,null,null,null,null,null,null,null,null,null,"",null,null,null,null,null,null,null,null,null,"",null,null,null,null,null,null,null,null,null,null,null,null,"",null,null,"",null,null,null,null,null,null,null,null,"",null,null,null,null,""]
[null,null,null,null,null,null,null,null,null,null,null,null,null,null,null,null,null,null,null,null,null,null,null,null,null,null,null,null,null,null,null,null,null,null,null,null,null,null,null,null,null,"",null,null,null,null,null,null,null,null,null,"",null,null,null,null,null,null,null,null,null,null,null,null,"",null,null,"",null,null,null,null,null,null,null,null,"",null,null,null,null,""]
[null,null,null,null,null,null,null,null,null,null,null,null,null,null,null,null,null,null,null,null,null,null,null,null,null,null,null,null,null,null,null,null,null,null,null,null,null,null,null,null,null,"",null,null,null,null,null,null,null,null,null,"",null,null,null,null,null,null,null,null,null,null,null,null,"",null,null,"",null,null,null,null,null,null,null,null,"",null,null,null,null,""]
[null,null,null,null,null,null,null,null,null,null,null,null,null,null,null,null,null,null,null,null,null,null,null,null,null,null,null,null,null,null,null,null,null,null,null,null,null,null,null,null,null,"",null,null,null,null,null,null,null,null,null,"",null,null,null,null,null,null,null,null,null,null,null,null,"",null,null,"",null,null,null,null,null,null,null,null,"",null,null,null,null,""]
[null,null,null,null,null,null,null,null,null,null,null,null,null,null,null,null,null,null,null,null,null,null,null,null,null,null,null,null,null,null,null,null,null,null,null,null,null,null,null,null,null,"",null,null,null,null,null,null,null,null,null,"",null,null,null,null,null,null,null,null,null,null,null,null,"",null,null,"",null,null,null,null,null,null,null,null,"",null,null,null,null,""]
[null,null,null,null,null,null,null,null,null,null,null,null,null,null,null,null,null,null,null,null,null,null,null,null,null,null,null,null,null,null,null,null,null,null,null,null,null,null,null,null,null,"",null,null,null,null,null,null,null,null,null,"",null,null,null,null,null,null,null,null,null,null,null,null,"",null,null,"",null,null,null,null,null,null,null,null,"",null,null,null,null,""]
[null,null,null,null,null,null,null,null,null,null,null,null,null,null,null,null,null,null,null,null,null,null,null,null,null,null,null,null,null,null,null,null,null,null,null,null,null,null,null,null,null,"",null,null,null,null,null,null,null,null,null,"",null,null,null,null,null,null,null,null,null,null,null,null,"",null,null,"",null,null,null,null,null,null,null,null,"",null,null,null,null,""]
[null,null,null,null,null,null,null,null,null,null,null,null,null,null,null,null,null,null,null,null,null,null,null,null,null,null,null,null,null,null,null,null,null,null,null,null,null,null,null,null,null,"",null,null,null,null,null,null,null,null,null,"",null,null,null,null,null,null,null,null,null,null,null,null,"",null,null,"",null,null,null,null,null,null,null,null,"",null,null,null,null,""]
[null,null,null,null,null,null,null,null,null,null,null,null,null,null,null,null,null,null,null,null,null,null,null,null,null,null,null,null,null,null,null,null,null,null,null,null,null,null,null,null,null,"",null,null,null,null,null,null,null,null,null,"",null,null,null,null,null,null,null,null,null,null,null,null,"",null,null,"",null,null,null,null,null,null,null,null,"",null,null,null,null,""]
[null,null,null,null,null,null,null,null,null,null,null,null,null,null,null,null,null,null,null,null,null,null,null,null,null,null,null,null,null,null,null,null,null,null,null,null,null,null,null,null,null,"",null,null,null,null,null,null,null,null,null,"",null,null,null,null,null,null,null,null,null,null,null,null,"",null,null,"",null,null,null,null,null,null,null,null,"",null,null,null,null,""]
[null,null,null,null,null,null,null,null,null,null,null,null,null,null,null,null,null,null,null,null,null,null,null,null,null,null,null,null,null,null,null,null,null,null,null,null,null,null,null,null,null,"",null,null,null,null,null,null,null,null,null,"",null,null,null,null,null,null,null,null,null,null,null,null,"",null,null,"",null,null,null,null,null,null,null,null,"",null,null,null,null,""]
[null,null,null,null,null,null,null,null,null,null,null,null,null,null,null,null,null,null,null,null,null,null,null,null,null,null,null,null,null,null,null,null,null,null,null,null,null,null,null,null,null,"",null,null,null,null,null,null,null,null,null,"",null,null,null,null,null,null,null,null,null,null,null,null,"",null,null,"",null,null,null,null,null,null,null,null,"",null,null,null,null,""]
[null,null,null,null,null,null,null,null,null,null,null,null,null,null,null,null,null,null,null,null,null,null,null,null,null,null,null,null,null,null,null,null,null,null,null,null,null,null,null,null,null,"",null,null,null,null,null,null,null,null,null,"",null,null,null,null,null,null,null,null,null,null,null,null,"",null,null,"",null,null,null,null,null,null,null,null,"",null,null,null,null,""]
[null,null,null,null,null,null,null,null,null,null,null,null,null,null,null,null,null,null,null,null,null,null,null,null,null,null,null,null,null,null,null,null,null,null,null,null,null,null,null,null,null,"",null,null,null,null,null,null,null,null,null,"",null,null,null,null,null,null,null,null,null,null,null,null,"",null,null,"",null,null,null,null,null,null,null,null,"",null,null,null,null,""]
[null,null,null,null,null,null,null,null,null,null,null,null,null,null,null,null,null,null,null,null,null,null,null,null,null,null,null,null,null,null,null,null,null,null,null,null,null,null,null,null,null,"",null,null,null,null,null,null,null,null,null,"",null,null,null,null,null,null,null,null,null,null,null,null,"",null,null,"",null,null,null,null,null,null,null,null,"",null,null,null,null,""]
[null,null,null,null,null,null,null,null,null,null,null,null,null,null,null,null,null,null,null,null,null,null,null,null,null,null,null,null,null,null,null,null,null,null,null,null,null,null,null,null,null,"",null,null,null,null,null,null,null,null,null,"",null,null,null,null,null,null,null,null,null,null,null,null,"",null,null,"",null,null,null,null,null,null,null,null,"",null,null,null,null,""]
[null,null,null,null,null,null,null,null,null,null,null,null,null,null,null,null,null,null,null,null,null,null,null,null,null,null,null,null,null,null,null,null,null,null,null,null,null,null,null,null,null,"",null,null,null,null,null,null,null,null,null,"",null,null,null,null,null,null,null,null,null,null,null,null,"",null,null,"",null,null,null,null,null,null,null,null,"",null,null,null,null,""]
[null,null,null,null,null,null,null,null,null,null,null,null,null,null,null,null,null,null,null,null,null,null,null,null,null,null,null,null,null,null,null,null,null,null,null,null,null,null,null,null,null,"",null,null,null,null,null,null,null,null,null,"",null,null,null,null,null,null,null,null,null,null,null,null,"",null,null,"",null,null,null,null,null,null,null,null,"",null,null,null,null,""]
[null,null,null,null,null,null,null,null,null,null,null,null,null,null,null,null,null,null,null,null,null,null,null,null,null,null,null,null,null,null,null,null,null,null,null,null,null,null,null,null,null,"",null,null,null,null,null,null,null,null,null,"",null,null,null,null,null,null,null,null,null,null,null,null,"",null,null,"",null,null,null,null,null,null,null,null,"",null,null,null,null,""]
[null,null,null,null,null,null,null,null,null,null,null,null,null,null,null,null,null,null,null,null,null,null,null,null,null,null,null,null,null,null,null,null,null,null,null,null,null,null,null,null,null,"",null,null,null,null,null,null,null,null,null,"",null,null,null,null,null,null,null,null,null,null,null,null,"",null,null,"",null,null,null,null,null,null,null,null,"",null,null,null,null,""]
[null,null,null,null,null,null,null,null,null,null,null,null,null,null,null,null,null,null,null,null,null,null,null,null,null,null,null,null,null,null,null,null,null,null,null,null,null,null,null,null,null,"",null,null,null,null,null,null,null,null,null,"",null,null,null,null,null,null,null,null,null,null,null,null,"",null,null,"",null,null,null,null,null,null,null,null,"",null,null,null,null,""]
[null,null,null,null,null,null,null,null,null,null,null,null,null,null,null,null,null,null,null,null,null,null,null,null,null,null,null,null,null,null,null,null,null,null,null,null,null,null,null,null,null,"",null,null,null,null,null,null,null,null,null,"",null,null,null,null,null,null,null,null,null,null,null,null,"",null,null,"",null,null,null,null,null,null,null,null,"",null,null,null,null,""]
[null,null,null,null,null,null,null,null,null,null,null,null,null,null,null,null,null,null,null,null,null,null,null,null,null,null,null,null,null,null,null,null,null,null,null,null,null,null,null,null,null,"",null,null,null,null,null,null,null,null,null,"",null,null,null,null,null,null,null,null,null,null,null,null,"",null,null,"",null,null,null,null,null,null,null,null,"",null,null,null,null,""]
[null,null,null,null,null,null,null,null,null,null,null,null,null,null,null,null,null,null,null,null,null,null,null,null,null,null,null,null,null,null,null,null,null,null,null,null,null,null,null,null,null,"",null,null,null,null,null,null,null,null,null,"",null,null,null,null,null,null,null,null,null,null,null,null,"",null,null,"",null,null,null,null,null,null,null,null,"",null,null,null,null,""]
[null,null,null,null,null,null,null,null,null,null,null,null,null,null,null,null,null,null,null,null,null,null,null,null,null,null,null,null,null,null,null,null,null,null,null,null,null,null,null,null,null,"",null,null,null,null,null,null,null,null,null,"",null,null,null,null,null,null,null,null,null,null,null,null,"",null,null,"",null,null,null,null,null,null,null,null,"",null,null,null,null,""]
[null,null,null,null,null,null,null,null,null,null,null,null,null,null,null,null,null,null,null,null,null,null,null,null,null,null,null,null,null,null,null,null,null,null,null,null,null,null,null,null,null,"",null,null,null,null,null,null,null,null,null,"",null,null,null,null,null,null,null,null,null,null,null,null,"",null,null,"",null,null,null,null,null,null,null,null,"",null,null,null,null,""]
[null,null,null,null,null,null,null,null,null,null,null,null,null,null,null,null,null,null,null,null,null,null,null,null,null,null,null,null,null,null,null,null,null,null,null,null,null,null,null,null,null,"",null,null,null,null,null,null,null,null,null,"",null,null,null,null,null,null,null,null,null,null,null,null,"",null,null,"",null,null,null,null,null,null,null,null,"",null,null,null,null,""]
[null,null,null,null,null,null,null,null,null,null,null,null,null,null,null,null,null,null,null,null,null,null,null,null,null,null,null,null,null,null,null,null,null,null,null,null,null,null,null,null,null,"",null,null,null,null,null,null,null,null,null,"",null,null,null,null,null,null,null,null,null,null,null,null,"",null,null,"",null,null,null,null,null,null,null,null,"",null,null,null,null,""]
[null,null,null,null,null,null,null,null,null,null,null,null,null,null,null,null,null,null,null,null,null,null,null,null,null,null,null,null,null,null,null,null,null,null,null,null,null,null,null,null,null,"",null,null,null,null,null,null,null,null,null,"",null,null,null,null,null,null,null,null,null,null,null,null,"",null,null,"",null,null,null,null,null,null,null,null,"",null,null,null,null,""]
[null,null,null,null,null,null,null,null,null,null,null,null,null,null,null,null,null,null,null,null,null,null,null,null,null,null,null,null,null,null,null,null,null,null,null,null,null,null,null,null,null,"",null,null,null,null,null,null,null,null,null,"",null,null,null,null,null,null,null,null,null,null,null,null,"",null,null,"",null,null,null,null,null,null,null,null,"",null,null,null,null,""]
[null,null,null,null,null,null,null,null,null,null,null,null,null,null,null,null,null,null,null,null,null,null,null,null,null,null,null,null,null,null,null,null,null,null,null,null,null,null,null,null,null,"",null,null,null,null,null,null,null,null,null,"",null,null,null,null,null,null,null,null,null,null,null,null,"",null,null,"",null,null,null,null,null,null,null,null,"",null,null,null,null,""]
[null,null,null,null,null,null,null,null,null,null,null,null,null,null,null,null,null,null,null,null,null,null,null,null,null,null,null,null,null,null,null,null,null,null,null,null,null,null,null,null,null,"",null,null,null,null,null,null,null,null,null,"",null,null,null,null,null,null,null,null,null,null,null,null,"",null,null,"",null,null,null,null,null,null,null,null,"",null,null,null,null,""]
[null,null,null,null,null,null,null,null,null,null,null,null,null,null,null,null,null,null,null,null,null,null,null,null,null,null,null,null,null,null,null,null,null,null,null,null,null,null,null,null,null,"",null,null,null,null,null,null,null,null,null,"",null,null,null,null,null,null,null,null,null,null,null,null,"",null,null,"",null,null,null,null,null,null,null,null,"",null,null,null,null,""]
[null,null,null,null,null,null,null,null,null,null,null,null,null,null,null,null,null,null,null,null,null,null,null,null,null,null,null,null,null,null,null,null,null,null,null,null,null,null,null,null,null,"",null,null,null,null,null,null,null,null,null,"",null,null,null,null,null,null,null,null,null,null,null,null,"",null,null,"",null,null,null,null,null,null,null,null,"",null,null,null,null,""]
[null,null,null,null,null,null,null,null,null,null,null,null,null,null,null,null,null,null,null,null,null,null,null,null,null,null,null,null,null,null,null,null,null,null,null,null,null,null,null,null,null,"",null,null,null,null,null,null,null,null,null,"",null,null,null,null,null,null,null,null,null,null,null,null,"",null,null,"",null,null,null,null,null,null,null,null,"",null,null,null,null,""]
[null,null,null,null,null,null,null,null,null,null,null,null,null,null,null,null,null,null,null,null,null,null,null,null,null,null,null,null,null,null,null,null,null,null,null,null,null,null,null,null,null,"",null,null,null,null,null,null,null,null,null,"",null,null,null,null,null,null,null,null,null,null,null,null,"",null,null,"",null,null,null,null,null,null,null,null,"",null,null,null,null,""]
[null,null,null,null,null,null,null,null,null,null,null,null,null,null,null,null,null,null,null,null,null,null,null,null,null,null,null,null,null,null,null,null,null,null,null,null,null,null,null,null,null,"",null,null,null,null,null,null,null,null,null,"",null,null,null,null,null,null,null,null,null,null,null,null,"",null,null,"",null,null,null,null,null,null,null,null,"",null,null,null,null,""]
[null,null,null,null,null,null,null,null,null,null,null,null,null,null,null,null,null,null,null,null,null,null,null,null,null,null,null,null,null,null,null,null,null,null,null,null,null,null,null,null,null,"",null,null,null,null,null,null,null,null,null,"",null,null,null,null,null,null,null,null,null,null,null,null,"",null,null,"",null,null,null,null,null,null,null,null,"",null,null,null,null,""]
[null,null,null,null,null,null,null,null,null,null,null,null,null,null,null,null,null,null,null,null,null,null,null,null,null,null,null,null,null,null,null,null,null,null,null,null,null,null,null,null,null,"",null,null,null,null,null,null,null,null,null,"",null,null,null,null,null,null,null,null,null,null,null,null,"",null,null,"",null,null,null,null,null,null,null,null,"",null,null,null,null,""]
[null,null,null,null,null,null,null,null,null,null,null,null,null,null,null,null,null,null,null,null,null,null,null,null,null,null,null,null,null,null,null,null,null,null,null,null,null,null,null,null,null,"",null,null,null,null,null,null,null,null,null,"",null,null,null,null,null,null,null,null,null,null,null,null,"",null,null,"",null,null,null,null,null,null,null,null,"",null,null,null,null,""]
[null,null,null,null,null,null,null,null,null,null,null,null,null,null,null,null,null,null,null,null,null,null,null,null,null,null,null,null,null,null,null,null,null,null,null,null,null,null,null,null,null,"",null,null,null,null,null,null,null,null,null,"",null,null,null,null,null,null,null,null,null,null,null,null,"",null,null,"",null,null,null,null,null,null,null,null,"",null,null,null,null,""]
[null,null,null,null,null,null,null,null,null,null,null,null,null,null,null,null,null,null,null,null,null,null,null,null,null,null,null,null,null,null,null,null,null,null,null,null,null,null,null,null,null,"",null,null,null,null,null,null,null,null,null,"",null,null,null,null,null,null,null,null,null,null,null,null,"",null,null,"",null,null,null,null,null,null,null,null,"",null,null,null,null,""]
[null,null,null,null,null,null,null,null,null,null,null,null,null,null,null,null,null,null,null,null,null,null,null,null,null,null,null,null,null,null,null,null,null,null,null,null,null,null,null,null,null,"",null,null,null,null,null,null,null,null,null,"",null,null,null,null,null,null,null,null,null,null,null,null,"",null,null,"",null,null,null,null,null,null,null,null,"",null,null,null,null,""]
[null,null,null,null,null,null,null,null,null,null,null,null,null,null,null,null,null,null,null,null,null,null,null,null,null,null,null,null,null,null,null,null,null,null,null,null,null,null,null,null,null,"",null,null,null,null,null,null,null,null,null,"",null,null,null,null,null,null,null,null,null,null,null,null,"",null,null,"",null,null,null,null,null,null,null,null,"",null,null,null,null,""]
[null,null,null,null,null,null,null,null,null,null,null,null,null,null,null,null,null,null,null,null,null,null,null,null,null,null,null,null,null,null,null,null,null,null,null,null,null,null,null,null,null,"",null,null,null,null,null,null,null,null,null,"",null,null,null,null,null,null,null,null,null,null,null,null,"",null,null,"",null,null,null,null,null,null,null,null,"",null,null,null,null,""]
[null,null,null,null,null,null,null,null,null,null,null,null,null,null,null,null,null,null,null,null,null,null,null,null,null,null,null,null,null,null,null,null,null,null,null,null,null,null,null,null,null,"",null,null,null,null,null,null,null,null,null,"",null,null,null,null,null,null,null,null,null,null,null,null,"",null,null,"",null,null,null,null,null,null,null,null,"",null,null,null,null,""]
[null,null,null,null,null,null,null,null,null,null,null,null,null,null,null,null,null,null,null,null,null,null,null,null,null,null,null,null,null,null,null,null,null,null,null,null,null,null,null,null,null,"",null,null,null,null,null,null,null,null,null,"",null,null,null,null,null,null,null,null,null,null,null,null,"",null,null,"",null,null,null,null,null,null,null,null,"",null,null,null,null,""]
[null,null,null,null,null,null,null,null,null,null,null,null,null,null,null,null,null,null,null,null,null,null,null,null,null,null,null,null,null,null,null,null,null,null,null,null,null,null,null,null,null,"",null,null,null,null,null,null,null,null,null,"",null,null,null,null,null,null,null,null,null,null,null,null,"",null,null,"",null,null,null,null,null,null,null,null,"",null,null,null,null,""]
[null,null,null,null,null,null,null,null,null,null,null,null,null,null,null,null,null,null,null,null,null,null,null,null,null,null,null,null,null,null,null,null,null,null,null,null,null,null,null,null,null,"",null,null,null,null,null,null,null,null,null,"",null,null,null,null,null,null,null,null,null,null,null,null,"",null,null,"",null,null,null,null,null,null,null,null,"",null,null,null,null,""]
[null,null,null,null,null,null,null,null,null,null,null,null,null,null,null,null,null,null,null,null,null,null,null,null,null,null,null,null,null,null,null,null,null,null,null,null,null,null,null,null,null,"",null,null,null,null,null,null,null,null,null,"",null,null,null,null,null,null,null,null,null,null,null,null,"",null,null,"",null,null,null,null,null,null,null,null,"",null,null,null,null,""]
[null,null,null,null,null,null,null,null,null,null,null,null,null,null,null,null,null,null,null,null,null,null,null,null,null,null,null,null,null,null,null,null,null,null,null,null,null,null,null,null,null,"",null,null,null,null,null,null,null,null,null,"",null,null,null,null,null,null,null,null,null,null,null,null,"",null,null,"",null,null,null,null,null,null,null,null,"",null,null,null,null,""]
[null,null,null,null,null,null,null,null,null,null,null,null,null,null,null,null,null,null,null,null,null,null,null,null,null,null,null,null,null,null,null,null,null,null,null,null,null,null,null,null,null,"",null,null,null,null,null,null,null,null,null,"",null,null,null,null,null,null,null,null,null,null,null,null,"",null,null,"",null,null,null,null,null,null,null,null,"",null,null,null,null,""]
[null,null,null,null,null,null,null,null,null,null,null,null,null,null,null,null,null,null,null,null,null,null,null,null,null,null,null,null,null,null,null,null,null,null,null,null,null,null,null,null,null,"",null,null,null,null,null,null,null,null,null,"",null,null,null,null,null,null,null,null,null,null,null,null,"",null,null,"",null,null,null,null,null,null,null,null,"",null,null,null,null,""]
[null,null,null,null,null,null,null,null,null,null,null,null,null,null,null,null,null,null,null,null,null,null,null,null,null,null,null,null,null,null,null,null,null,null,null,null,null,null,null,null,null,"",null,null,null,null,null,null,null,null,null,{"$f":"IF(BN514<>\"\",BN514,\"\")","v":""},null,null,null,null,null,null,null,null,null,null,null,null,"",null,null,"",null,null,null,null,null,null,null,null,"",null,null,null,null,""]
[null,null,null,null,null,null,null,null,null,null,null,null,null,null,null,null,null,null,null,null,null,null,null,null,null,null,null,null,null,null,null,null,null,null,null,null,null,null,null,null,null,{"$f":"IF(AF515<>\"\",AF515,\"\")","v":""},null,null,null,null,null,null,null,null,null,"",null,null,null,null,null,null,null,null,null,null,null,null,{"$f":"IF(G515<>\"\",(G515+915),\"\")","v":""},null,null,{"$f":"IF(BV515=\"Yes\",(DATE(YEAR(G515)+3,MONTH(G515),DAY(G515))-BO515),\"\")","v":""},null,null,null,null,null,null,null,null,{"$f":"IF(BV515=\"Yes\",(DATE(YEAR(G515)+3,MONTH(G515),DAY(G515))-BX515),IF(BV515=\"Yes, but family declined\",(DATE(YEAR(G515)+3,MONTH(G515),DAY(G515))-BX515),\"\"))","v":""},null,null,null,null,{"$f":"IF(BV515=\"Yes\",(DATE(YEAR(G515)+3,MONTH(G515),DAY(G515))-CC515),IF(BV515=\"Yes, but family declined\",(DATE(YEAR(G515)+3,MONTH(G515),DAY(G515))-CC515),\"\"))","v":""}]
[null,null,null,null,null,null,null,null,null,null,null,null,null,null,null,null,null,null,null,null,null,null,null,null,null,null,null,null,null,null,null,null,null,null,null,null,null,null,null,null,null,"",null,null,null,null,null,null,null,null,null,"",null,null,null,null,null,null,null,null,null,null,null,null,"",null,null,"",null,null,null,null,null,null,null,null,"",null,null,null,null,""]
[null,null,null,null,null,null,null,null,null,null,null,null,null,null,null,null,null,null,null,null,null,null,null,null,null,null,null,null,null,null,null,null,null,null,null,null,null,null,null,null,null,"",null,null,null,null,null,null,null,null,null,"",null,null,null,null,null,null,null,null,null,null,null,null,"",null,null,"",null,null,null,null,null,null,null,null,"",null,null,null,null,""]
[null,null,null,null,null,null,null,null,null,null,null,null,null,null,null,null,null,null,null,null,null,null,null,null,null,null,null,null,null,null,null,null,null,null,null,null,null,null,null,null,null,"",null,null,null,null,null,null,null,null,null,"",null,null,null,null,null,null,null,null,null,null,null,null,"",null,null,"",null,null,null,null,null,null,null,null,"",null,null,null,null,""]
[null,null,null,null,null,null,null,null,null,null,null,null,null,null,null,null,null,null,null,null,null,null,null,null,null,null,null,null,null,null,null,null,null,null,null,null,null,null,null,null,null,"",null,null,null,null,null,null,null,null,null,"",null,null,null,null,null,null,null,null,null,null,null,null,"",null,null,"",null,null,null,null,null,null,null,null,"",null,null,null,null,""]
[null,null,null,null,null,null,null,null,null,null,null,null,null,null,null,null,null,null,null,null,null,null,null,null,null,null,null,null,null,null,null,null,null,null,null,null,null,null,null,null,null,"",null,null,null,null,null,null,null,null,null,"",null,null,null,null,null,null,null,null,null,null,null,null,"",null,null,"",null,null,null,null,null,null,null,null,"",null,null,null,null,""]
[null,null,null,null,null,null,null,null,null,null,null,null,null,null,null,null,null,null,null,null,null,null,null,null,null,null,null,null,null,null,null,null,null,null,null,null,null,null,null,null,null,"",null,null,null,null,null,null,null,null,null,"",null,null,null,null,null,null,null,null,null,null,null,null,"",null,null,"",null,null,null,null,null,null,null,null,"",null,null,null,null,""]
[null,null,null,null,null,null,null,null,null,null,null,null,null,null,null,null,null,null,null,null,null,null,null,null,null,null,null,null,null,null,null,null,null,null,null,null,null,null,null,null,null,"",null,null,null,null,null,null,null,null,null,"",null,null,null,null,null,null,null,null,null,null,null,null,"",null,null,"",null,null,null,null,null,null,null,null,"",null,null,null,null,""]
[null,null,null,null,null,null,null,null,null,null,null,null,null,null,null,null,null,null,null,null,null,null,null,null,null,null,null,null,null,null,null,null,null,null,null,null,null,null,null,null,null,"",null,null,null,null,null,null,null,null,null,"",null,null,null,null,null,null,null,null,null,null,null,null,"",null,null,"",null,null,null,null,null,null,null,null,"",null,null,null,null,""]
[null,null,null,null,null,null,null,null,null,null,null,null,null,null,null,null,null,null,null,null,null,null,null,null,null,null,null,null,null,null,null,null,null,null,null,null,null,null,null,null,null,"",null,null,null,null,null,null,null,null,null,"",null,null,null,null,null,null,null,null,null,null,null,null,"",null,null,"",null,null,null,null,null,null,null,null,"",null,null,null,null,""]
[null,null,null,null,null,null,null,null,null,null,null,null,null,null,null,null,null,null,null,null,null,null,null,null,null,null,null,null,null,null,null,null,null,null,null,null,null,null,null,null,null,"",null,null,null,null,null,null,null,null,null,"",null,null,null,null,null,null,null,null,null,null,null,null,"",null,null,"",null,null,null,null,null,null,null,null,"",null,null,null,null,""]
[null,null,null,null,null,null,null,null,null,null,null,null,null,null,null,null,null,null,null,null,null,null,null,null,null,null,null,null,null,null,null,null,null,null,null,null,null,null,null,null,null,"",null,null,null,null,null,null,null,null,null,"",null,null,null,null,null,null,null,null,null,null,null,null,"",null,null,"",null,null,null,null,null,null,null,null,"",null,null,null,null,""]
[null,null,null,null,null,null,null,null,null,null,null,null,null,null,null,null,null,null,null,null,null,null,null,null,null,null,null,null,null,null,null,null,null,null,null,null,null,null,null,null,null,"",null,null,null,null,null,null,null,null,null,"",null,null,null,null,null,null,null,null,null,null,null,null,"",null,null,"",null,null,null,null,null,null,null,null,"",null,null,null,null,""]
[null,null,null,null,null,null,null,null,null,null,null,null,null,null,null,null,null,null,null,null,null,null,null,null,null,null,null,null,null,null,null,null,null,null,null,null,null,null,null,null,null,"",null,null,null,null,null,null,null,null,null,"",null,null,null,null,null,null,null,null,null,null,null,null,"",null,null,"",null,null,null,null,null,null,null,null,"",null,null,null,null,""]
[null,null,null,null,null,null,null,null,null,null,null,null,null,null,null,null,null,null,null,null,null,null,null,null,null,null,null,null,null,null,null,null,null,null,null,null,null,null,null,null,null,"",null,null,null,null,null,null,null,null,null,"",null,null,null,null,null,null,null,null,null,null,null,null,"",null,null,"",null,null,null,null,null,null,null,null,"",null,null,null,null,""]
[null,null,null,null,null,null,null,null,null,null,null,null,null,null,null,null,null,null,null,null,null,null,null,null,null,null,null,null,null,null,null,null,null,null,null,null,null,null,null,null,null,"",null,null,null,null,null,null,null,null,null,"",null,null,null,null,null,null,null,null,null,null,null,null,"",null,null,"",null,null,null,null,null,null,null,null,"",null,null,null,null,""]
[null,null,null,null,null,null,null,null,null,null,null,null,null,null,null,null,null,null,null,null,null,null,null,null,null,null,null,null,null,null,null,null,null,null,null,null,null,null,null,null,null,"",null,null,null,null,null,null,null,null,null,"",null,null,null,null,null,null,null,null,null,null,null,null,"",null,null,"",null,null,null,null,null,null,null,null,"",null,null,null,null,""]
[null,null,null,null,null,null,null,null,null,null,null,null,null,null,null,null,null,null,null,null,null,null,null,null,null,null,null,null,null,null,null,null,null,null,null,null,null,null,null,null,null,"",null,null,null,null,null,null,null,null,null,"",null,null,null,null,null,null,null,null,null,null,null,null,"",null,null,"",null,null,null,null,null,null,null,null,"",null,null,null,null,""]
[null,null,null,null,null,null,null,null,null,null,null,null,null,null,null,null,null,null,null,null,null,null,null,null,null,null,null,null,null,null,null,null,null,null,null,null,null,null,null,null,null,"",null,null,null,null,null,null,null,null,null,"",null,null,null,null,null,null,null,null,null,null,null,null,"",null,null,"",null,null,null,null,null,null,null,null,"",null,null,null,null,""]
[null,null,null,null,null,null,null,null,null,null,null,null,null,null,null,null,null,null,null,null,null,null,null,null,null,null,null,null,null,null,null,null,null,null,null,null,null,null,null,null,null,"",null,null,null,null,null,null,null,null,null,"",null,null,null,null,null,null,null,null,null,null,null,null,"",null,null,"",null,null,null,null,null,null,null,null,"",null,null,null,null,""]
[null,null,null,null,null,null,null,null,null,null,null,null,null,null,null,null,null,null,null,null,null,null,null,null,null,null,null,null,null,null,null,null,null,null,null,null,null,null,null,null,null,"",null,null,null,null,null,null,null,null,null,"",null,null,null,null,null,null,null,null,null,null,null,null,"",null,null,"",null,null,null,null,null,null,null,null,"",null,null,null,null,""]
[null,null,null,null,null,null,null,null,null,null,null,null,null,null,null,null,null,null,null,null,null,null,null,null,null,null,null,null,null,null,null,null,null,null,null,null,null,null,null,null,null,"",null,null,null,null,null,null,null,null,null,"",null,null,null,null,null,null,null,null,null,null,null,null,"",null,null,"",null,null,null,null,null,null,null,null,"",null,null,null,null,""]
[null,null,null,null,null,null,null,null,null,null,null,null,null,null,null,null,null,null,null,null,null,null,null,null,null,null,null,null,null,null,null,null,null,null,null,null,null,null,null,null,null,"",null,null,null,null,null,null,null,null,null,"",null,null,null,null,null,null,null,null,null,null,null,null,"",null,null,"",null,null,null,null,null,null,null,null,"",null,null,null,null,""]
[null,null,null,null,null,null,null,null,null,null,null,null,null,null,null,null,null,null,null,null,null,null,null,null,null,null,null,null,null,null,null,null,null,null,null,null,null,null,null,null,null,"",null,null,null,null,null,null,null,null,null,"",null,null,null,null,null,null,null,null,null,null,null,null,"",null,null,"",null,null,null,null,null,null,null,null,"",null,null,null,null,""]
[null,null,null,null,null,null,null,null,null,null,null,null,null,null,null,null,null,null,null,null,null,null,null,null,null,null,null,null,null,null,null,null,null,null,null,null,null,null,null,null,null,"",null,null,null,null,null,null,null,null,null,"",null,null,null,null,null,null,null,null,null,null,null,null,"",null,null,"",null,null,null,null,null,null,null,null,"",null,null,null,null,""]
[null,null,null,null,null,null,null,null,null,null,null,null,null,null,null,null,null,null,null,null,null,null,null,null,null,null,null,null,null,null,null,null,null,null,null,null,null,null,null,null,null,"",null,null,null,null,null,null,null,null,null,"",null,null,null,null,null,null,null,null,null,null,null,null,"",null,null,"",null,null,null,null,null,null,null,null,"",null,null,null,null,""]
[null,null,null,null,null,null,null,null,null,null,null,null,null,null,null,null,null,null,null,null,null,null,null,null,null,null,null,null,null,null,null,null,null,null,null,null,null,null,null,null,null,"",null,null,null,null,null,null,null,null,null,"",null,null,null,null,null,null,null,null,null,null,null,null,"",null,null,"",null,null,null,null,null,null,null,null,"",null,null,null,null,""]
[null,null,null,null,null,null,null,null,null,null,null,null,null,null,null,null,null,null,null,null,null,null,null,null,null,null,null,null,null,null,null,null,null,null,null,null,null,null,null,null,null,"",null,null,null,null,null,null,null,null,null,"",null,null,null,null,null,null,null,null,null,null,null,null,"",null,null,"",null,null,null,null,null,null,null,null,"",null,null,null,null,""]
[null,null,null,null,null,null,null,null,null,null,null,null,null,null,null,null,null,null,null,null,null,null,null,null,null,null,null,null,null,null,null,null,null,null,null,null,null,null,null,null,null,"",null,null,null,null,null,null,null,null,null,"",null,null,null,null,null,null,null,null,null,null,null,null,"",null,null,"",null,null,null,null,null,null,null,null,"",null,null,null,null,""]
[null,null,null,null,null,null,null,null,null,null,null,null,null,null,null,null,null,null,null,null,null,null,null,null,null,null,null,null,null,null,null,null,null,null,null,null,null,null,null,null,null,"",null,null,null,null,null,null,null,null,null,"",null,null,null,null,null,null,null,null,null,null,null,null,"",null,null,"",null,null,null,null,null,null,null,null,"",null,null,null,null,""]
[null,null,null,null,null,null,null,null,null,null,null,null,null,null,null,null,null,null,null,null,null,null,null,null,null,null,null,null,null,null,null,null,null,null,null,null,null,null,null,null,null,"",null,null,null,null,null,null,null,null,null,"",null,null,null,null,null,null,null,null,null,null,null,null,"",null,null,"",null,null,null,null,null,null,null,null,"",null,null,null,null,""]
[null,null,null,null,null,null,null,null,null,null,null,null,null,null,null,null,null,null,null,null,null,null,null,null,null,null,null,null,null,null,null,null,null,null,null,null,null,null,null,null,null,"",null,null,null,null,null,null,null,null,null,"",null,null,null,null,null,null,null,null,null,null,null,null,"",null,null,"",null,null,null,null,null,null,null,null,"",null,null,null,null,""]
[null,null,null,null,null,null,null,null,null,null,null,null,null,null,null,null,null,null,null,null,null,null,null,null,null,null,null,null,null,null,null,null,null,null,null,null,null,null,null,null,null,"",null,null,null,null,null,null,null,null,null,"",null,null,null,null,null,null,null,null,null,null,null,null,"",null,null,"",null,null,null,null,null,null,null,null,"",null,null,null,null,""]
[null,null,null,null,null,null,null,null,null,null,null,null,null,null,null,null,null,null,null,null,null,null,null,null,null,null,null,null,null,null,null,null,null,null,null,null,null,null,null,null,null,"",null,null,null,null,null,null,null,null,null,"",null,null,null,null,null,null,null,null,null,null,null,null,"",null,null,"",null,null,null,null,null,null,null,null,"",null,null,null,null,""]
[null,null,null,null,null,null,null,null,null,null,null,null,null,null,null,null,null,null,null,null,null,null,null,null,null,null,null,null,null,null,null,null,null,null,null,null,null,null,null,null,null,"",null,null,null,null,null,null,null,null,null,"",null,null,null,null,null,null,null,null,null,null,null,null,"",null,null,"",null,null,null,null,null,null,null,null,"",null,null,null,null,""]
[null,null,null,null,null,null,null,null,null,null,null,null,null,null,null,null,null,null,null,null,null,null,null,null,null,null,null,null,null,null,null,null,null,null,null,null,null,null,null,null,null,"",null,null,null,null,null,null,null,null,null,"",null,null,null,null,null,null,null,null,null,null,null,null,"",null,null,"",null,null,null,null,null,null,null,null,"",null,null,null,null,""]
[null,null,null,null,null,null,null,null,null,null,null,null,null,null,null,null,null,null,null,null,null,null,null,null,null,null,null,null,null,null,null,null,null,null,null,null,null,null,null,null,null,"",null,null,null,null,null,null,null,null,null,"",null,null,null,null,null,null,null,null,null,null,null,null,"",null,null,"",null,null,null,null,null,null,null,null,"",null,null,null,null,""]
[null,null,null,null,null,null,null,null,null,null,null,null,null,null,null,null,null,null,null,null,null,null,null,null,null,null,null,null,null,null,null,null,null,null,null,null,null,null,null,null,null,"",null,null,null,null,null,null,null,null,null,"",null,null,null,null,null,null,null,null,null,null,null,null,"",null,null,"",null,null,null,null,null,null,null,null,"",null,null,null,null,""]
[null,null,null,null,null,null,null,null,null,null,null,null,null,null,null,null,null,null,null,null,null,null,null,null,null,null,null,null,null,null,null,null,null,null,null,null,null,null,null,null,null,"",null,null,null,null,null,null,null,null,null,"",null,null,null,null,null,null,null,null,null,null,null,null,"",null,null,"",null,null,null,null,null,null,null,null,"",null,null,null,null,""]
[null,null,null,null,null,null,null,null,null,null,null,null,null,null,null,null,null,null,null,null,null,null,null,null,null,null,null,null,null,null,null,null,null,null,null,null,null,null,null,null,null,"",null,null,null,null,null,null,null,null,null,"",null,null,null,null,null,null,null,null,null,null,null,null,"",null,null,"",null,null,null,null,null,null,null,null,"",null,null,null,null,""]
[null,null,null,null,null,null,null,null,null,null,null,null,null,null,null,null,null,null,null,null,null,null,null,null,null,null,null,null,null,null,null,null,null,null,null,null,null,null,null,null,null,"",null,null,null,null,null,null,null,null,null,"",null,null,null,null,null,null,null,null,null,null,null,null,"",null,null,"",null,null,null,null,null,null,null,null,"",null,null,null,null,""]
[null,null,null,null,null,null,null,null,null,null,null,null,null,null,null,null,null,null,null,null,null,null,null,null,null,null,null,null,null,null,null,null,null,null,null,null,null,null,null,null,null,"",null,null,null,null,null,null,null,null,null,"",null,null,null,null,null,null,null,null,null,null,null,null,"",null,null,"",null,null,null,null,null,null,null,null,"",null,null,null,null,""]
[null,null,null,null,null,null,null,null,null,null,null,null,null,null,null,null,null,null,null,null,null,null,null,null,null,null,null,null,null,null,null,null,null,null,null,null,null,null,null,null,null,"",null,null,null,null,null,null,null,null,null,"",null,null,null,null,null,null,null,null,null,null,null,null,"",null,null,"",null,null,null,null,null,null,null,null,"",null,null,null,null,""]
[null,null,null,null,null,null,null,null,null,null,null,null,null,null,null,null,null,null,null,null,null,null,null,null,null,null,null,null,null,null,null,null,null,null,null,null,null,null,null,null,null,"",null,null,null,null,null,null,null,null,null,"",null,null,null,null,null,null,null,null,null,null,null,null,"",null,null,"",null,null,null,null,null,null,null,null,"",null,null,null,null,""]
[null,null,null,null,null,null,null,null,null,null,null,null,null,null,null,null,null,null,null,null,null,null,null,null,null,null,null,null,null,null,null,null,null,null,null,null,null,null,null,null,null,"",null,null,null,null,null,null,null,null,null,"",null,null,null,null,null,null,null,null,null,null,null,null,"",null,null,"",null,null,null,null,null,null,null,null,"",null,null,null,null,""]
[null,null,null,null,null,null,null,null,null,null,null,null,null,null,null,null,null,null,null,null,null,null,null,null,null,null,null,null,null,null,null,null,null,null,null,null,null,null,null,null,null,"",null,null,null,null,null,null,null,null,null,"",null,null,null,null,null,null,null,null,null,null,null,null,"",null,null,"",null,null,null,null,null,null,null,null,"",null,null,null,null,""]
[null,null,null,null,null,null,null,null,null,null,null,null,null,null,null,null,null,null,null,null,null,null,null,null,null,null,null,null,null,null,null,null,null,null,null,null,null,null,null,null,null,"",null,null,null,null,null,null,null,null,null,"",null,null,null,null,null,null,null,null,null,null,null,null,"",null,null,"",null,null,null,null,null,null,null,null,"",null,null,null,null,""]
[null,null,null,null,null,null,null,null,null,null,null,null,null,null,null,null,null,null,null,null,null,null,null,null,null,null,null,null,null,null,null,null,null,null,null,null,null,null,null,null,null,"",null,null,null,null,null,null,null,null,null,"",null,null,null,null,null,null,null,null,null,null,null,null,"",null,null,"",null,null,null,null,null,null,null,null,"",null,null,null,null,""]
[null,null,null,null,null,null,null,null,null,null,null,null,null,null,null,null,null,null,null,null,null,null,null,null,null,null,null,null,null,null,null,null,null,null,null,null,null,null,null,null,null,"",null,null,null,null,null,null,null,null,null,"",null,null,null,null,null,null,null,null,null,null,null,null,"",null,null,"",null,null,null,null,null,null,null,null,"",null,null,null,null,""]
[null,null,null,null,null,null,null,null,null,null,null,null,null,null,null,null,null,null,null,null,null,null,null,null,null,null,null,null,null,null,null,null,null,null,null,null,null,null,null,null,null,"",null,null,null,null,null,null,null,null,null,"",null,null,null,null,null,null,null,null,null,null,null,null,"",null,null,"",null,null,null,null,null,null,null,null,"",null,null,null,null,""]
[null,null,null,null,null,null,null,null,null,null,null,null,null,null,null,null,null,null,null,null,null,null,null,null,null,null,null,null,null,null,null,null,null,null,null,null,null,null,null,null,null,"",null,null,null,null,null,null,null,null,null,"",null,null,null,null,null,null,null,null,null,null,null,null,"",null,null,"",null,null,null,null,null,null,null,null,"",null,null,null,null,""]
[null,null,null,null,null,null,null,null,null,null,null,null,null,null,null,null,null,null,null,null,null,null,null,null,null,null,null,null,null,null,null,null,null,null,null,null,null,null,null,null,null,"",null,null,null,null,null,null,null,null,null,"",null,null,null,null,null,null,null,null,null,null,null,null,"",null,null,"",null,null,null,null,null,null,null,null,"",null,null,null,null,""]
[null,null,null,null,null,null,null,null,null,null,null,null,null,null,null,null,null,null,null,null,null,null,null,null,null,null,null,null,null,null,null,null,null,null,null,null,null,null,null,null,null,"",null,null,null,null,null,null,null,null,null,"",null,null,null,null,null,null,null,null,null,null,null,null,"",null,null,"",null,null,null,null,null,null,null,null,"",null,null,null,null,""]
[null,null,null,null,null,null,null,null,null,null,null,null,null,null,null,null,null,null,null,null,null,null,null,null,null,null,null,null,null,null,null,null,null,null,null,null,null,null,null,null,null,"",null,null,null,null,null,null,null,null,null,"",null,null,null,null,null,null,null,null,null,null,null,null,"",null,null,"",null,null,null,null,null,null,null,null,"",null,null,null,null,""]
[null,null,null,null,null,null,null,null,null,null,null,null,null,null,null,null,null,null,null,null,null,null,null,null,null,null,null,null,null,null,null,null,null,null,null,null,null,null,null,null,null,"",null,null,null,null,null,null,null,null,null,"",null,null,null,null,null,null,null,null,null,null,null,null,"",null,null,"",null,null,null,null,null,null,null,null,"",null,null,null,null,""]
[null,null,null,null,null,null,null,null,null,null,null,null,null,null,null,null,null,null,null,null,null,null,null,null,null,null,null,null,null,null,null,null,null,null,null,null,null,null,null,null,null,"",null,null,null,null,null,null,null,null,null,"",null,null,null,null,null,null,null,null,null,null,null,null,"",null,null,"",null,null,null,null,null,null,null,null,"",null,null,null,null,""]
[null,null,null,null,null,null,null,null,null,null,null,null,null,null,null,null,null,null,null,null,null,null,null,null,null,null,null,null,null,null,null,null,null,null,null,null,null,null,null,null,null,"",null,null,null,null,null,null,null,null,null,"",null,null,null,null,null,null,null,null,null,null,null,null,"",null,null,"",null,null,null,null,null,null,null,null,"",null,null,null,null,""]
[null,null,null,null,null,null,null,null,null,null,null,null,null,null,null,null,null,null,null,null,null,null,null,null,null,null,null,null,null,null,null,null,null,null,null,null,null,null,null,null,null,"",null,null,null,null,null,null,null,null,null,"",null,null,null,null,null,null,null,null,null,null,null,null,"",null,null,"",null,null,null,null,null,null,null,null,"",null,null,null,null,""]
[null,null,null,null,null,null,null,null,null,null,null,null,null,null,null,null,null,null,null,null,null,null,null,null,null,null,null,null,null,null,null,null,null,null,null,null,null,null,null,null,null,"",null,null,null,null,null,null,null,null,null,"",null,null,null,null,null,null,null,null,null,null,null,null,"",null,null,"",null,null,null,null,null,null,null,null,"",null,null,null,null,""]
[null,null,null,null,null,null,null,null,null,null,null,null,null,null,null,null,null,null,null,null,null,null,null,null,null,null,null,null,null,null,null,null,null,null,null,null,null,null,null,null,null,"",null,null,null,null,null,null,null,null,null,"",null,null,null,null,null,null,null,null,null,null,null,null,"",null,null,"",null,null,null,null,null,null,null,null,"",null,null,null,null,""]
[null,null,null,null,null,null,null,null,null,null,null,null,null,null,null,null,null,null,null,null,null,null,null,null,null,null,null,null,null,null,null,null,null,null,null,null,null,null,null,null,null,"",null,null,null,null,null,null,null,null,null,"",null,null,null,null,null,null,null,null,null,null,null,null,"",null,null,"",null,null,null,null,null,null,null,null,"",null,null,null,null,""]
[null,null,null,null,null,null,null,null,null,null,null,null,null,null,null,null,null,null,null,null,null,null,null,null,null,null,null,null,null,null,null,null,null,null,null,null,null,null,null,null,null,"",null,null,null,null,null,null,null,null,null,"",null,null,null,null,null,null,null,null,null,null,null,null,"",null,null,"",null,null,null,null,null,null,null,null,""]
[null,null,null,null,null,null,null,null,null,null,null,null,null,null,null,null,null,null,null,null,null,null,null,null,null,null,null,null,null,null,null,null,null,null,null,null,null,null,null,null,null,"",null,null,null,null,null,null,null,null,null,null,null,null,null,null,null,null,null,null,null,null,null,null,"",null,null,"",null,null,null,null,null,null,null,null,""]
[null,null,null,null,null,null,null,null,null,null,null,null,null,null,null,null,null,null,null,null,null,null,null,null,null,null,null,null,null,null,null,null,null,null,null,null,null,null,null,null,null,null,null,null,null,null,null,null,null,null,null,null,null,null,null,null,null,null,null,null,null,null,null,null,null,null,null,"",null,null,null,null,null,null,null,null,""]
[null,null,null,null,null,null,null,null,null,null,null,null,null,null,null,null,null,null,null,null,null,null,null,null,null,null,null,null,null,null,null,null,null,null,null,null,null,null,null,null,null,null,null,null,null,null,null,null,null,null,null,null,null,null,null,null,null,null,null,null,null,null,null,null,null,null,null,null,null,null,null,null,null,null,null,null,{"$f":"IF(BV579=\"Yes\",(DATE(YEAR(G579)+3,MONTH(G579),DAY(G579))-BX579),IF(BV579=\"Yes, but family declined\",(DATE(YEAR(G579)+3,MONTH(G579),DAY(G579))-BX579),\"\"))","v":""}]